PublisherLabel,PublisherURI,"Body name","Body","Service area","Service division","Responsible unit","Expenses type","Date","Transaction","Amount","Supplier name"
"Bracknell Forest Council","http://opendatacommunities.org/id/unitary-authority/bracknell-forest","Bracknell Forest Council","00MA","Traffic Management & Road Safety","Traffic Management","Traffic Management","Contracted Services",29/11/2019 00:00:00,"6694584",2999.13,"AAI - ALEXANDER ADVERTISING(INT)LTD"
"Bracknell Forest Council","http://opendatacommunities.org/id/unitary-authority/bracknell-forest","Bracknell Forest Council","00MA","Traffic Management & Road Safety","Traffic Management","Traffic Management","Contracted Services",17/01/2020 00:00:00,"6698653",854.95,"AAI - ALEXANDER ADVERTISING(INT)LTD"
"Bracknell Forest Council","http://opendatacommunities.org/id/unitary-authority/bracknell-forest","Bracknell Forest Council","00MA","Traffic Management & Road Safety","Traffic Management","Traffic Management","Contracted Services",21/02/2020 00:00:00,"6698655",715.11,"AAI - ALEXANDER ADVERTISING(INT)LTD"
"Bracknell Forest Council","http://opendatacommunities.org/id/unitary-authority/bracknell-forest","Bracknell Forest Council","00MA","Traffic Management & Road Safety","Traffic Management","Traffic Management","Contracted Services",29/11/2019 00:00:00,"6694325",544.2,"AAI - ALEXANDER ADVERTISING(INT)LTD"
"Bracknell Forest Council","http://opendatacommunities.org/id/unitary-authority/bracknell-forest","Bracknell Forest Council","00MA","Culture and Heritage","Heritage Museums & Galleries","The Look Out","Equipment - R&M",30/01/2020 00:00:00,"6699885",1830,"ABACUS PLAYGROUNDS LIMITED"
"Bracknell Forest Council","http://opendatacommunities.org/id/unitary-authority/bracknell-forest","Bracknell Forest Council","00MA","Management and Support Services - CYPL","Schools Block Centrally Managed","Educational Attainment for Looked After Children","Consultants Fees",13/11/2019 00:00:00,"6694109",900,"BMACTIVE"
"Bracknell Forest Council","http://opendatacommunities.org/id/unitary-authority/bracknell-forest","Bracknell Forest Council","00MA","Management and Support Services - CYPL","Schools Block Centrally Managed","Educational Attainment for Looked After Children","Consultants Fees",03/02/2020 00:00:00,"6697964",750,"BMACTIVE"
"Bracknell Forest Council","http://opendatacommunities.org/id/unitary-authority/bracknell-forest","Bracknell Forest Council","00MA","Management and Support Services - CYPL","Unallocated High Needs Related Expenditure","Supporting SEN Pre 16","Voluntary Sector Service Providers",13/02/2020 00:00:00,"6699028",1375,"BMACTIVE"
"Bracknell Forest Council","http://opendatacommunities.org/id/unitary-authority/bracknell-forest","Bracknell Forest Council","00MA","Management and Support Services - CYPL","Unallocated High Needs Related Expenditure","SEN Non LEA Provision Pre 16","Voluntary Sector Service Providers",02/03/2020 00:00:00,"6700278",7450,"BMACTIVE"
"Bracknell Forest Council","http://opendatacommunities.org/id/unitary-authority/bracknell-forest","Bracknell Forest Council","00MA","Special Schools & Alternative Provision","Youth Services","Alternative Provision for Secondary Aged pupils without a statement","Voluntary Sector Service Providers",03/02/2020 00:00:00,"6697965",4500,"BMACTIVE"
"Bracknell Forest Council","http://opendatacommunities.org/id/unitary-authority/bracknell-forest","Bracknell Forest Council","00MA","Special Schools & Alternative Provision","Youth Services","Alternative Provision for Secondary Aged pupils without a statement","Voluntary Sector Service Providers",03/02/2020 00:00:00,"6697966",750,"BMACTIVE"
"Bracknell Forest Council","http://opendatacommunities.org/id/unitary-authority/bracknell-forest","Bracknell Forest Council","00MA","Special Schools & Alternative Provision","Youth Services","Alternative Provision for Secondary Aged pupils without a statement","Voluntary Sector Service Providers",25/03/2020 00:00:00,"6701118",750,"BMACTIVE"
"Bracknell Forest Council","http://opendatacommunities.org/id/unitary-authority/bracknell-forest","Bracknell Forest Council","00MA","Special Schools & Alternative Provision","Youth Services","Alternative Provision for Secondary Aged pupils without a statement","Voluntary Sector Service Providers",20/03/2020 00:00:00,"6701125",2700,"BMACTIVE"
"Bracknell Forest Council","http://opendatacommunities.org/id/unitary-authority/bracknell-forest","Bracknell Forest Council","00MA","Special Schools & Alternative Provision","Youth Services","Alternative Provision for Secondary Aged pupils without a statement","Voluntary Sector Service Providers",02/03/2020 00:00:00,"6701128",3300,"BMACTIVE"
"Bracknell Forest Council","http://opendatacommunities.org/id/unitary-authority/bracknell-forest","Bracknell Forest Council","00MA","Special Schools & Alternative Provision","Youth Services","Alternative Provision for Secondary Aged pupils without a statement","Voluntary Sector Service Providers",25/03/2020 00:00:00,"6701129",4150,"BMACTIVE"
"Bracknell Forest Council","http://opendatacommunities.org/id/unitary-authority/bracknell-forest","Bracknell Forest Council","00MA","Children Looked After","Other services for LAC","LAC - Under 11s Expenditure","Other Support to Clients",13/02/2020 00:00:00,"6699030",792.6,"BMACTIVE"
"Bracknell Forest Council","http://opendatacommunities.org/id/unitary-authority/bracknell-forest","Bracknell Forest Council","00MA","Special Schools & Alternative Provision","Youth Services","Alternative Provision for Secondary Aged pupils without a statement","Voluntary Sector Service Providers",20/11/2019 00:00:00,"6694111",1375,"BMACTIVE"
"Bracknell Forest Council","http://opendatacommunities.org/id/unitary-authority/bracknell-forest","Bracknell Forest Council","00MA","Special Schools & Alternative Provision","Youth Services","Alternative Provision for Secondary Aged pupils without a statement","Voluntary Sector Service Providers",20/11/2019 00:00:00,"6694112",750,"BMACTIVE"
"Bracknell Forest Council","http://opendatacommunities.org/id/unitary-authority/bracknell-forest","Bracknell Forest Council","00MA","Special Schools & Alternative Provision","Youth Services","Alternative Provision for Secondary Aged pupils without a statement","Voluntary Sector Service Providers",29/11/2019 00:00:00,"6694113",5853.75,"BMACTIVE"
"Bracknell Forest Council","http://opendatacommunities.org/id/unitary-authority/bracknell-forest","Bracknell Forest Council","00MA","Special Schools & Alternative Provision","Youth Services","Alternative Provision for Secondary Aged pupils without a statement","Voluntary Sector Service Providers",29/11/2019 00:00:00,"6694114",3721.25,"BMACTIVE"
"Bracknell Forest Council","http://opendatacommunities.org/id/unitary-authority/bracknell-forest","Bracknell Forest Council","00MA","Special Schools & Alternative Provision","Youth Services","Alternative Provision for Secondary Aged pupils without a statement","Voluntary Sector Service Providers",04/03/2020 00:00:00,"6700261",8095.28,"BMACTIVE"
"Bracknell Forest Council","http://opendatacommunities.org/id/unitary-authority/bracknell-forest","Bracknell Forest Council","00MA","Special Schools & Alternative Provision","Youth Services","Alternative Provision for Secondary Aged pupils without a statement","Voluntary Sector Service Providers",02/03/2020 00:00:00,"6700265",1100,"BMACTIVE"
"Bracknell Forest Council","http://opendatacommunities.org/id/unitary-authority/bracknell-forest","Bracknell Forest Council","00MA","Special Schools & Alternative Provision","Youth Services","Alternative Provision for Secondary Aged pupils without a statement","Voluntary Sector Service Providers",02/03/2020 00:00:00,"6700281",1500,"BMACTIVE"
"Bracknell Forest Council","http://opendatacommunities.org/id/unitary-authority/bracknell-forest","Bracknell Forest Council","00MA","Children Looked After","Other services for LAC","LAC - Under 11s Expenditure","Other Support to Clients",02/03/2020 00:00:00,"6700283",1215,"BMACTIVE"
"Bracknell Forest Council","http://opendatacommunities.org/id/unitary-authority/bracknell-forest","Bracknell Forest Council","00MA","Special Schools & Alternative Provision","Youth Services","Alternative Provision for Secondary Aged pupils without a statement","Voluntary Sector Service Providers",09/12/2019 00:00:00,"6695185",4200,"BMACTIVE"
"Bracknell Forest Council","http://opendatacommunities.org/id/unitary-authority/bracknell-forest","Bracknell Forest Council","00MA","Special Schools & Alternative Provision","Youth Services","Alternative Provision for Secondary Aged pupils without a statement","Voluntary Sector Service Providers",09/12/2019 00:00:00,"6695186",3500,"BMACTIVE"
"Bracknell Forest Council","http://opendatacommunities.org/id/unitary-authority/bracknell-forest","Bracknell Forest Council","00MA","Special Schools & Alternative Provision","Youth Services","Alternative Provision for Secondary Aged pupils without a statement","Voluntary Sector Service Providers",09/12/2019 00:00:00,"6695187",5100,"BMACTIVE"
"Bracknell Forest Council","http://opendatacommunities.org/id/unitary-authority/bracknell-forest","Bracknell Forest Council","00MA","Children Looked After","Other services for LAC","LAC - Under 11s Expenditure","Other Support to Clients",03/02/2020 00:00:00,"6697964",1800,"BMACTIVE"
"Bracknell Forest Council","http://opendatacommunities.org/id/unitary-authority/bracknell-forest","Bracknell Forest Council","00MA","Adults (18-64)","Long Term Support - Community:Supported Living","LD Adults 18-64 Long Term Support - Community:Supported Living","Other Support to Clients",06/02/2020 00:00:00,"30371161",900,"REDACT PERSONAL INFORMATION"
"Bracknell Forest Council","http://opendatacommunities.org/id/unitary-authority/bracknell-forest","Bracknell Forest Council","00MA","Adults (18-64)","Long Term Support - Community:Supported Living","LD Adults 18-64 Long Term Support - Community:Supported Living","Other Support to Clients",09/01/2020 00:00:00,"30369491",900,"REDACT PERSONAL INFORMATION"
"Bracknell Forest Council","http://opendatacommunities.org/id/unitary-authority/bracknell-forest","Bracknell Forest Council","00MA","Adults (18-64)","Long Term Support - Community:Supported Living","LD Adults 18-64 Long Term Support - Community:Supported Living","Other Support to Clients",05/03/2020 00:00:00,"30372784",900,"REDACT PERSONAL INFORMATION"
"Bracknell Forest Council","http://opendatacommunities.org/id/unitary-authority/bracknell-forest","Bracknell Forest Council","00MA","Adults (18-64)","Long Term Support - Community:Supported Living","LD Adults 18-64 Long Term Support - Community:Supported Living","Other Support to Clients",02/04/2020 00:00:00,"30374568",900,"REDACT PERSONAL INFORMATION"
"Bracknell Forest Council","http://opendatacommunities.org/id/unitary-authority/bracknell-forest","Bracknell Forest Council","00MA","Adults (18-64)","Long Term Support - Community:Supported Living","LD Adults 18-64 Long Term Support - Community:Supported Living","Other Support to Clients",12/12/2019 00:00:00,"30368127",900,"REDACT PERSONAL INFORMATION"
"Bracknell Forest Council","http://opendatacommunities.org/id/unitary-authority/bracknell-forest","Bracknell Forest Council","00MA","Libraries","Stock Ordering, Cataloguing & Distribution","Library Book Fund","Audio/Visual materials",12/12/2019 00:00:00,"6694765",3500,"BOLINDA"
"Bracknell Forest Council","http://opendatacommunities.org/id/unitary-authority/bracknell-forest","Bracknell Forest Council","00MA","Libraries","Stock Ordering, Cataloguing & Distribution","Library Book Fund","Audio/Visual materials",26/03/2020 00:00:00,"6700980",1002.96,"BOLINDA"
"Bracknell Forest Council","http://opendatacommunities.org/id/unitary-authority/bracknell-forest","Bracknell Forest Council","00MA","Substance Misuse","Drug misuse in adults","DAAT Public Health (Berkshire)","Contracted Services",30/09/2019 00:00:00,"6698904",650.81,"BOOTS (WINDSOR)"
"Bracknell Forest Council","http://opendatacommunities.org/id/unitary-authority/bracknell-forest","Bracknell Forest Council","00MA","Substance Misuse","Drug misuse in adults","DAAT Public Health (Berkshire)","Contracted Services",31/12/2019 00:00:00,"6698903",798.79,"BOOTS (WINDSOR)"
"Bracknell Forest Council","http://opendatacommunities.org/id/unitary-authority/bracknell-forest","Bracknell Forest Council","00MA","Substance Misuse","Drug misuse in adults","SM Residential Placements","Contracted Services",25/02/2020 00:00:00,"6701092",8170,"BOSENCE FARM COMMUNITY LTD"
"Bracknell Forest Council","http://opendatacommunities.org/id/unitary-authority/bracknell-forest","Bracknell Forest Council","00MA","Children Looked After","Other services for LAC","LAC- Over 11s Expenditure","Contracted Services",12/12/2019 00:00:00,"6695291",1430,"BOURNEMOUTH CHRISTCHURCH AND POOLE COUNCIL"
"Bracknell Forest Council","http://opendatacommunities.org/id/unitary-authority/bracknell-forest","Bracknell Forest Council","00MA","Management and Support Services - CYPL","Unallocated High Needs Related Expenditure","Mainstream - Element 3 top up non BFC pre 16","Other Local Authorities",02/11/2019 00:00:00,"6694600",19990,"BOWDEN HOUSE SCHOOL"
"Bracknell Forest Council","http://opendatacommunities.org/id/unitary-authority/bracknell-forest","Bracknell Forest Council","00MA","Central Support Services - COF","Finance","Technical Accountancy","Other Fees for Bought-in Services",28/02/2020 00:00:00,"6699883",608.28,"BOX-IT DOCUMENT SOLUTIONS LIMITED"
"Bracknell Forest Council","http://opendatacommunities.org/id/unitary-authority/bracknell-forest","Bracknell Forest Council","00MA","Older People (65+)","Long Term Support - Community:Supported Living","LD Older People 65+ Long Term Support - Community:Supported Living","Contracted Services",30/01/2020 00:00:00,"30370589",1938.3,"BOYN GROVE COMMUNITY RESOURCE CENTRE"
"Bracknell Forest Council","http://opendatacommunities.org/id/unitary-authority/bracknell-forest","Bracknell Forest Council","00MA","Substance Misuse","Drug misuse in adults","SM Operational Costs","Other Fees for Bought-in Services",06/01/2020 00:00:00,"6696011",2500,"BPC - BERKSHIRE PRIMARY CARE LTD"
"Bracknell Forest Council","http://opendatacommunities.org/id/unitary-authority/bracknell-forest","Bracknell Forest Council","00MA","Substance Misuse","Drug misuse in adults","SM Operational Costs","Other Fees for Bought-in Services",07/02/2020 00:00:00,"6698000",2500,"BPC - BERKSHIRE PRIMARY CARE LTD"
"Bracknell Forest Council","http://opendatacommunities.org/id/unitary-authority/bracknell-forest","Bracknell Forest Council","00MA","Substance Misuse","Drug misuse in adults","SM Operational Costs","Other Fees for Bought-in Services",06/01/2020 00:00:00,"6696097",2600,"BPC - BERKSHIRE PRIMARY CARE LTD"
"Bracknell Forest Council","http://opendatacommunities.org/id/unitary-authority/bracknell-forest","Bracknell Forest Council","00MA","Central Support Services - COF","Information Technology","Web Team","Licences",22/03/2020 00:00:00,"6700548",11900,"BPR LTD T/A WE ARE LEAN AND AGILE"
"Bracknell Forest Council","http://opendatacommunities.org/id/unitary-authority/bracknell-forest","Bracknell Forest Council","00MA","Planning Policy","Structure & Local Planning","Local Development framework","Consultants Fees",18/03/2020 00:00:00,"6700541",13800,"BPS CHARTERED SURVEYORS"
"Bracknell Forest Council","http://opendatacommunities.org/id/unitary-authority/bracknell-forest","Bracknell Forest Council","00MA","Management and Support Services - CYPL","Holding Codes - net nil","The Brakenhale Academy","Government Grants",06/03/2020 00:00:00,"6699599",1870.13,"BRACKENHALE ACADEMY"
"Bracknell Forest Council","http://opendatacommunities.org/id/unitary-authority/bracknell-forest","Bracknell Forest Council","00MA","Management and Support Services - CYPL","Unallocated High Needs Related Expenditure","Mainstream - Element 3 top up BFC Academy pre 16","Contracted Services",16/12/2019 00:00:00,"6694868",20133.99,"BRACKENHALE ACADEMY"
"Bracknell Forest Council","http://opendatacommunities.org/id/unitary-authority/bracknell-forest","Bracknell Forest Council","00MA","Management and Support Services - CYPL","Schools Block Centrally Managed","LMS Contingency - centrally managed","Contracted Services",16/12/2019 00:00:00,"6694868",12471.44,"BRACKENHALE ACADEMY"
"Bracknell Forest Council","http://opendatacommunities.org/id/unitary-authority/bracknell-forest","Bracknell Forest Council","00MA","Management and Support Services - CYPL","Unallocated High Needs Related Expenditure","Mainstream - Element 3 top up BFC Academy pre 16","Contracted Services",06/03/2020 00:00:00,"6699599",24404.14,"BRACKENHALE ACADEMY"
"Bracknell Forest Council","http://opendatacommunities.org/id/unitary-authority/bracknell-forest","Bracknell Forest Council","00MA","Management and Support Services - CYPL","Schools Block Centrally Managed","LMS Contingency - centrally managed","Contracted Services",06/03/2020 00:00:00,"6699599",12471.42,"BRACKENHALE ACADEMY"
"Bracknell Forest Council","http://opendatacommunities.org/id/unitary-authority/bracknell-forest","Bracknell Forest Council","00MA","Business Support","Premises Development","Tennis Centre","Land-Rents Payable",02/12/2019 00:00:00,"6694071",36562.5,"BRACKNELL ONE LTD & BRACKNELL TWO LTD"
"Bracknell Forest Council","http://opendatacommunities.org/id/unitary-authority/bracknell-forest","Bracknell Forest Council","00MA","Business Support","Premises Development","Tennis Centre","Land-Rents Payable",26/02/2020 00:00:00,"6699270",36562.5,"BRACKNELL ONE LTD & BRACKNELL TWO LTD"
"Bracknell Forest Council","http://opendatacommunities.org/id/unitary-authority/bracknell-forest","Bracknell Forest Council","00MA","Culture and Heritage","Heritage Museums & Galleries","The Look Out - Catering","R&M - Service Contracts",03/12/2019 00:00:00,"6695658",605.9,"BRACKNELL PERSONNEL SERVICES"
"Bracknell Forest Council","http://opendatacommunities.org/id/unitary-authority/bracknell-forest","Bracknell Forest Council","00MA","Culture and Heritage","Heritage Museums & Galleries","The Look Out - Catering","R&M - Service Contracts",05/11/2019 00:00:00,"6697603",768.77,"BRACKNELL PERSONNEL SERVICES"
"Bracknell Forest Council","http://opendatacommunities.org/id/unitary-authority/bracknell-forest","Bracknell Forest Council","00MA","Culture and Heritage","Heritage Museums & Galleries","The Look Out - Catering","R&M - Service Contracts",21/01/2020 00:00:00,"6698012",941.42,"BRACKNELL PERSONNEL SERVICES"
"Bracknell Forest Council","http://opendatacommunities.org/id/unitary-authority/bracknell-forest","Bracknell Forest Council","00MA","Culture and Heritage","Heritage Museums & Galleries","The Look Out - Catering","R&M - Service Contracts",05/02/2020 00:00:00,"6698138",534.25,"BRACKNELL PERSONNEL SERVICES"
"Bracknell Forest Council","http://opendatacommunities.org/id/unitary-authority/bracknell-forest","Bracknell Forest Council","00MA","Culture and Heritage","Heritage Museums & Galleries","The Look Out - Catering","Other Fees for Bought-in Services",24/02/2020 00:00:00,"6699475",853.48,"BRACKNELL PERSONNEL SERVICES"
"Bracknell Forest Council","http://opendatacommunities.org/id/unitary-authority/bracknell-forest","Bracknell Forest Council","00MA","General Grants, Bequests & Donations","General Grants, Bequests & Donations","Performance & Partnerships","Grants and Donations",27/12/2019 00:00:00,"6693669",2450,"BRACKNELL SHOPMOBILITY"
"Bracknell Forest Council","http://opendatacommunities.org/id/unitary-authority/bracknell-forest","Bracknell Forest Council","00MA","General Grants, Bequests & Donations","General Grants, Bequests & Donations","Performance & Partnerships","Grants and Donations",01/04/2020 00:00:00,"6701393",2450,"BRACKNELL SHOPMOBILITY"
"Bracknell Forest Council","http://opendatacommunities.org/id/unitary-authority/bracknell-forest","Bracknell Forest Council","00MA","","","Structural Maintenance of Bridges","Construction - Other Direct Expenses",23/12/2019 00:00:00,"6695830",636,"BRACKNELL TOWN COUNCIL"
"Bracknell Forest Council","http://opendatacommunities.org/id/unitary-authority/bracknell-forest","Bracknell Forest Council","00MA","Central Support Services - COF","Information Technology","Business Intelligence","Computer Software Maintenance",31/03/2020 00:00:00,"6701232",10500,"BRAMBLE HUB LTD"
"Bracknell Forest Council","http://opendatacommunities.org/id/unitary-authority/bracknell-forest","Bracknell Forest Council","00MA","Other Education and Community Budget","Service strategy and other education functions","Governor Services","Other Fees for Bought-in Services",23/01/2020 00:00:00,"6697632",687.8,"BREAKING THE SILENCE"
"Bracknell Forest Council","http://opendatacommunities.org/id/unitary-authority/bracknell-forest","Bracknell Forest Council","00MA","Other Education and Community Budget","Service strategy and other education functions","Standards and Effectiveness","Consultants Fees",10/01/2020 00:00:00,"6697539",1500,"REDACT PERSONAL INFORMATION"
"Bracknell Forest Council","http://opendatacommunities.org/id/unitary-authority/bracknell-forest","Bracknell Forest Council","00MA","Social Support - Support for Carer","Social Support - Support for Carer","Social Support - Support for Carer","Direct Payments to Clients",27/02/2020 00:00:00,"30372166",550,"REDACT PERSONAL INFORMATION"
"Bracknell Forest Council","http://opendatacommunities.org/id/unitary-authority/bracknell-forest","Bracknell Forest Council","00MA","Libraries","Stock Ordering, Cataloguing & Distribution","Library Book Fund","Audio/Visual materials",08/01/2020 00:00:00,"6701183",7592,"BRIDGEALL LIBARIES LTD"
"Bracknell Forest Council","http://opendatacommunities.org/id/unitary-authority/bracknell-forest","Bracknell Forest Council","00MA","Older People (65+)","Long term Support - Community:Homecare","MC Older People 65+ Long Term Support - Community:Homecare","Contracted Services",09/01/2020 00:00:00,"30369492",508.08,"BRIGHT SPARK CARE LIMITED"
"Bracknell Forest Council","http://opendatacommunities.org/id/unitary-authority/bracknell-forest","Bracknell Forest Council","00MA","Older People (65+)","Long term Support - Community:Homecare","PS Older People 65+ Long Term Support - Community:Homecare","Contracted Services",02/04/2020 00:00:00,"30374576",547.5,"BRIGHT SPARK CARE LIMITED"
"Bracknell Forest Council","http://opendatacommunities.org/id/unitary-authority/bracknell-forest","Bracknell Forest Council","00MA","Older People (65+)","Long term Support - Community:Homecare","PS Older People 65+ Long Term Support - Community:Homecare","Contracted Services",09/01/2020 00:00:00,"30369492",569.4,"BRIGHT SPARK CARE LIMITED"
"Bracknell Forest Council","http://opendatacommunities.org/id/unitary-authority/bracknell-forest","Bracknell Forest Council","00MA","Adults (18-64)","Long term Support - Community:Homecare","LD Adults 18-64 Long Term Support - Community:Homecare","Contracted Services",05/12/2019 00:00:00,"30367799",578.16,"BRIGHT SPARK CARE LIMITED"
"Bracknell Forest Council","http://opendatacommunities.org/id/unitary-authority/bracknell-forest","Bracknell Forest Council","00MA","Older People (65+)","Long term Support - Community:Homecare","PS Older People 65+ Long Term Support - Community:Homecare","Contracted Services",06/02/2020 00:00:00,"30371163",591.3,"BRIGHT SPARK CARE LIMITED"
"Bracknell Forest Council","http://opendatacommunities.org/id/unitary-authority/bracknell-forest","Bracknell Forest Council","00MA","Older People (65+)","Long term Support - Community:Homecare","MC Older People 65+ Long Term Support - Community:Homecare","Contracted Services",02/04/2020 00:00:00,"30374576",591.55,"BRIGHT SPARK CARE LIMITED"
"Bracknell Forest Council","http://opendatacommunities.org/id/unitary-authority/bracknell-forest","Bracknell Forest Council","00MA","Older People (65+)","Long term Support - Community:Homecare","PS Older People 65+ Long Term Support - Community:Homecare","Contracted Services",05/12/2019 00:00:00,"30367799",613.2,"BRIGHT SPARK CARE LIMITED"
"Bracknell Forest Council","http://opendatacommunities.org/id/unitary-authority/bracknell-forest","Bracknell Forest Council","00MA","Older People (65+)","Long term Support - Community:Homecare","PS Older People 65+ Long Term Support - Community:Homecare","Contracted Services",05/12/2019 00:00:00,"30367799",613.2,"BRIGHT SPARK CARE LIMITED"
"Bracknell Forest Council","http://opendatacommunities.org/id/unitary-authority/bracknell-forest","Bracknell Forest Council","00MA","Older People (65+)","Long term Support - Community:Homecare","MC Older People 65+ Long Term Support - Community:Homecare","Contracted Services",27/02/2020 00:00:00,"30372165",613.2,"BRIGHT SPARK CARE LIMITED"
"Bracknell Forest Council","http://opendatacommunities.org/id/unitary-authority/bracknell-forest","Bracknell Forest Council","00MA","Older People (65+)","Long term Support - Community:Homecare","PS Older People 65+ Long Term Support - Community:Homecare","Contracted Services",27/02/2020 00:00:00,"30372165",613.2,"BRIGHT SPARK CARE LIMITED"
"Bracknell Forest Council","http://opendatacommunities.org/id/unitary-authority/bracknell-forest","Bracknell Forest Council","00MA","Older People (65+)","Long term Support - Community:Homecare","PS Older People 65+ Long Term Support - Community:Homecare","Contracted Services",09/01/2020 00:00:00,"30369492",635.1,"BRIGHT SPARK CARE LIMITED"
"Bracknell Forest Council","http://opendatacommunities.org/id/unitary-authority/bracknell-forest","Bracknell Forest Council","00MA","Adults (18-64)","Long term Support - Community:Homecare","LD Adults 18-64 Long Term Support - Community:Homecare","Contracted Services",09/01/2020 00:00:00,"30369492",657,"BRIGHT SPARK CARE LIMITED"
"Bracknell Forest Council","http://opendatacommunities.org/id/unitary-authority/bracknell-forest","Bracknell Forest Council","00MA","Older People (65+)","Long term Support - Community:Homecare","PS Older People 65+ Long Term Support - Community:Homecare","Contracted Services",06/02/2020 00:00:00,"30371163",674.52,"BRIGHT SPARK CARE LIMITED"
"Bracknell Forest Council","http://opendatacommunities.org/id/unitary-authority/bracknell-forest","Bracknell Forest Council","00MA","Older People (65+)","Long term Support - Community:Homecare","PS Older People 65+ Long Term Support - Community:Homecare","Contracted Services",05/12/2019 00:00:00,"30367799",700.8,"BRIGHT SPARK CARE LIMITED"
"Bracknell Forest Council","http://opendatacommunities.org/id/unitary-authority/bracknell-forest","Bracknell Forest Council","00MA","Older People (65+)","Long term Support - Community:Homecare","PS Older People 65+ Long Term Support - Community:Homecare","Contracted Services",27/02/2020 00:00:00,"30372165",700.8,"BRIGHT SPARK CARE LIMITED"
"Bracknell Forest Council","http://opendatacommunities.org/id/unitary-authority/bracknell-forest","Bracknell Forest Council","00MA","Older People (65+)","Long term Support - Community:Homecare","PS Older People 65+ Long Term Support - Community:Homecare","Contracted Services",02/04/2020 00:00:00,"30374576",700.8,"BRIGHT SPARK CARE LIMITED"
"Bracknell Forest Council","http://opendatacommunities.org/id/unitary-authority/bracknell-forest","Bracknell Forest Council","00MA","Older People (65+)","Long term Support - Community:Homecare","PS Older People 65+ Long Term Support - Community:Homecare","Contracted Services",09/01/2020 00:00:00,"30369492",716.13,"BRIGHT SPARK CARE LIMITED"
"Bracknell Forest Council","http://opendatacommunities.org/id/unitary-authority/bracknell-forest","Bracknell Forest Council","00MA","Older People (65+)","Long term Support - Community:Homecare","PS Older People 65+ Long Term Support - Community:Homecare","Contracted Services",09/01/2020 00:00:00,"30369492",727.08,"BRIGHT SPARK CARE LIMITED"
"Bracknell Forest Council","http://opendatacommunities.org/id/unitary-authority/bracknell-forest","Bracknell Forest Council","00MA","Older People (65+)","Long term Support - Community:Homecare","PS Older People 65+ Long Term Support - Community:Homecare","Contracted Services",06/02/2020 00:00:00,"30371163",735.84,"BRIGHT SPARK CARE LIMITED"
"Bracknell Forest Council","http://opendatacommunities.org/id/unitary-authority/bracknell-forest","Bracknell Forest Council","00MA","Older People (65+)","Long term Support - Community:Homecare","PS Older People 65+ Long Term Support - Community:Homecare","Contracted Services",27/02/2020 00:00:00,"30372165",735.84,"BRIGHT SPARK CARE LIMITED"
"Bracknell Forest Council","http://opendatacommunities.org/id/unitary-authority/bracknell-forest","Bracknell Forest Council","00MA","Older People (65+)","Long term Support - Community:Homecare","PS Older People 65+ Long Term Support - Community:Homecare","Contracted Services",02/04/2020 00:00:00,"30374576",735.84,"BRIGHT SPARK CARE LIMITED"
"Bracknell Forest Council","http://opendatacommunities.org/id/unitary-authority/bracknell-forest","Bracknell Forest Council","00MA","Older People (65+)","Long term Support - Community:Homecare","PS Older People 65+ Long Term Support - Community:Homecare","Contracted Services",05/12/2019 00:00:00,"30367799",735.84,"BRIGHT SPARK CARE LIMITED"
"Bracknell Forest Council","http://opendatacommunities.org/id/unitary-authority/bracknell-forest","Bracknell Forest Council","00MA","Adults (18-64)","Long term Support - Community:Homecare","LD Adults 18-64 Long Term Support - Community:Homecare","Contracted Services",06/02/2020 00:00:00,"30371163",788.4,"BRIGHT SPARK CARE LIMITED"
"Bracknell Forest Council","http://opendatacommunities.org/id/unitary-authority/bracknell-forest","Bracknell Forest Council","00MA","Older People (65+)","Long term Support - Community:Homecare","PS Older People 65+ Long Term Support - Community:Homecare","Contracted Services",06/02/2020 00:00:00,"30371163",858.48,"BRIGHT SPARK CARE LIMITED"
"Bracknell Forest Council","http://opendatacommunities.org/id/unitary-authority/bracknell-forest","Bracknell Forest Council","00MA","Older People (65+)","Long term Support - Community:Homecare","PS Older People 65+ Long Term Support - Community:Homecare","Contracted Services",27/02/2020 00:00:00,"30372165",858.48,"BRIGHT SPARK CARE LIMITED"
"Bracknell Forest Council","http://opendatacommunities.org/id/unitary-authority/bracknell-forest","Bracknell Forest Council","00MA","Older People (65+)","Long term Support - Community:Homecare","LD Older People 65+ Long Term Support - Community:Homecare","Contracted Services",05/12/2019 00:00:00,"30367799",876,"BRIGHT SPARK CARE LIMITED"
"Bracknell Forest Council","http://opendatacommunities.org/id/unitary-authority/bracknell-forest","Bracknell Forest Council","00MA","Older People (65+)","Long term Support - Community:Homecare","MC Older People 65+ Long Term Support - Community:Homecare","Contracted Services",05/12/2019 00:00:00,"30367799",981.12,"BRIGHT SPARK CARE LIMITED"
"Bracknell Forest Council","http://opendatacommunities.org/id/unitary-authority/bracknell-forest","Bracknell Forest Council","00MA","Older People (65+)","Long term Support - Community:Homecare","MC Older People 65+ Long Term Support - Community:Homecare","Contracted Services",09/01/2020 00:00:00,"30369492",1016.4,"BRIGHT SPARK CARE LIMITED"
"Bracknell Forest Council","http://opendatacommunities.org/id/unitary-authority/bracknell-forest","Bracknell Forest Council","00MA","Older People (65+)","Long term Support - Community:Homecare","MC Older People 65+ Long Term Support - Community:Homecare","Contracted Services",09/01/2020 00:00:00,"30369492",1029.3,"BRIGHT SPARK CARE LIMITED"
"Bracknell Forest Council","http://opendatacommunities.org/id/unitary-authority/bracknell-forest","Bracknell Forest Council","00MA","Older People (65+)","Long term Support - Community:Homecare","MC Older People 65+ Long Term Support - Community:Homecare","Contracted Services",06/02/2020 00:00:00,"30371163",1077.72,"BRIGHT SPARK CARE LIMITED"
"Bracknell Forest Council","http://opendatacommunities.org/id/unitary-authority/bracknell-forest","Bracknell Forest Council","00MA","Older People (65+)","Long term Support - Community:Homecare","MC Older People 65+ Long Term Support - Community:Homecare","Contracted Services",05/12/2019 00:00:00,"30367799",1077.72,"BRIGHT SPARK CARE LIMITED"
"Bracknell Forest Council","http://opendatacommunities.org/id/unitary-authority/bracknell-forest","Bracknell Forest Council","00MA","Older People (65+)","Long term Support - Community:Homecare","MC Older People 65+ Long Term Support - Community:Homecare","Contracted Services",02/04/2020 00:00:00,"30374576",1077.72,"BRIGHT SPARK CARE LIMITED"
"Bracknell Forest Council","http://opendatacommunities.org/id/unitary-authority/bracknell-forest","Bracknell Forest Council","00MA","Older People (65+)","Long term Support - Community:Homecare","MC Older People 65+ Long Term Support - Community:Homecare","Contracted Services",27/02/2020 00:00:00,"30372165",1077.72,"BRIGHT SPARK CARE LIMITED"
"Bracknell Forest Council","http://opendatacommunities.org/id/unitary-authority/bracknell-forest","Bracknell Forest Council","00MA","Adults (18-64)","Long term Support - Community:Homecare","MH Adults 18-64 Long Term Support - Community:Homecare","Contracted Services",09/01/2020 00:00:00,"30369492",1086.24,"BRIGHT SPARK CARE LIMITED"
"Bracknell Forest Council","http://opendatacommunities.org/id/unitary-authority/bracknell-forest","Bracknell Forest Council","00MA","Adults (18-64)","Long term Support - Community:Homecare","MH Adults 18-64 Long Term Support - Community:Homecare","Contracted Services",02/04/2020 00:00:00,"30374576",1103.76,"BRIGHT SPARK CARE LIMITED"
"Bracknell Forest Council","http://opendatacommunities.org/id/unitary-authority/bracknell-forest","Bracknell Forest Council","00MA","Adults (18-64)","Long term Support - Community:Homecare","MH Adults 18-64 Long Term Support - Community:Homecare","Contracted Services",06/02/2020 00:00:00,"30371163",1121.28,"BRIGHT SPARK CARE LIMITED"
"Bracknell Forest Council","http://opendatacommunities.org/id/unitary-authority/bracknell-forest","Bracknell Forest Council","00MA","Adults (18-64)","Long term Support - Community:Homecare","MH Adults 18-64 Long Term Support - Community:Homecare","Contracted Services",05/12/2019 00:00:00,"30367799",1121.28,"BRIGHT SPARK CARE LIMITED"
"Bracknell Forest Council","http://opendatacommunities.org/id/unitary-authority/bracknell-forest","Bracknell Forest Council","00MA","Adults (18-64)","Long term Support - Community:Homecare","MH Adults 18-64 Long Term Support - Community:Homecare","Contracted Services",27/02/2020 00:00:00,"30372165",1121.28,"BRIGHT SPARK CARE LIMITED"
"Bracknell Forest Council","http://opendatacommunities.org/id/unitary-authority/bracknell-forest","Bracknell Forest Council","00MA","Older People (65+)","Long term Support - Community:Homecare","MC Older People 65+ Long Term Support - Community:Homecare","Contracted Services",02/04/2020 00:00:00,"30374576",1217.64,"BRIGHT SPARK CARE LIMITED"
"Bracknell Forest Council","http://opendatacommunities.org/id/unitary-authority/bracknell-forest","Bracknell Forest Council","00MA","Older People (65+)","Long term Support - Community:Homecare","MC Older People 65+ Long Term Support - Community:Homecare","Contracted Services",06/02/2020 00:00:00,"30371163",1226.4,"BRIGHT SPARK CARE LIMITED"
"Bracknell Forest Council","http://opendatacommunities.org/id/unitary-authority/bracknell-forest","Bracknell Forest Council","00MA","Older People (65+)","Long term Support - Community:Homecare","MC Older People 65+ Long Term Support - Community:Homecare","Contracted Services",27/02/2020 00:00:00,"30372165",1226.4,"BRIGHT SPARK CARE LIMITED"
"Bracknell Forest Council","http://opendatacommunities.org/id/unitary-authority/bracknell-forest","Bracknell Forest Council","00MA","Adults (18-64)","Long term Support - Community:Homecare","PS Adults 18-64 Long Term Support - Community:Homecare","Contracted Services",05/12/2019 00:00:00,"30367799",1243.92,"BRIGHT SPARK CARE LIMITED"
"Bracknell Forest Council","http://opendatacommunities.org/id/unitary-authority/bracknell-forest","Bracknell Forest Council","00MA","Older People (65+)","Long term Support - Community:Homecare","MC Older People 65+ Long Term Support - Community:Homecare","Contracted Services",02/04/2020 00:00:00,"30374576",1296.48,"BRIGHT SPARK CARE LIMITED"
"Bracknell Forest Council","http://opendatacommunities.org/id/unitary-authority/bracknell-forest","Bracknell Forest Council","00MA","Older People (65+)","Long term Support - Community:Homecare","PS Older People 65+ Long Term Support - Community:Homecare","Contracted Services",09/01/2020 00:00:00,"30369492",1427.88,"BRIGHT SPARK CARE LIMITED"
"Bracknell Forest Council","http://opendatacommunities.org/id/unitary-authority/bracknell-forest","Bracknell Forest Council","00MA","Older People (65+)","Long term Support - Community:Homecare","PS Older People 65+ Long Term Support - Community:Homecare","Contracted Services",02/04/2020 00:00:00,"30374576",1471.68,"BRIGHT SPARK CARE LIMITED"
"Bracknell Forest Council","http://opendatacommunities.org/id/unitary-authority/bracknell-forest","Bracknell Forest Council","00MA","Older People (65+)","Long term Support - Community:Homecare","PS Older People 65+ Long Term Support - Community:Homecare","Contracted Services",27/02/2020 00:00:00,"30372165",1471.68,"BRIGHT SPARK CARE LIMITED"
"Bracknell Forest Council","http://opendatacommunities.org/id/unitary-authority/bracknell-forest","Bracknell Forest Council","00MA","Older People (65+)","Long term Support - Community:Homecare","PS Older People 65+ Long Term Support - Community:Homecare","Contracted Services",06/02/2020 00:00:00,"30371163",1752,"BRIGHT SPARK CARE LIMITED"
"Bracknell Forest Council","http://opendatacommunities.org/id/unitary-authority/bracknell-forest","Bracknell Forest Council","00MA","Adults (18-64)","Long term Support - Community:Homecare","PS Adults 18-64 Long Term Support - Community:Homecare","Contracted Services",02/04/2020 00:00:00,"30374576",1935.96,"BRIGHT SPARK CARE LIMITED"
"Bracknell Forest Council","http://opendatacommunities.org/id/unitary-authority/bracknell-forest","Bracknell Forest Council","00MA","Adults (18-64)","Long term Support - Community:Homecare","PS Adults 18-64 Long Term Support - Community:Homecare","Contracted Services",27/02/2020 00:00:00,"30372165",1962.24,"BRIGHT SPARK CARE LIMITED"
"Bracknell Forest Council","http://opendatacommunities.org/id/unitary-authority/bracknell-forest","Bracknell Forest Council","00MA","Adults (18-64)","Long term Support - Community:Homecare","PS Adults 18-64 Long Term Support - Community:Homecare","Contracted Services",06/02/2020 00:00:00,"30371163",1962.24,"BRIGHT SPARK CARE LIMITED"
"Bracknell Forest Council","http://opendatacommunities.org/id/unitary-authority/bracknell-forest","Bracknell Forest Council","00MA","Older People (65+)","Long term Support - Community:Homecare","MC Older People 65+ Long Term Support - Community:Homecare","Contracted Services",06/02/2020 00:00:00,"30371163",1240,"A&T CARING SERVICES"
"Bracknell Forest Council","http://opendatacommunities.org/id/unitary-authority/bracknell-forest","Bracknell Forest Council","00MA","Older People (65+)","Long term Support - Community:Homecare","MC Older People 65+ Long Term Support - Community:Homecare","Contracted Services",27/02/2020 00:00:00,"30372165",1265.6,"A&T CARING SERVICES"
"Bracknell Forest Council","http://opendatacommunities.org/id/unitary-authority/bracknell-forest","Bracknell Forest Council","00MA","Older People (65+)","Long term Support - Community:Homecare","MC Older People 65+ Long Term Support - Community:Homecare","Contracted Services",06/02/2020 00:00:00,"30371163",1274.64,"A&T CARING SERVICES"
"Bracknell Forest Council","http://opendatacommunities.org/id/unitary-authority/bracknell-forest","Bracknell Forest Council","00MA","Older People (65+)","Long Term Support - Community:Supported Living","MC Older People 65+ Long Term Support - Community:Supported Living","Contracted Services",09/01/2020 00:00:00,"30369492",3840,"A&T CARING SERVICES"
"Bracknell Forest Council","http://opendatacommunities.org/id/unitary-authority/bracknell-forest","Bracknell Forest Council","00MA","Older People (65+)","Long Term Support - Community:Supported Living","MC Older People 65+ Long Term Support - Community:Supported Living","Contracted Services",12/12/2019 00:00:00,"30368129",3840,"A&T CARING SERVICES"
"Bracknell Forest Council","http://opendatacommunities.org/id/unitary-authority/bracknell-forest","Bracknell Forest Council","00MA","Older People (65+)","Long Term Support - Community:Supported Living","PS Older People 65+ Long Term Support - Community:Supported Living","Contracted Services",09/01/2020 00:00:00,"30369492",4600,"A&T CARING SERVICES"
"Bracknell Forest Council","http://opendatacommunities.org/id/unitary-authority/bracknell-forest","Bracknell Forest Council","00MA","Older People (65+)","Long Term Support - Community:Supported Living","PS Older People 65+ Long Term Support - Community:Supported Living","Contracted Services",19/03/2020 00:00:00,"30373494",4600,"A&T CARING SERVICES"
"Bracknell Forest Council","http://opendatacommunities.org/id/unitary-authority/bracknell-forest","Bracknell Forest Council","00MA","Older People (65+)","Long Term Support - Community:Supported Living","PS Older People 65+ Long Term Support - Community:Supported Living","Contracted Services",19/03/2020 00:00:00,"30373494",4600,"A&T CARING SERVICES"
"Bracknell Forest Council","http://opendatacommunities.org/id/unitary-authority/bracknell-forest","Bracknell Forest Council","00MA","Adults (18-64)","Long term Support - Residential","MH Adults 18-64 Long Term Support - Residential","Contracted Services",19/03/2020 00:00:00,"30373495",5008.4,"2 CARE"
"Bracknell Forest Council","http://opendatacommunities.org/id/unitary-authority/bracknell-forest","Bracknell Forest Council","00MA","Adults (18-64)","Long term Support - Residential","MH Adults 18-64 Long Term Support - Residential","Contracted Services",24/12/2019 00:00:00,"30368706",5008.4,"2 CARE"
"Bracknell Forest Council","http://opendatacommunities.org/id/unitary-authority/bracknell-forest","Bracknell Forest Council","00MA","Adults (18-64)","Long term Support - Residential","MH Adults 18-64 Long Term Support - Residential","Contracted Services",23/01/2020 00:00:00,"30370176",5008.4,"2 CARE"
"Bracknell Forest Council","http://opendatacommunities.org/id/unitary-authority/bracknell-forest","Bracknell Forest Council","00MA","Adults (18-64)","Long term Support - Residential","MH Adults 18-64 Long Term Support - Residential","Contracted Services",20/02/2020 00:00:00,"30371861",5008.4,"2 CARE"
"Bracknell Forest Council","http://opendatacommunities.org/id/unitary-authority/bracknell-forest","Bracknell Forest Council","00MA","Older People (65+)","Long term Support - Community:Homecare","PS Older People 65+ Long Term Support - Community:Homecare","Contracted Services",05/12/2019 00:00:00,"30367799",1962.24,"BRIGHT SPARK CARE LIMITED"
"Bracknell Forest Council","http://opendatacommunities.org/id/unitary-authority/bracknell-forest","Bracknell Forest Council","00MA","Older People (65+)","Long term Support - Community:Homecare","PS Older People 65+ Long Term Support - Community:Homecare","Contracted Services",09/01/2020 00:00:00,"30369492",2006.04,"BRIGHT SPARK CARE LIMITED"
"Bracknell Forest Council","http://opendatacommunities.org/id/unitary-authority/bracknell-forest","Bracknell Forest Council","00MA","Adults (18-64)","Long term Support - Community:Homecare","PS Adults 18-64 Long Term Support - Community:Homecare","Contracted Services",09/01/2020 00:00:00,"30369492",2032.32,"BRIGHT SPARK CARE LIMITED"
"Bracknell Forest Council","http://opendatacommunities.org/id/unitary-authority/bracknell-forest","Bracknell Forest Council","00MA","Older People (65+)","Long term Support - Community:Homecare","PS Older People 65+ Long Term Support - Community:Homecare","Contracted Services",05/12/2019 00:00:00,"30367799",2119.92,"BRIGHT SPARK CARE LIMITED"
"Bracknell Forest Council","http://opendatacommunities.org/id/unitary-authority/bracknell-forest","Bracknell Forest Council","00MA","Older People (65+)","Long term Support - Community:Homecare","PS Older People 65+ Long Term Support - Community:Homecare","Contracted Services",23/01/2020 00:00:00,"30370178",2190,"BRIGHT SPARK CARE LIMITED"
"Bracknell Forest Council","http://opendatacommunities.org/id/unitary-authority/bracknell-forest","Bracknell Forest Council","00MA","Older People (65+)","Long term Support - Community:Homecare","PS Older People 65+ Long Term Support - Community:Homecare","Contracted Services",27/02/2020 00:00:00,"30372165",2207.52,"BRIGHT SPARK CARE LIMITED"
"Bracknell Forest Council","http://opendatacommunities.org/id/unitary-authority/bracknell-forest","Bracknell Forest Council","00MA","Adults (18-64)","Long term Support - Community:Homecare","PS Adults 18-64 Long Term Support - Community:Homecare","Contracted Services",06/02/2020 00:00:00,"30371163",2207.52,"BRIGHT SPARK CARE LIMITED"
"Bracknell Forest Council","http://opendatacommunities.org/id/unitary-authority/bracknell-forest","Bracknell Forest Council","00MA","Older People (65+)","Long term Support - Community:Homecare","PS Older People 65+ Long Term Support - Community:Homecare","Contracted Services",06/02/2020 00:00:00,"30371163",2207.52,"BRIGHT SPARK CARE LIMITED"
"Bracknell Forest Council","http://opendatacommunities.org/id/unitary-authority/bracknell-forest","Bracknell Forest Council","00MA","Adults (18-64)","Long term Support - Community:Homecare","PS Adults 18-64 Long Term Support - Community:Homecare","Contracted Services",02/04/2020 00:00:00,"30374576",2207.52,"BRIGHT SPARK CARE LIMITED"
"Bracknell Forest Council","http://opendatacommunities.org/id/unitary-authority/bracknell-forest","Bracknell Forest Council","00MA","Older People (65+)","Long term Support - Community:Homecare","PS Older People 65+ Long Term Support - Community:Homecare","Contracted Services",27/02/2020 00:00:00,"30372165",2207.52,"BRIGHT SPARK CARE LIMITED"
"Bracknell Forest Council","http://opendatacommunities.org/id/unitary-authority/bracknell-forest","Bracknell Forest Council","00MA","Adults (18-64)","Long term Support - Community:Homecare","PS Adults 18-64 Long Term Support - Community:Homecare","Contracted Services",27/02/2020 00:00:00,"30372165",2207.52,"BRIGHT SPARK CARE LIMITED"
"Bracknell Forest Council","http://opendatacommunities.org/id/unitary-authority/bracknell-forest","Bracknell Forest Council","00MA","Transport Planning, Policy & Strategy","Transport Policy, Planning & Strategy","Transportation Planning","Equipment - R&M",23/01/2020 00:00:00,"6698815",630.45,"21ST CENTURY PASSENGER SSYSTEMS LIMITED"
"Bracknell Forest Council","http://opendatacommunities.org/id/unitary-authority/bracknell-forest","Bracknell Forest Council","00MA","Cemeteries, Crematoria & Mortuary Services","Cemeteries & Crematorium","Easthampstead Park Cemetery & Crematorium","Contracted Services",03/02/2020 00:00:00,"6697919",553.03,"2468 GROUP"
"Bracknell Forest Council","http://opendatacommunities.org/id/unitary-authority/bracknell-forest","Bracknell Forest Council","00MA","Parking Services","Off Street Parking","High Street Car Park","Banking Charges",31/10/2019 00:00:00,"6694513",523.04,"3C PAYMENT UK LTD"
"Bracknell Forest Council","http://opendatacommunities.org/id/unitary-authority/bracknell-forest","Bracknell Forest Council","00MA","Parking Services","Off Street Parking","High Street Car Park","Banking Charges",30/11/2019 00:00:00,"6694514",577.92,"3C PAYMENT UK LTD"
"Bracknell Forest Council","http://opendatacommunities.org/id/unitary-authority/bracknell-forest","Bracknell Forest Council","00MA","Parking Services","Off Street Parking","High Street Car Park","Banking Charges",31/12/2019 00:00:00,"6696100",785.92,"3C PAYMENT UK LTD"
"Bracknell Forest Council","http://opendatacommunities.org/id/unitary-authority/bracknell-forest","Bracknell Forest Council","00MA","Parking Services","Off Street Parking","Braccan Walk Car Park","Banking Charges",31/12/2019 00:00:00,"6696100",737.36,"3C PAYMENT UK LTD"
"Bracknell Forest Council","http://opendatacommunities.org/id/unitary-authority/bracknell-forest","Bracknell Forest Council","00MA","Parking Services","Off Street Parking","Braccan Walk Car Park","Banking Charges",31/10/2019 00:00:00,"6694513",521.28,"3C PAYMENT UK LTD"
"Bracknell Forest Council","http://opendatacommunities.org/id/unitary-authority/bracknell-forest","Bracknell Forest Council","00MA","Parking Services","Off Street Parking","Braccan Walk Car Park","Banking Charges",30/11/2019 00:00:00,"6694514",561.52,"3C PAYMENT UK LTD"
"Bracknell Forest Council","http://opendatacommunities.org/id/unitary-authority/bracknell-forest","Bracknell Forest Council","00MA","Parking Services","Off Street Parking","The Avenue Car Park","Banking Charges",31/10/2019 00:00:00,"6694513",4471.28,"3C PAYMENT UK LTD"
"Bracknell Forest Council","http://opendatacommunities.org/id/unitary-authority/bracknell-forest","Bracknell Forest Council","00MA","Parking Services","Off Street Parking","The Avenue Car Park","Banking Charges",30/11/2019 00:00:00,"6694514",4811.6,"3C PAYMENT UK LTD"
"Bracknell Forest Council","http://opendatacommunities.org/id/unitary-authority/bracknell-forest","Bracknell Forest Council","00MA","Parking Services","Off Street Parking","The Avenue Car Park","Banking Charges",29/02/2020 00:00:00,"6700196",4264.08,"3C PAYMENT UK LTD"
"Bracknell Forest Council","http://opendatacommunities.org/id/unitary-authority/bracknell-forest","Bracknell Forest Council","00MA","Parking Services","Off Street Parking","The Avenue Car Park","Banking Charges",31/12/2019 00:00:00,"6696100",6457.6,"3C PAYMENT UK LTD"
"Bracknell Forest Council","http://opendatacommunities.org/id/unitary-authority/bracknell-forest","Bracknell Forest Council","00MA","Parking Services","Off Street Parking","The Avenue Car Park","Banking Charges",31/01/2020 00:00:00,"6697865",4315.52,"3C PAYMENT UK LTD"
"Bracknell Forest Council","http://opendatacommunities.org/id/unitary-authority/bracknell-forest","Bracknell Forest Council","00MA","Parking Services","Off Street Parking","High Street Car Park","Banking Charges",29/02/2020 00:00:00,"6700196",544.72,"3C PAYMENT UK LTD"
"Bracknell Forest Council","http://opendatacommunities.org/id/unitary-authority/bracknell-forest","Bracknell Forest Council","00MA","Parking Services","Off Street Parking","High Street Car Park","Banking Charges",31/01/2020 00:00:00,"6697865",522.96,"3C PAYMENT UK LTD"
"Bracknell Forest Council","http://opendatacommunities.org/id/unitary-authority/bracknell-forest","Bracknell Forest Council","00MA","","","SPA Mitigation Strategy (S106)","Construction - Other Direct Expenses",16/02/2020 00:00:00,"6698606",1500,"3D WOOD"
"Bracknell Forest Council","http://opendatacommunities.org/id/unitary-authority/bracknell-forest","Bracknell Forest Council","00MA","","","SPA Mitigation Strategy (S106)","Construction - Other Direct Expenses",02/04/2020 00:00:00,"6701449",1500,"3D WOOD"
"Bracknell Forest Council","http://opendatacommunities.org/id/unitary-authority/bracknell-forest","Bracknell Forest Council","00MA","","","SANGS Facilitation","Construction - Other Direct Expenses",22/01/2020 00:00:00,"6697433",1500,"3D WOOD"
"Bracknell Forest Council","http://opendatacommunities.org/id/unitary-authority/bracknell-forest","Bracknell Forest Council","00MA","","","A322 Downshire Way Greening Works Programme","Other Direct Expenses",12/12/2019 00:00:00,"6694616",9300,"3D WOOD"
"Bracknell Forest Council","http://opendatacommunities.org/id/unitary-authority/bracknell-forest","Bracknell Forest Council","00MA","Family Support Services","Other support for disabled children","Disability Care Needs OT","Equipment - Purchase",04/03/2020 00:00:00,"6701065",4095,"A & B BUILDERS"
"Bracknell Forest Council","http://opendatacommunities.org/id/unitary-authority/bracknell-forest","Bracknell Forest Council","00MA","Older People (65+)","Long term Support - Community:Homecare","PS Older People 65+ Long Term Support - Community:Homecare","Contracted Services",12/03/2020 00:00:00,"30373162",632.8,"A&T CARING SERVICES"
"Bracknell Forest Council","http://opendatacommunities.org/id/unitary-authority/bracknell-forest","Bracknell Forest Council","00MA","Older People (65+)","Long term Support - Community:Homecare","PS Older People 65+ Long Term Support - Community:Homecare","Contracted Services",13/02/2020 00:00:00,"30371525",730.28,"A&T CARING SERVICES"
"Bracknell Forest Council","http://opendatacommunities.org/id/unitary-authority/bracknell-forest","Bracknell Forest Council","00MA","Older People (65+)","Long term Support - Community:Homecare","PS Older People 65+ Long Term Support - Community:Homecare","Contracted Services",16/01/2020 00:00:00,"30369841",759.36,"A&T CARING SERVICES"
"Bracknell Forest Council","http://opendatacommunities.org/id/unitary-authority/bracknell-forest","Bracknell Forest Council","00MA","Older People (65+)","Long term Support - Community:Homecare","PS Older People 65+ Long Term Support - Community:Homecare","Contracted Services",27/02/2020 00:00:00,"30372165",759.36,"A&T CARING SERVICES"
"Bracknell Forest Council","http://opendatacommunities.org/id/unitary-authority/bracknell-forest","Bracknell Forest Council","00MA","Older People (65+)","Long term Support - Community:Homecare","PS Older People 65+ Long Term Support - Community:Homecare","Contracted Services",26/03/2020 00:00:00,"30373878",759.36,"A&T CARING SERVICES"
"Bracknell Forest Council","http://opendatacommunities.org/id/unitary-authority/bracknell-forest","Bracknell Forest Council","00MA","Older People (65+)","Long term Support - Community:Homecare","PS Older People 65+ Long Term Support - Community:Homecare","Contracted Services",12/12/2019 00:00:00,"30368129",759.36,"A&T CARING SERVICES"
"Bracknell Forest Council","http://opendatacommunities.org/id/unitary-authority/bracknell-forest","Bracknell Forest Council","00MA","Older People (65+)","Long term Support - Community:Homecare","PS Older People 65+ Long Term Support - Community:Homecare","Contracted Services",06/02/2020 00:00:00,"30371163",759.68,"A&T CARING SERVICES"
"Bracknell Forest Council","http://opendatacommunities.org/id/unitary-authority/bracknell-forest","Bracknell Forest Council","00MA","Older People (65+)","Long term Support - Community:Homecare","PS Older People 65+ Long Term Support - Community:Homecare","Contracted Services",06/02/2020 00:00:00,"30371163",925.52,"A&T CARING SERVICES"
"Bracknell Forest Council","http://opendatacommunities.org/id/unitary-authority/bracknell-forest","Bracknell Forest Council","00MA","Older People (65+)","Long Term Support - Community:Supported Living","PS Older People 65+ Long Term Support - Community:Supported Living","Contracted Services",19/03/2020 00:00:00,"30373494",985.74,"A&T CARING SERVICES"
"Bracknell Forest Council","http://opendatacommunities.org/id/unitary-authority/bracknell-forest","Bracknell Forest Council","00MA","Adults (18-64)","Long term Support - Community:Homecare","PS Adults 18-64 Long Term Support - Community:Homecare","Contracted Services",05/12/2019 00:00:00,"30367799",2207.52,"BRIGHT SPARK CARE LIMITED"
"Bracknell Forest Council","http://opendatacommunities.org/id/unitary-authority/bracknell-forest","Bracknell Forest Council","00MA","Older People (65+)","Long term Support - Community:Homecare","PS Older People 65+ Long Term Support - Community:Homecare","Contracted Services",02/04/2020 00:00:00,"30374576",2208.49,"BRIGHT SPARK CARE LIMITED"
"Bracknell Forest Council","http://opendatacommunities.org/id/unitary-authority/bracknell-forest","Bracknell Forest Council","00MA","Adults (18-64)","Long term Support - Community:Homecare","PS Adults 18-64 Long Term Support - Community:Homecare","Contracted Services",09/01/2020 00:00:00,"30369492",2277.6,"BRIGHT SPARK CARE LIMITED"
"Bracknell Forest Council","http://opendatacommunities.org/id/unitary-authority/bracknell-forest","Bracknell Forest Council","00MA","Older People (65+)","Long term Support - Community:Homecare","PS Older People 65+ Long Term Support - Community:Homecare","Contracted Services",09/01/2020 00:00:00,"30369492",2286.36,"BRIGHT SPARK CARE LIMITED"
"Bracknell Forest Council","http://opendatacommunities.org/id/unitary-authority/bracknell-forest","Bracknell Forest Council","00MA","Children Looked After","Fostering services","Independent Fostering (Non BFBC)","Contracted Services",01/02/2020 00:00:00,"6698680",3148.53,"BRIGHTER FUTURES FOSTER CARE LTD"
"Bracknell Forest Council","http://opendatacommunities.org/id/unitary-authority/bracknell-forest","Bracknell Forest Council","00MA","Children Looked After","Fostering services","Independent Fostering (Non BFBC)","Contracted Services",01/03/2020 00:00:00,"6699547",3365.67,"BRIGHTER FUTURES FOSTER CARE LTD"
"Bracknell Forest Council","http://opendatacommunities.org/id/unitary-authority/bracknell-forest","Bracknell Forest Council","00MA","Children Looked After","Fostering services","Independent Fostering (Non BFBC)","Contracted Services",01/12/2019 00:00:00,"6695316",3365.67,"BRIGHTER FUTURES FOSTER CARE LTD"
"Bracknell Forest Council","http://opendatacommunities.org/id/unitary-authority/bracknell-forest","Bracknell Forest Council","00MA","Children Looked After","Fostering services","Independent Fostering (Non BFBC)","Contracted Services",01/01/2020 00:00:00,"6697415",3365.67,"BRIGHTER FUTURES FOSTER CARE LTD"
"Bracknell Forest Council","http://opendatacommunities.org/id/unitary-authority/bracknell-forest","Bracknell Forest Council","00MA","Children Looked After","Leaving care support services","Care Leavers Support","Contracted Services",09/12/2019 00:00:00,"6698336",1139.06,"BRIGHTER STEPS LTD"
"Bracknell Forest Council","http://opendatacommunities.org/id/unitary-authority/bracknell-forest","Bracknell Forest Council","00MA","Children Looked After","Other services for LAC","LAC - Semi Independent Living","Contracted Services",02/12/2019 00:00:00,"6694698",719.85,"BRIGHTER STEPS LTD"
"Bracknell Forest Council","http://opendatacommunities.org/id/unitary-authority/bracknell-forest","Bracknell Forest Council","00MA","Children Looked After","Leaving care support services","Care Leavers Support","Contracted Services",02/12/2019 00:00:00,"6694698",1799.65,"BRIGHTER STEPS LTD"
"Bracknell Forest Council","http://opendatacommunities.org/id/unitary-authority/bracknell-forest","Bracknell Forest Council","00MA","Children Looked After","Other services for LAC","LAC - Semi Independent Living","Contracted Services",26/11/2019 00:00:00,"6693958",1716,"BRIGHTER STEPS LTD"
"Bracknell Forest Council","http://opendatacommunities.org/id/unitary-authority/bracknell-forest","Bracknell Forest Council","00MA","Children Looked After","Other services for LAC","LAC - Semi Independent Living","Contracted Services",26/11/2019 00:00:00,"6693959",1984,"BRIGHTER STEPS LTD"
"Bracknell Forest Council","http://opendatacommunities.org/id/unitary-authority/bracknell-forest","Bracknell Forest Council","00MA","Older People (65+)","Long term Support - Community:Homecare","PS Older People 65+ Long Term Support - Community:Homecare","Contracted Services",16/01/2020 00:00:00,"30369841",994.4,"A&T CARING SERVICES"
"Bracknell Forest Council","http://opendatacommunities.org/id/unitary-authority/bracknell-forest","Bracknell Forest Council","00MA","Older People (65+)","Long term Support - Community:Homecare","PS Older People 65+ Long Term Support - Community:Homecare","Contracted Services",16/01/2020 00:00:00,"30369841",1012.48,"A&T CARING SERVICES"
"Bracknell Forest Council","http://opendatacommunities.org/id/unitary-authority/bracknell-forest","Bracknell Forest Council","00MA","Older People (65+)","Long term Support - Community:Homecare","PS Older People 65+ Long Term Support - Community:Homecare","Contracted Services",12/12/2019 00:00:00,"30368129",1012.48,"A&T CARING SERVICES"
"Bracknell Forest Council","http://opendatacommunities.org/id/unitary-authority/bracknell-forest","Bracknell Forest Council","00MA","Older People (65+)","Long term Support - Community:Homecare","PS Older People 65+ Long Term Support - Community:Homecare","Contracted Services",12/12/2019 00:00:00,"30368129",1012.48,"A&T CARING SERVICES"
"Bracknell Forest Council","http://opendatacommunities.org/id/unitary-authority/bracknell-forest","Bracknell Forest Council","00MA","Older People (65+)","Long term Support - Community:Homecare","PS Older People 65+ Long Term Support - Community:Homecare","Contracted Services",23/01/2020 00:00:00,"30370178",1148.08,"A&T CARING SERVICES"
"Bracknell Forest Council","http://opendatacommunities.org/id/unitary-authority/bracknell-forest","Bracknell Forest Council","00MA","Older People (65+)","Long Term Support - Community:Supported Living","PS Older People 65+ Long Term Support - Community:Supported Living","Contracted Services",19/03/2020 00:00:00,"30373494",1150,"A&T CARING SERVICES"
"Bracknell Forest Council","http://opendatacommunities.org/id/unitary-authority/bracknell-forest","Bracknell Forest Council","00MA","Older People (65+)","Long term Support - Community:Homecare","PS Older People 65+ Long Term Support - Community:Homecare","Contracted Services",23/01/2020 00:00:00,"30370178",1175.2,"A&T CARING SERVICES"
"Bracknell Forest Council","http://opendatacommunities.org/id/unitary-authority/bracknell-forest","Bracknell Forest Council","00MA","Older People (65+)","Long term Support - Community:Homecare","MC Older People 65+ Long Term Support - Community:Homecare","Contracted Services",06/02/2020 00:00:00,"30371163",1185.92,"A&T CARING SERVICES"
"Bracknell Forest Council","http://opendatacommunities.org/id/unitary-authority/bracknell-forest","Bracknell Forest Council","00MA","Older People (65+)","Long term Support - Community:Homecare","MC Older People 65+ Long Term Support - Community:Homecare","Contracted Services",26/03/2020 00:00:00,"30373878",1233.96,"A&T CARING SERVICES"
"Bracknell Forest Council","http://opendatacommunities.org/id/unitary-authority/bracknell-forest","Bracknell Forest Council","00MA","Older People (65+)","Long term Support - Community:Homecare","MC Older People 65+ Long Term Support - Community:Homecare","Contracted Services",06/02/2020 00:00:00,"30371163",1238.48,"A&T CARING SERVICES"
"Bracknell Forest Council","http://opendatacommunities.org/id/unitary-authority/bracknell-forest","Bracknell Forest Council","00MA","Culture and Heritage","Heritage Museums & Galleries","The Look Out","Equipment - R&M",07/02/2020 00:00:00,"6698398",1583,"ABACUS PLAYGROUNDS LIMITED"
"Bracknell Forest Council","http://opendatacommunities.org/id/unitary-authority/bracknell-forest","Bracknell Forest Council","00MA","Adults (18-64)","Long term Support - Residential","LD Adults 18-64 Long Term Support - Residential","Contracted Services",20/02/2020 00:00:00,"30371861",3039.04,"ABBEYFIELD LODGE NURSING HOME"
"Bracknell Forest Council","http://opendatacommunities.org/id/unitary-authority/bracknell-forest","Bracknell Forest Council","00MA","Older People (65+)","Long Term Support - Nursing","PS Older People 65+ Long Term Support - Nursing","Contracted Services",19/03/2020 00:00:00,"30373495",2435.72,"BRIGHTERKIND/THE BERKSHIRE CARE HOME"
"Bracknell Forest Council","http://opendatacommunities.org/id/unitary-authority/bracknell-forest","Bracknell Forest Council","00MA","Older People (65+)","Long Term Support - Nursing","PS Older People 65+ Long Term Support - Nursing","Contracted Services",20/02/2020 00:00:00,"30371861",2435.72,"BRIGHTERKIND/THE BERKSHIRE CARE HOME"
"Bracknell Forest Council","http://opendatacommunities.org/id/unitary-authority/bracknell-forest","Bracknell Forest Council","00MA","Older People (65+)","Long Term Support - Nursing","PS Older People 65+ Long Term Support - Nursing","Contracted Services",24/12/2019 00:00:00,"30368706",2435.72,"BRIGHTERKIND/THE BERKSHIRE CARE HOME"
"Bracknell Forest Council","http://opendatacommunities.org/id/unitary-authority/bracknell-forest","Bracknell Forest Council","00MA","Older People (65+)","Long Term Support - Nursing","PS Older People 65+ Long Term Support - Nursing","Contracted Services",23/01/2020 00:00:00,"30370176",2435.72,"BRIGHTERKIND/THE BERKSHIRE CARE HOME"
"Bracknell Forest Council","http://opendatacommunities.org/id/unitary-authority/bracknell-forest","Bracknell Forest Council","00MA","Older People (65+)","Long Term Support - Nursing","PS Older People 65+ Long Term Support - Nursing","Contracted Services",19/03/2020 00:00:00,"30373495",3400,"BRIGHTERKIND/THE BERKSHIRE CARE HOME"
"Bracknell Forest Council","http://opendatacommunities.org/id/unitary-authority/bracknell-forest","Bracknell Forest Council","00MA","Older People (65+)","Long Term Support - Nursing","PS Older People 65+ Long Term Support - Nursing","Contracted Services",24/12/2019 00:00:00,"30368706",3422.44,"BRIGHTERKIND/THE BERKSHIRE CARE HOME"
"Bracknell Forest Council","http://opendatacommunities.org/id/unitary-authority/bracknell-forest","Bracknell Forest Council","00MA","Older People (65+)","Long Term Support - Nursing","PS Older People 65+ Long Term Support - Nursing","Contracted Services",19/03/2020 00:00:00,"30373495",3422.44,"BRIGHTERKIND/THE BERKSHIRE CARE HOME"
"Bracknell Forest Council","http://opendatacommunities.org/id/unitary-authority/bracknell-forest","Bracknell Forest Council","00MA","Older People (65+)","Long Term Support - Nursing","PS Older People 65+ Long Term Support - Nursing","Contracted Services",23/01/2020 00:00:00,"30370176",3422.44,"BRIGHTERKIND/THE BERKSHIRE CARE HOME"
"Bracknell Forest Council","http://opendatacommunities.org/id/unitary-authority/bracknell-forest","Bracknell Forest Council","00MA","Older People (65+)","Long Term Support - Nursing","PS Older People 65+ Long Term Support - Nursing","Contracted Services",20/02/2020 00:00:00,"30371861",3422.44,"BRIGHTERKIND/THE BERKSHIRE CARE HOME"
"Bracknell Forest Council","http://opendatacommunities.org/id/unitary-authority/bracknell-forest","Bracknell Forest Council","00MA","Older People (65+)","Long Term Support - Nursing","PS Older People 65+ Long Term Support - Nursing","Contracted Services",19/03/2020 00:00:00,"30373495",3530.44,"BRIGHTERKIND/THE BERKSHIRE CARE HOME"
"Bracknell Forest Council","http://opendatacommunities.org/id/unitary-authority/bracknell-forest","Bracknell Forest Council","00MA","Older People (65+)","Long Term Support - Nursing","PS Older People 65+ Long Term Support - Nursing","Contracted Services",24/12/2019 00:00:00,"30368706",3530.44,"BRIGHTERKIND/THE BERKSHIRE CARE HOME"
"Bracknell Forest Council","http://opendatacommunities.org/id/unitary-authority/bracknell-forest","Bracknell Forest Council","00MA","Older People (65+)","Long Term Support - Nursing","PS Older People 65+ Long Term Support - Nursing","Contracted Services",20/02/2020 00:00:00,"30371861",3530.44,"BRIGHTERKIND/THE BERKSHIRE CARE HOME"
"Bracknell Forest Council","http://opendatacommunities.org/id/unitary-authority/bracknell-forest","Bracknell Forest Council","00MA","Adults (18-64)","Long term Support - Residential","LD Adults 18-64 Long Term Support - Residential","Contracted Services",23/01/2020 00:00:00,"30370176",3039.04,"ABBEYFIELD LODGE NURSING HOME"
"Bracknell Forest Council","http://opendatacommunities.org/id/unitary-authority/bracknell-forest","Bracknell Forest Council","00MA","Adults (18-64)","Long term Support - Residential","LD Adults 18-64 Long Term Support - Residential","Contracted Services",19/03/2020 00:00:00,"30373495",3039.04,"ABBEYFIELD LODGE NURSING HOME"
"Bracknell Forest Council","http://opendatacommunities.org/id/unitary-authority/bracknell-forest","Bracknell Forest Council","00MA","Adults (18-64)","Long term Support - Residential","LD Adults 18-64 Long Term Support - Residential","Contracted Services",24/12/2019 00:00:00,"30368706",3039.04,"ABBEYFIELD LODGE NURSING HOME"
"Bracknell Forest Council","http://opendatacommunities.org/id/unitary-authority/bracknell-forest","Bracknell Forest Council","00MA","Adults (18-64)","Long term Support - Residential","LD Adults 18-64 Long Term Support - Residential","Contracted Services",26/03/2020 00:00:00,"30373879",24721.76,"ABBEYFIELD LODGE NURSING HOME"
"Bracknell Forest Council","http://opendatacommunities.org/id/unitary-authority/bracknell-forest","Bracknell Forest Council","00MA","Older People (65+)","Long term Support - Residential","MC Older People 65+ Long Term Support - Residential","Contracted Services",19/03/2020 00:00:00,"30373495",2525.28,"ABERMILL CARE CENTRE"
"Bracknell Forest Council","http://opendatacommunities.org/id/unitary-authority/bracknell-forest","Bracknell Forest Council","00MA","Older People (65+)","Long term Support - Residential","MC Older People 65+ Long Term Support - Residential","Contracted Services",24/12/2019 00:00:00,"30368706",2525.28,"ABERMILL CARE CENTRE"
"Bracknell Forest Council","http://opendatacommunities.org/id/unitary-authority/bracknell-forest","Bracknell Forest Council","00MA","Older People (65+)","Long term Support - Residential","MC Older People 65+ Long Term Support - Residential","Contracted Services",20/02/2020 00:00:00,"30371861",2525.28,"ABERMILL CARE CENTRE"
"Bracknell Forest Council","http://opendatacommunities.org/id/unitary-authority/bracknell-forest","Bracknell Forest Council","00MA","Older People (65+)","Long term Support - Residential","MC Older People 65+ Long Term Support - Residential","Contracted Services",23/01/2020 00:00:00,"30370176",2525.28,"ABERMILL CARE CENTRE"
"Bracknell Forest Council","http://opendatacommunities.org/id/unitary-authority/bracknell-forest","Bracknell Forest Council","00MA","","","Meadow Vale Primary-MTC","Construction - Other Direct Expenses",17/09/2019 00:00:00,"6696969",4212,"ABLE CONTRACTS"
"Bracknell Forest Council","http://opendatacommunities.org/id/unitary-authority/bracknell-forest","Bracknell Forest Council","00MA","","","Pines Junior-MTC","Construction - Other Direct Expenses",25/02/2020 00:00:00,"6699918",7692,"ABLE CONTRACTS"
"Bracknell Forest Council","http://opendatacommunities.org/id/unitary-authority/bracknell-forest","Bracknell Forest Council","00MA","","","Wooden Hill Primary-MTC","Construction - Contract Payments",04/12/2019 00:00:00,"6695520",71790.23,"ABLE CONTRACTS"
"Bracknell Forest Council","http://opendatacommunities.org/id/unitary-authority/bracknell-forest","Bracknell Forest Council","00MA","Children Looked After","Fostering services","BFBC Fostering Allowances","Training Costs",12/11/2019 00:00:00,"60015992",1100,"AC EDUCATION LTD"
"Bracknell Forest Council","http://opendatacommunities.org/id/unitary-authority/bracknell-forest","Bracknell Forest Council","00MA","Commissioning & Service Delivery","Commissioning & Service Delivery","Training Support - Adult Social Care","Training Costs",21/02/2020 00:00:00,"6699096",717.6,"ACACIA TRAINING"
"Bracknell Forest Council","http://opendatacommunities.org/id/unitary-authority/bracknell-forest","Bracknell Forest Council","00MA","Management and Support Services - CYPL","Unallocated High Needs Related Expenditure","SEN Non LEA Provision Pre 16","Voluntary Sector Service Providers",30/09/2019 00:00:00,"6696226",5740,"ACADEMY21 LTD"
"Bracknell Forest Council","http://opendatacommunities.org/id/unitary-authority/bracknell-forest","Bracknell Forest Council","00MA","Adults (18-64)","Long Term Support - Nursing","Mental Health Support - Other Care & Support","Contracted Services",20/02/2020 00:00:00,"30371861",3031.6,"ACCOMPLISH / GROVE CARE HOME - TRACSCARE"
"Bracknell Forest Council","http://opendatacommunities.org/id/unitary-authority/bracknell-forest","Bracknell Forest Council","00MA","Adults (18-64)","Long Term Support - Nursing","Mental Health Support - Other Care & Support","Contracted Services",23/01/2020 00:00:00,"30370176",3031.6,"ACCOMPLISH / GROVE CARE HOME - TRACSCARE"
"Bracknell Forest Council","http://opendatacommunities.org/id/unitary-authority/bracknell-forest","Bracknell Forest Council","00MA","Adults (18-64)","Long Term Support - Nursing","Mental Health Support - Other Care & Support","Contracted Services",24/12/2019 00:00:00,"30368706",3031.6,"ACCOMPLISH / GROVE CARE HOME - TRACSCARE"
"Bracknell Forest Council","http://opendatacommunities.org/id/unitary-authority/bracknell-forest","Bracknell Forest Council","00MA","Adults (18-64)","Long Term Support - Nursing","Mental Health Support - Other Care & Support","Contracted Services",19/03/2020 00:00:00,"30373495",3031.6,"ACCOMPLISH / GROVE CARE HOME - TRACSCARE"
"Bracknell Forest Council","http://opendatacommunities.org/id/unitary-authority/bracknell-forest","Bracknell Forest Council","00MA","Adults (18-64)","Long term Support - Residential","MH Adults 18-64 Long Term Support - Residential","Contracted Services",19/03/2020 00:00:00,"30373495",5287.48,"ACCOMPLISH GROUP T/A PATHWAY HOUSE"
"Bracknell Forest Council","http://opendatacommunities.org/id/unitary-authority/bracknell-forest","Bracknell Forest Council","00MA","Adults (18-64)","Long term Support - Residential","MH Adults 18-64 Long Term Support - Residential","Contracted Services",20/02/2020 00:00:00,"30371861",5287.48,"ACCOMPLISH GROUP T/A PATHWAY HOUSE"
"Bracknell Forest Council","http://opendatacommunities.org/id/unitary-authority/bracknell-forest","Bracknell Forest Council","00MA","Adults (18-64)","Long term Support - Residential","MH Adults 18-64 Long Term Support - Residential","Contracted Services",24/12/2019 00:00:00,"30368706",5287.48,"ACCOMPLISH GROUP T/A PATHWAY HOUSE"
"Bracknell Forest Council","http://opendatacommunities.org/id/unitary-authority/bracknell-forest","Bracknell Forest Council","00MA","Adults (18-64)","Long term Support - Residential","MH Adults 18-64 Long Term Support - Residential","Contracted Services",23/01/2020 00:00:00,"30370176",5287.48,"ACCOMPLISH GROUP T/A PATHWAY HOUSE"
"Bracknell Forest Council","http://opendatacommunities.org/id/unitary-authority/bracknell-forest","Bracknell Forest Council","00MA","Children Looked After","Fostering services","BFBC Fostering Allowances","Training Costs",12/11/2019 00:00:00,"6692770",1100,"ACE EDUCATION TRAINING LLP"
"Bracknell Forest Council","http://opendatacommunities.org/id/unitary-authority/bracknell-forest","Bracknell Forest Council","00MA","Children Looked After","Fostering services","BFBC Fostering Allowances","Training Costs",12/11/2019 00:00:00,"60015993",-1100,"ACE EDUCATION TRAINING LLP"
"Bracknell Forest Council","http://opendatacommunities.org/id/unitary-authority/bracknell-forest","Bracknell Forest Council","00MA","Children Looked After","Fostering services","Independent Fostering (Non BFBC)","RB of Windsor & Maidenhead",24/03/2020 00:00:00,"6701152",59277.92,"ACHIEVING FOR CHILDREN"
"Bracknell Forest Council","http://opendatacommunities.org/id/unitary-authority/bracknell-forest","Bracknell Forest Council","00MA","Children Looked After","Residential care","Children's Home Placements","Contracted Services",25/03/2020 00:00:00,"6701130",2285.76,"ACORN HOMES"
"Bracknell Forest Council","http://opendatacommunities.org/id/unitary-authority/bracknell-forest","Bracknell Forest Council","00MA","Safeguarding Children and Young People's Services","Social Work","Children's Participation *PLEASE USE Q405S*","Voluntary Sector Service Providers",31/03/2020 00:00:00,"6701422",6504.68,"ACTION FOR CHILDREN SERVICES LTD"
"Bracknell Forest Council","http://opendatacommunities.org/id/unitary-authority/bracknell-forest","Bracknell Forest Council","00MA","Safeguarding Children and Young People's Services","Social Work","Children's Participation *PLEASE USE Q405S*","Voluntary Sector Service Providers",23/01/2020 00:00:00,"6697024",2600,"ACTION FOR CHILDREN SERVICES LTD"
"Bracknell Forest Council","http://opendatacommunities.org/id/unitary-authority/bracknell-forest","Bracknell Forest Council","00MA","Safeguarding Children and Young People's Services","Social Work","Children's Participation *PLEASE USE Q405S*","Voluntary Sector Service Providers",24/01/2020 00:00:00,"6697057",2600,"ACTION FOR CHILDREN SERVICES LTD"
"Bracknell Forest Council","http://opendatacommunities.org/id/unitary-authority/bracknell-forest","Bracknell Forest Council","00MA","Safeguarding Children and Young People's Services","Social Work","Children's Participation *PLEASE USE Q405S*","Voluntary Sector Service Providers",23/01/2020 00:00:00,"6697003",3940.79,"ACTION FOR CHILDREN SERVICES LTD"
"Bracknell Forest Council","http://opendatacommunities.org/id/unitary-authority/bracknell-forest","Bracknell Forest Council","00MA","Children Looked After","Fostering services","Independent Fostering (Non BFBC)","Contracted Services",20/03/2020 00:00:00,"6700528",13560.12,"ACTION FOR CHILDREN SERVICES LTD"
"Bracknell Forest Council","http://opendatacommunities.org/id/unitary-authority/bracknell-forest","Bracknell Forest Council","00MA","Commissioning & Service Delivery","Commissioning & Service Delivery","Grants & Donations","Contracted Services",14/01/2020 00:00:00,"6696415",3450,"ACTION FOR PEOPLE"
"Bracknell Forest Council","http://opendatacommunities.org/id/unitary-authority/bracknell-forest","Bracknell Forest Council","00MA","Commissioning & Service Delivery","Commissioning & Service Delivery","Grants & Donations","Contracted Services",11/12/2019 00:00:00,"6694668",3450,"ACTION FOR PEOPLE"
"Bracknell Forest Council","http://opendatacommunities.org/id/unitary-authority/bracknell-forest","Bracknell Forest Council","00MA","Commissioning & Service Delivery","Commissioning & Service Delivery","Grants & Donations","Contracted Services",12/03/2020 00:00:00,"6699938",3450,"ACTION FOR PEOPLE"
"Bracknell Forest Council","http://opendatacommunities.org/id/unitary-authority/bracknell-forest","Bracknell Forest Council","00MA","Commissioning & Service Delivery","Commissioning & Service Delivery","Grants & Donations","Contracted Services",11/12/2019 00:00:00,"6694601",3450,"ACTION FOR PEOPLE"
"Bracknell Forest Council","http://opendatacommunities.org/id/unitary-authority/bracknell-forest","Bracknell Forest Council","00MA","Commissioning & Service Delivery","Commissioning & Service Delivery","Grants & Donations","Contracted Services",12/02/2020 00:00:00,"6698229",3450,"ACTION FOR PEOPLE"
"Bracknell Forest Council","http://opendatacommunities.org/id/unitary-authority/bracknell-forest","Bracknell Forest Council","00MA","Post 16 Provision","High needs budget fpr post-16 provision","SEN Non LEA Provision Post16","Voluntary Sector Service Providers",13/12/2019 00:00:00,"6697280",138231,"ACTIVATE LEARNING"
"Bracknell Forest Council","http://opendatacommunities.org/id/unitary-authority/bracknell-forest","Bracknell Forest Council","00MA","Management and Support Services - CYPL","CYPL Department Management Team","Management Team","Subscriptions",03/03/2020 00:00:00,"6699699",1756,"ADCS / ASSOCIATION OF DIRECTORS OF CHILDREN'S SERVICES"
"Bracknell Forest Council","http://opendatacommunities.org/id/unitary-authority/bracknell-forest","Bracknell Forest Council","00MA","Management and Support Services - CYPL","Unallocated High Needs Related Expenditure","Mainstream - Element 3 top up non BFC pre 16","Wokingham DC",10/01/2020 00:00:00,"6696205",46067.46,"ADDINGTON SCHOOL"
"Bracknell Forest Council","http://opendatacommunities.org/id/unitary-authority/bracknell-forest","Bracknell Forest Council","00MA","Post 16 Provision","High needs budget fpr post-16 provision","Mainstream - Element 3 top up non BFC post 16","Wokingham DC",10/01/2020 00:00:00,"6696205",15569.57,"ADDINGTON SCHOOL"
"Bracknell Forest Council","http://opendatacommunities.org/id/unitary-authority/bracknell-forest","Bracknell Forest Council","00MA","Adults (18-64)","Long term Support - Community:Direct Payments","LD Adults 18-64 Long Term Support - Community:Direct Payments","Direct Payments to Clients",12/03/2020 00:00:00,"30373160",4132.88,"REDACT PERSONAL INFORMATION"
"Bracknell Forest Council","http://opendatacommunities.org/id/unitary-authority/bracknell-forest","Bracknell Forest Council","00MA","Adults (18-64)","Long term Support - Community:Direct Payments","LD Adults 18-64 Long Term Support - Community:Direct Payments","Direct Payments to Clients",13/02/2020 00:00:00,"30371524",4132.88,"REDACT PERSONAL INFORMATION"
"Bracknell Forest Council","http://opendatacommunities.org/id/unitary-authority/bracknell-forest","Bracknell Forest Council","00MA","Adults (18-64)","Long term Support - Community:Direct Payments","LD Adults 18-64 Long Term Support - Community:Direct Payments","Direct Payments to Clients",16/01/2020 00:00:00,"30369843",4132.88,"REDACT PERSONAL INFORMATION"
"Bracknell Forest Council","http://opendatacommunities.org/id/unitary-authority/bracknell-forest","Bracknell Forest Council","00MA","Adults (18-64)","Long term Support - Community:Direct Payments","LD Adults 18-64 Long Term Support - Community:Direct Payments","Direct Payments to Clients",19/12/2019 00:00:00,"30368471",4132.88,"REDACT PERSONAL INFORMATION"
"Bracknell Forest Council","http://opendatacommunities.org/id/unitary-authority/bracknell-forest","Bracknell Forest Council","00MA","Corporate Management COB","Corporate Management COB","Director: Place, Planning & Regeneration","Professional Subscriptions & Legal Practising Cert",27/01/2020 00:00:00,"6697792",625,"ADEPT- ASSOCIATION OF DIRECTORS OF ENVIRONMENT, ECONOMY , PLANNING & TRANSPORT"
"Bracknell Forest Council","http://opendatacommunities.org/id/unitary-authority/bracknell-forest","Bracknell Forest Council","00MA","Special Schools & Alternative Provision","Pre-School Education","College Hall PRU","Schools ICT Learning Resources - Software",28/01/2020 00:00:00,"6698141",2534.4,"ADOBE SYSTEMS SOFTWARE LTD"
"Bracknell Forest Council","http://opendatacommunities.org/id/unitary-authority/bracknell-forest","Bracknell Forest Council","00MA","Support Services & Management Costs","Training","Social Care Training - Children","Training Costs",05/03/2020 00:00:00,"6699716",6525,"ADOPTION PLUS"
"Bracknell Forest Council","http://opendatacommunities.org/id/unitary-authority/bracknell-forest","Bracknell Forest Council","00MA","","","Binfield Community Centre (S106)","Purchase of Land",25/06/2019 00:00:00,"6699944",36335,"ADP LLP"
"Bracknell Forest Council","http://opendatacommunities.org/id/unitary-authority/bracknell-forest","Bracknell Forest Council","00MA","","","Binfield Community Centre (S106)","Purchase of Land",25/07/2019 00:00:00,"6699945",5590,"ADP LLP"
"Bracknell Forest Council","http://opendatacommunities.org/id/unitary-authority/bracknell-forest","Bracknell Forest Council","00MA","Services for Young People","Targeted services for young people","NEET Reduction Funding","Voluntary Sector Service Providers",25/02/2020 00:00:00,"6699525",2600,"ADVIZA PARTNERSHIP"
"Bracknell Forest Council","http://opendatacommunities.org/id/unitary-authority/bracknell-forest","Bracknell Forest Council","00MA","Services for Young People","Targeted services for young people","NEET Reduction Funding","Voluntary Sector Service Providers",25/02/2020 00:00:00,"6699527",2600,"ADVIZA PARTNERSHIP"
"Bracknell Forest Council","http://opendatacommunities.org/id/unitary-authority/bracknell-forest","Bracknell Forest Council","00MA","Services for Young People","Targeted services for young people","NEET Reduction Funding","Voluntary Sector Service Providers",13/01/2020 00:00:00,"6696625",2600,"ADVIZA PARTNERSHIP"
"Bracknell Forest Council","http://opendatacommunities.org/id/unitary-authority/bracknell-forest","Bracknell Forest Council","00MA","Services for Young People","Targeted services for young people","NEET Reduction Funding","Voluntary Sector Service Providers",13/01/2020 00:00:00,"6696633",2600,"ADVIZA PARTNERSHIP"
"Bracknell Forest Council","http://opendatacommunities.org/id/unitary-authority/bracknell-forest","Bracknell Forest Council","00MA","Services for Young People","Targeted services for young people","NEET Reduction Funding","Voluntary Sector Service Providers",22/11/2019 00:00:00,"6694253",2600,"ADVIZA PARTNERSHIP"
"Bracknell Forest Council","http://opendatacommunities.org/id/unitary-authority/bracknell-forest","Bracknell Forest Council","00MA","Social Care Activities","Social Care Activities","Mental Capacity Act & IMCA Service","Other Support to Clients",12/03/2020 00:00:00,"6700109",3000,"AEB SOCIAL CARE LTD"
"Bracknell Forest Council","http://opendatacommunities.org/id/unitary-authority/bracknell-forest","Bracknell Forest Council","00MA","Social Care Activities","Social Care Activities","Mental Capacity Act & IMCA Service","Other Support to Clients",23/01/2020 00:00:00,"6696959",2000,"AEB SOCIAL CARE LTD"
"Bracknell Forest Council","http://opendatacommunities.org/id/unitary-authority/bracknell-forest","Bracknell Forest Council","00MA","Libraries","Branch Libraries","Ascot Library","Water & Sewerage",17/01/2020 00:00:00,"6697022",839.13,"AFFINITY WATER"
"Bracknell Forest Council","http://opendatacommunities.org/id/unitary-authority/bracknell-forest","Bracknell Forest Council","00MA","Older People (65+)","Long Term Support - Community:Supported Living","MC Older People 65+ Long Term Support - Community:Supported Living","Contracted Services",05/12/2019 00:00:00,"30367799",540,"AGE CONCERN BRACKNELL FOREST"
"Bracknell Forest Council","http://opendatacommunities.org/id/unitary-authority/bracknell-forest","Bracknell Forest Council","00MA","Older People (65+)","Long Term Support - Community:Supported Living","MC Older People 65+ Long Term Support - Community:Supported Living","Contracted Services",09/01/2020 00:00:00,"30369492",585,"AGE CONCERN BRACKNELL FOREST"
"Bracknell Forest Council","http://opendatacommunities.org/id/unitary-authority/bracknell-forest","Bracknell Forest Council","00MA","Older People (65+)","Long Term Support - Community:Supported Living","MC Older People 65+ Long Term Support - Community:Supported Living","Contracted Services",06/02/2020 00:00:00,"30371163",585,"AGE CONCERN BRACKNELL FOREST"
"Bracknell Forest Council","http://opendatacommunities.org/id/unitary-authority/bracknell-forest","Bracknell Forest Council","00MA","Older People (65+)","Long Term Support - Community:Supported Living","MC Older People 65+ Long Term Support - Community:Supported Living","Contracted Services",27/02/2020 00:00:00,"30372165",720,"AGE CONCERN BRACKNELL FOREST"
"Bracknell Forest Council","http://opendatacommunities.org/id/unitary-authority/bracknell-forest","Bracknell Forest Council","00MA","Older People (65+)","Long Term Support - Community:Supported Living","MC Older People 65+ Long Term Support - Community:Supported Living","Contracted Services",02/04/2020 00:00:00,"30374576",720,"AGE CONCERN BRACKNELL FOREST"
"Bracknell Forest Council","http://opendatacommunities.org/id/unitary-authority/bracknell-forest","Bracknell Forest Council","00MA","Older People (65+)","Long Term Support - Community:Supported Living","MC Older People 65+ Long Term Support - Community:Supported Living","Contracted Services",12/12/2019 00:00:00,"30368129",720,"AGE CONCERN BRACKNELL FOREST"
"Bracknell Forest Council","http://opendatacommunities.org/id/unitary-authority/bracknell-forest","Bracknell Forest Council","00MA","Assistive Equipment & Technology","Assistive Equipment & Technology","Assistive Equipment and Technology","Contracted Services",31/12/2019 00:00:00,"6697817",5652,"AGE UK BERKSHIRE"
"Bracknell Forest Council","http://opendatacommunities.org/id/unitary-authority/bracknell-forest","Bracknell Forest Council","00MA","Central Support Services - COF","Policy Unit","External Communications","Licences",15/02/2020 00:00:00,"6698558",3640.8,"AI MEDIA DATA LIMITED"
"Bracknell Forest Council","http://opendatacommunities.org/id/unitary-authority/bracknell-forest","Bracknell Forest Council","00MA","Older People (65+)","Long Term Support - Nursing","MC Older People 65+ Long Term Support - Nursing","Contracted Services",19/03/2020 00:00:00,"30373495",2438.68,"AILSA LODGE CARE HOME"
"Bracknell Forest Council","http://opendatacommunities.org/id/unitary-authority/bracknell-forest","Bracknell Forest Council","00MA","Older People (65+)","Long Term Support - Nursing","MC Older People 65+ Long Term Support - Nursing","Contracted Services",24/12/2019 00:00:00,"30368706",2438.68,"AILSA LODGE CARE HOME"
"Bracknell Forest Council","http://opendatacommunities.org/id/unitary-authority/bracknell-forest","Bracknell Forest Council","00MA","Older People (65+)","Long Term Support - Nursing","MC Older People 65+ Long Term Support - Nursing","Contracted Services",23/01/2020 00:00:00,"30370176",2438.68,"AILSA LODGE CARE HOME"
"Bracknell Forest Council","http://opendatacommunities.org/id/unitary-authority/bracknell-forest","Bracknell Forest Council","00MA","Older People (65+)","Long Term Support - Nursing","MC Older People 65+ Long Term Support - Nursing","Contracted Services",20/02/2020 00:00:00,"30371861",2438.68,"AILSA LODGE CARE HOME"
"Bracknell Forest Council","http://opendatacommunities.org/id/unitary-authority/bracknell-forest","Bracknell Forest Council","00MA","Housing Benefits Administration","Housing Benefits Administration","Benefits Administration","Other Fees for Bought-in Services",30/12/2019 00:00:00,"6696034",750,"AIREY CONSULTANCY SERVICES LTD"
"Bracknell Forest Council","http://opendatacommunities.org/id/unitary-authority/bracknell-forest","Bracknell Forest Council","00MA","Management and Support Services - CYPL","De-Delegated Expenditure","Home to School Transport","Mileage Allowance - Claims",16/03/2020 00:00:00,"6700232",536.9,"REDACT PERSONAL INFORMATION"
"Bracknell Forest Council","http://opendatacommunities.org/id/unitary-authority/bracknell-forest","Bracknell Forest Council","00MA","Older People (65+)","Long term Support - Community:Direct Payments","PS Older People 65+ Long Term Support - Community:Direct Payments","Direct Payments to Clients",13/02/2020 00:00:00,"30371524",665.76,"REDACT PERSONAL INFORMATION"
"Bracknell Forest Council","http://opendatacommunities.org/id/unitary-authority/bracknell-forest","Bracknell Forest Council","00MA","Older People (65+)","Long term Support - Community:Direct Payments","PS Older People 65+ Long Term Support - Community:Direct Payments","Direct Payments to Clients",12/03/2020 00:00:00,"30373160",665.76,"REDACT PERSONAL INFORMATION"
"Bracknell Forest Council","http://opendatacommunities.org/id/unitary-authority/bracknell-forest","Bracknell Forest Council","00MA","Older People (65+)","Long term Support - Community:Direct Payments","PS Older People 65+ Long Term Support - Community:Direct Payments","Direct Payments to Clients",16/01/2020 00:00:00,"30369843",1593.07,"REDACT PERSONAL INFORMATION"
"Bracknell Forest Council","http://opendatacommunities.org/id/unitary-authority/bracknell-forest","Bracknell Forest Council","00MA","Winter Service","Winter Maintenance","Preliminaries - Other Roads","Training Costs",07/01/2020 00:00:00,"6695950",550,"ALDERCROSS LTD"
"Bracknell Forest Council","http://opendatacommunities.org/id/unitary-authority/bracknell-forest","Bracknell Forest Council","00MA","Transport Planning, Policy & Strategy","Transport Policy, Planning & Strategy","Street Works - Permit Scheme","Training Costs",07/01/2020 00:00:00,"6695950",800,"ALDERCROSS LTD"
"Bracknell Forest Council","http://opendatacommunities.org/id/unitary-authority/bracknell-forest","Bracknell Forest Council","00MA","Transport Planning, Policy & Strategy","Transport Policy, Planning & Strategy","Transportation Planning","Training Costs",07/01/2020 00:00:00,"6695950",550,"ALDERCROSS LTD"
"Bracknell Forest Council","http://opendatacommunities.org/id/unitary-authority/bracknell-forest","Bracknell Forest Council","00MA","Transport Planning, Policy & Strategy","Transport Policy, Planning & Strategy","Monitoring Street Works","Training Costs",07/01/2020 00:00:00,"6695950",1450,"ALDERCROSS LTD"
"Bracknell Forest Council","http://opendatacommunities.org/id/unitary-authority/bracknell-forest","Bracknell Forest Council","00MA","Substance Misuse","Drug misuse in adults","Drug Testing Costs","Other Fees for Bought-in Services",30/11/2019 00:00:00,"6694123",1276.75,"ALERE TOXICOLOGY PLC"
"Bracknell Forest Council","http://opendatacommunities.org/id/unitary-authority/bracknell-forest","Bracknell Forest Council","00MA","Older People (65+)","Long Term Support - Community:Other Long Term Care","MC Older People 65+ Long Term Support - Community:Other Long Term Care","Contracted Services",02/04/2020 00:00:00,"30374576",2567.5,"ALEXANDRA GRANGE CARE HOME"
"Bracknell Forest Council","http://opendatacommunities.org/id/unitary-authority/bracknell-forest","Bracknell Forest Council","00MA","Central Support Services - COF","Personnel","Step Up Cohort 6","Other Fees for Bought-in Services",20/02/2020 00:00:00,"30371666",1322.2,"REDACT PERSONAL INFORMATION"
"Bracknell Forest Council","http://opendatacommunities.org/id/unitary-authority/bracknell-forest","Bracknell Forest Council","00MA","Central Support Services - COF","Personnel","Step Up Cohort 6","Other Fees for Bought-in Services",23/01/2020 00:00:00,"30370117",1322.2,"REDACT PERSONAL INFORMATION"
"Bracknell Forest Council","http://opendatacommunities.org/id/unitary-authority/bracknell-forest","Bracknell Forest Council","00MA","Central Support Services - COF","Personnel","Step Up Cohort 6","Other Fees for Bought-in Services",26/03/2020 00:00:00,"30373750",1322.2,"REDACT PERSONAL INFORMATION"
"Bracknell Forest Council","http://opendatacommunities.org/id/unitary-authority/bracknell-forest","Bracknell Forest Council","00MA","Commissioning & Service Delivery","Commissioning & Service Delivery","Adult Social Care Pre-paid Cards","Contracted Services",17/02/2020 00:00:00,"6698330",2000,"ALLPAY LTD  **5780"
"Bracknell Forest Council","http://opendatacommunities.org/id/unitary-authority/bracknell-forest","Bracknell Forest Council","00MA","Commissioning & Service Delivery","Commissioning & Service Delivery","Adult Social Care Pre-paid Cards","Other Support to Clients",29/02/2020 00:00:00,"6700071",970.13,"ALLPAY LTD **3150"
"Bracknell Forest Council","http://opendatacommunities.org/id/unitary-authority/bracknell-forest","Bracknell Forest Council","00MA","Commissioning & Service Delivery","Commissioning & Service Delivery","Adult Social Care Pre-paid Cards","Contracted Services",18/12/2019 00:00:00,"6695053",2000,"ALLPAY LTD **3150"
"Bracknell Forest Council","http://opendatacommunities.org/id/unitary-authority/bracknell-forest","Bracknell Forest Council","00MA","Commissioning & Service Delivery","Commissioning & Service Delivery","Adult Social Care Pre-paid Cards","Other Support to Clients",31/01/2020 00:00:00,"6697996",1357.3,"ALLPAY LTD **3150"
"Bracknell Forest Council","http://opendatacommunities.org/id/unitary-authority/bracknell-forest","Bracknell Forest Council","00MA","Commissioning & Service Delivery","Commissioning & Service Delivery","Adult Social Care Pre-paid Cards","Other Support to Clients",12/12/2019 00:00:00,"6698495",850,"ALLPAY LTD **3150"
"Bracknell Forest Council","http://opendatacommunities.org/id/unitary-authority/bracknell-forest","Bracknell Forest Council","00MA","Commissioning & Service Delivery","Commissioning & Service Delivery","Adult Social Care Pre-paid Cards","Other Support to Clients",31/12/2019 00:00:00,"6698496",1367.33,"ALLPAY LTD **3150"
"Bracknell Forest Council","http://opendatacommunities.org/id/unitary-authority/bracknell-forest","Bracknell Forest Council","00MA","Commissioning & Service Delivery","Commissioning & Service Delivery","Adult Social Care Pre-paid Cards","Other Support to Clients",30/11/2019 00:00:00,"6698497",1323.23,"ALLPAY LTD **3150"
"Bracknell Forest Council","http://opendatacommunities.org/id/unitary-authority/bracknell-forest","Bracknell Forest Council","00MA","Central Support Services - COF","Fleet","Transport Services","Diesel",29/02/2020 00:00:00,"6699513",1154.91,"ALLSTAR BUSINESS SOLUTIONS LTD"
"Bracknell Forest Council","http://opendatacommunities.org/id/unitary-authority/bracknell-forest","Bracknell Forest Council","00MA","Central Support Services - COF","Fleet","Transport Services","Diesel",31/03/2020 00:00:00,"6701434",757.27,"ALLSTAR BUSINESS SOLUTIONS LTD"
"Bracknell Forest Council","http://opendatacommunities.org/id/unitary-authority/bracknell-forest","Bracknell Forest Council","00MA","Central Support Services - COF","Fleet","Transport Services","Diesel",31/12/2019 00:00:00,"6695677",856.1,"ALLSTAR BUSINESS SOLUTIONS LTD"
"Bracknell Forest Council","http://opendatacommunities.org/id/unitary-authority/bracknell-forest","Bracknell Forest Council","00MA","Central Support Services - COF","Fleet","Transport Services","Diesel",30/11/2019 00:00:00,"6694117",1132.47,"ALLSTAR BUSINESS SOLUTIONS LTD"
"Bracknell Forest Council","http://opendatacommunities.org/id/unitary-authority/bracknell-forest","Bracknell Forest Council","00MA","Central Support Services - COF","Fleet","Transport Services","Diesel",31/01/2020 00:00:00,"6697676",1089.57,"ALLSTAR BUSINESS SOLUTIONS LTD"
"Bracknell Forest Council","http://opendatacommunities.org/id/unitary-authority/bracknell-forest","Bracknell Forest Council","00MA","Central Support Services - COF","Fleet","Transport Services","Diesel",31/12/2019 00:00:00,"60016097",856.1,"ALLSTAR BUSINESS SOLUTIONS LTD"
"Bracknell Forest Council","http://opendatacommunities.org/id/unitary-authority/bracknell-forest","Bracknell Forest Council","00MA","Special Schools","Delegated Secondary Schools Budgets","Garth Hill - Secondary","Operating Lease Charge",01/12/2019 00:00:00,"6696200",4544.2,"ALPHABET (UK) LTD"
"Bracknell Forest Council","http://opendatacommunities.org/id/unitary-authority/bracknell-forest","Bracknell Forest Council","00MA","Other Welfare Services","Other Welfare Services","Forestcare - Operational","Operating Lease Charge",13/08/2019 00:00:00,"6694382",1017.6,"ALPHABET (UK) LTD"
"Bracknell Forest Council","http://opendatacommunities.org/id/unitary-authority/bracknell-forest","Bracknell Forest Council","00MA","Libraries","Mobile Libraries","Mobile & Special Library Service","Operating Lease Charge",01/02/2020 00:00:00,"6697960",2927.52,"ALPHABET (UK) LTD"
"Bracknell Forest Council","http://opendatacommunities.org/id/unitary-authority/bracknell-forest","Bracknell Forest Council","00MA","Central Support Services - COF","Fleet","Transport Services","Operating Lease Charge",01/03/2020 00:00:00,"6700277",3712.85,"ALPHABET (UK) LTD"
"Bracknell Forest Council","http://opendatacommunities.org/id/unitary-authority/bracknell-forest","Bracknell Forest Council","00MA","Central Support Services - COF","Policy Unit","Programme Support","Consultants Fees",08/01/2020 00:00:00,"6698671",7677.5,"ALPINE RESOURCING LTD"
"Bracknell Forest Council","http://opendatacommunities.org/id/unitary-authority/bracknell-forest","Bracknell Forest Council","00MA","Central Support Services - COF","Policy Unit","Programme Support","Consultants Fees",31/01/2020 00:00:00,"6698673",2005.3,"ALPINE RESOURCING LTD"
"Bracknell Forest Council","http://opendatacommunities.org/id/unitary-authority/bracknell-forest","Bracknell Forest Council","00MA","Central Support Services - COF","Policy Unit","Programme Support","Consultants Fees",31/03/2020 00:00:00,"6701398",2096.5,"ALPINE RESOURCING LTD"
"Bracknell Forest Council","http://opendatacommunities.org/id/unitary-authority/bracknell-forest","Bracknell Forest Council","00MA","Open Spaces","Community Parks & Open Spaces","Tree Service","Contracted Services",28/01/2020 00:00:00,"6697140",1350,"ALPINE TREE SURGEONS LTD"
"Bracknell Forest Council","http://opendatacommunities.org/id/unitary-authority/bracknell-forest","Bracknell Forest Council","00MA","Open Spaces","Community Parks & Open Spaces","Tree Service","Contracted Services",30/11/2019 00:00:00,"6694583",800,"ALPINE TREE SURGEONS LTD"
"Bracknell Forest Council","http://opendatacommunities.org/id/unitary-authority/bracknell-forest","Bracknell Forest Council","00MA","Central Support Services - COF","Information Technology","Technical  Services","Licences",17/02/2020 00:00:00,"6698443",9600,"ALTMAN INFORMATION MANAGEMENT LTD"
"Bracknell Forest Council","http://opendatacommunities.org/id/unitary-authority/bracknell-forest","Bracknell Forest Council","00MA","Adults (18-64)","Long term Support - Community:Direct Payments","PS Adults 18-64 Long Term Support - Community:Direct Payments","Direct Payments to Clients",20/02/2020 00:00:00,"30371862",2366.28,"REDACT PERSONAL INFORMATION"
"Bracknell Forest Council","http://opendatacommunities.org/id/unitary-authority/bracknell-forest","Bracknell Forest Council","00MA","Adults (18-64)","Long term Support - Community:Direct Payments","PS Adults 18-64 Long Term Support - Community:Direct Payments","Direct Payments to Clients",05/03/2020 00:00:00,"30372786",3393.62,"REDACT PERSONAL INFORMATION"
"Bracknell Forest Council","http://opendatacommunities.org/id/unitary-authority/bracknell-forest","Bracknell Forest Council","00MA","Children Looked After","Residential care","Children's Home Placements","Contracted Services",01/01/2020 00:00:00,"6695550",15500,"AMEGREEN CHILDRENS SERVICES"
"Bracknell Forest Council","http://opendatacommunities.org/id/unitary-authority/bracknell-forest","Bracknell Forest Council","00MA","Children Looked After","Residential care","Children's Home Placements","Contracted Services",01/12/2019 00:00:00,"6694014",15500,"AMEGREEN CHILDRENS SERVICES"
"Bracknell Forest Council","http://opendatacommunities.org/id/unitary-authority/bracknell-forest","Bracknell Forest Council","00MA","Children Looked After","Residential care","Children's Home Placements","Contracted Services",01/12/2019 00:00:00,"6694015",15500,"AMEGREEN CHILDRENS SERVICES"
"Bracknell Forest Council","http://opendatacommunities.org/id/unitary-authority/bracknell-forest","Bracknell Forest Council","00MA","Children Looked After","Residential care","Children's Home Placements","Contracted Services",01/02/2020 00:00:00,"6697523",14500,"AMEGREEN CHILDRENS SERVICES"
"Bracknell Forest Council","http://opendatacommunities.org/id/unitary-authority/bracknell-forest","Bracknell Forest Council","00MA","Children Looked After","Residential care","Children's Home Placements","Contracted Services",01/02/2020 00:00:00,"6697525",14500,"AMEGREEN CHILDRENS SERVICES"
"Bracknell Forest Council","http://opendatacommunities.org/id/unitary-authority/bracknell-forest","Bracknell Forest Council","00MA","Children Looked After","Residential care","Children's Home Placements","Contracted Services",01/03/2020 00:00:00,"6699402",15500,"AMEGREEN CHILDRENS SERVICES"
"Bracknell Forest Council","http://opendatacommunities.org/id/unitary-authority/bracknell-forest","Bracknell Forest Council","00MA","Children Looked After","Residential care","Children's Home Placements","Contracted Services",01/01/2020 00:00:00,"6695548",15500,"AMEGREEN CHILDRENS SERVICES"
"Bracknell Forest Council","http://opendatacommunities.org/id/unitary-authority/bracknell-forest","Bracknell Forest Council","00MA","Children Looked After","Residential care","Children's Home Placements","Contracted Services",01/03/2020 00:00:00,"6699403",15500,"AMEGREEN CHILDRENS SERVICES"
"Bracknell Forest Council","http://opendatacommunities.org/id/unitary-authority/bracknell-forest","Bracknell Forest Council","00MA","Cemeteries, Crematoria & Mortuary Services","Cemeteries & Crematorium","Cemetery & Crematorium Landscaping","Materials",12/02/2020 00:00:00,"6698180",1212.75,"AMETHYST HORTICULTURE LIMITED"
"Bracknell Forest Council","http://opendatacommunities.org/id/unitary-authority/bracknell-forest","Bracknell Forest Council","00MA","Cemeteries, Crematoria & Mortuary Services","Cemeteries & Crematorium","Easthampstead Park Cemetery & Crematorium","R&M - Reactive",19/02/2020 00:00:00,"6698773",520,"AMI (HERTS) LTD"
"Bracknell Forest Council","http://opendatacommunities.org/id/unitary-authority/bracknell-forest","Bracknell Forest Council","00MA","Central Support Services - COF","Information Technology","Technical  Services","Licences",24/01/2020 00:00:00,"6698914",1565.55,"AMS LTD"
"Bracknell Forest Council","http://opendatacommunities.org/id/unitary-authority/bracknell-forest","Bracknell Forest Council","00MA","Central Support Services - COF","Personnel","Step Up Cohort 6","Other Fees for Bought-in Services",26/03/2020 00:00:00,"30373750",1322.2,"REDACT PERSONAL INFORMATION"
"Bracknell Forest Council","http://opendatacommunities.org/id/unitary-authority/bracknell-forest","Bracknell Forest Council","00MA","Central Support Services - COF","Personnel","Step Up Cohort 6","Other Fees for Bought-in Services",20/02/2020 00:00:00,"30371666",1322.2,"REDACT PERSONAL INFORMATION"
"Bracknell Forest Council","http://opendatacommunities.org/id/unitary-authority/bracknell-forest","Bracknell Forest Council","00MA","Central Support Services - COF","Personnel","Step Up Cohort 6","Other Fees for Bought-in Services",23/01/2020 00:00:00,"30370117",1322.2,"REDACT PERSONAL INFORMATION"
"Bracknell Forest Council","http://opendatacommunities.org/id/unitary-authority/bracknell-forest","Bracknell Forest Council","00MA","Substance Misuse","Drug misuse in adults","SM Residential Placements","Contracted Services",31/12/2019 00:00:00,"6701205",1710,"ANA TREATMENT CENTRE LTD"
"Bracknell Forest Council","http://opendatacommunities.org/id/unitary-authority/bracknell-forest","Bracknell Forest Council","00MA","Holding Accounts not in Budget Book - COF","General Holding Accounts","Repairs and Maintenance","R&M - Reactive",19/12/2019 00:00:00,"6695543",680,"ANCHOR PIPEWORK LIMITED"
"Bracknell Forest Council","http://opendatacommunities.org/id/unitary-authority/bracknell-forest","Bracknell Forest Council","00MA","Special Schools & Alternative Provision","Pre-School Education","College Hall PRU","R&M - Reactive",04/03/2020 00:00:00,"6700219",1021.7,"ANCHOR PIPEWORK LIMITED"
"Bracknell Forest Council","http://opendatacommunities.org/id/unitary-authority/bracknell-forest","Bracknell Forest Council","00MA","Special Schools","Delegated Secondary Schools Budgets","Garth Hill - Secondary","R&M - Reactive",11/03/2020 00:00:00,"6700617",651.75,"ANCHOR PIPEWORK LIMITED"
"Bracknell Forest Council","http://opendatacommunities.org/id/unitary-authority/bracknell-forest","Bracknell Forest Council","00MA","Sure Start Children's Centres","Children's centres - direct","The Willows Family Hub","R&M - Reactive",11/03/2020 00:00:00,"6700625",2098.26,"ANCHOR PIPEWORK LIMITED"
"Bracknell Forest Council","http://opendatacommunities.org/id/unitary-authority/bracknell-forest","Bracknell Forest Council","00MA","Special Schools","Delegated Secondary Schools Budgets","Garth Hill - Secondary","R&M - Reactive",04/03/2020 00:00:00,"6700209",507.7,"ANCHOR PIPEWORK LIMITED"
"Bracknell Forest Council","http://opendatacommunities.org/id/unitary-authority/bracknell-forest","Bracknell Forest Council","00MA","Special Schools","Delegated Secondary Schools Budgets","Garth Hill - Secondary","R&M - Reactive",03/03/2020 00:00:00,"6700218",1718,"ANCHOR PIPEWORK LIMITED"
"Bracknell Forest Council","http://opendatacommunities.org/id/unitary-authority/bracknell-forest","Bracknell Forest Council","00MA","Family Support Services","Targeted Family Support","Family Centre Running Costs","R&M - Reactive",12/02/2020 00:00:00,"6698852",1027,"ANCHOR PIPEWORK LIMITED"
"Bracknell Forest Council","http://opendatacommunities.org/id/unitary-authority/bracknell-forest","Bracknell Forest Council","00MA","Holding Accounts not in Budget Book - COF","General Holding Accounts","Certificated Contract Payments","R&M - Service Contracts",27/01/2020 00:00:00,"6697223",3735,"ANCHOR PIPEWORK LIMITED"
"Bracknell Forest Council","http://opendatacommunities.org/id/unitary-authority/bracknell-forest","Bracknell Forest Council","00MA","Holding Accounts not in Budget Book - COF","General Holding Accounts","Certificated Contract Payments","R&M - Service Contracts",27/01/2020 00:00:00,"6697225",730,"ANCHOR PIPEWORK LIMITED"
"Bracknell Forest Council","http://opendatacommunities.org/id/unitary-authority/bracknell-forest","Bracknell Forest Council","00MA","Holding Accounts not in Budget Book - COF","General Holding Accounts","Certificated Contract Payments","R&M - Service Contracts",27/01/2020 00:00:00,"6697226",6515,"ANCHOR PIPEWORK LIMITED"
"Bracknell Forest Council","http://opendatacommunities.org/id/unitary-authority/bracknell-forest","Bracknell Forest Council","00MA","Secondary Schools","Delegated Primary School Budgets","Meadow Vale - Primary","R&M - Reactive",12/02/2020 00:00:00,"6698873",624.82,"ANCHOR PIPEWORK LIMITED"
"Bracknell Forest Council","http://opendatacommunities.org/id/unitary-authority/bracknell-forest","Bracknell Forest Council","00MA","Central Support Services - COF","Construction and Property","Depot Facilities","R&M - Reactive",14/02/2020 00:00:00,"6698839",1086.25,"ANCHOR PIPEWORK LIMITED"
"Bracknell Forest Council","http://opendatacommunities.org/id/unitary-authority/bracknell-forest","Bracknell Forest Council","00MA","Recreation, Sports and Leisure","Community Centres","Community Centres Support","R&M - Reactive",16/12/2019 00:00:00,"6695542",600.04,"ANCHOR PIPEWORK LIMITED"
"Bracknell Forest Council","http://opendatacommunities.org/id/unitary-authority/bracknell-forest","Bracknell Forest Council","00MA","Special Schools","Delegated Secondary Schools Budgets","Garth Hill - Secondary","R&M - Reactive",04/03/2020 00:00:00,"6701066",662.5,"ANCHOR PIPEWORK LIMITED"
"Bracknell Forest Council","http://opendatacommunities.org/id/unitary-authority/bracknell-forest","Bracknell Forest Council","00MA","Sure Start Children's Centres","Children's centres - direct","The Willows Family Hub","R&M - Reactive",04/03/2020 00:00:00,"6701070",846.38,"ANCHOR PIPEWORK LIMITED"
"Bracknell Forest Council","http://opendatacommunities.org/id/unitary-authority/bracknell-forest","Bracknell Forest Council","00MA","Secondary Schools","Delegated Primary School Budgets","Ascot Heath Primary","R&M - Reactive",24/01/2020 00:00:00,"6697630",566.28,"ANCHOR PIPEWORK LIMITED"
"Bracknell Forest Council","http://opendatacommunities.org/id/unitary-authority/bracknell-forest","Bracknell Forest Council","00MA","Central Support Services - COF","Construction and Property","Time Square Office","R&M - Service Contracts",27/01/2020 00:00:00,"6697227",9033,"ANCHOR PIPEWORK LIMITED"
"Bracknell Forest Council","http://opendatacommunities.org/id/unitary-authority/bracknell-forest","Bracknell Forest Council","00MA","Central Support Services - COF","Construction and Property","Time Square Office","R&M - Service Contracts",10/01/2020 00:00:00,"6701075",9033,"ANCHOR PIPEWORK LIMITED"
"Bracknell Forest Council","http://opendatacommunities.org/id/unitary-authority/bracknell-forest","Bracknell Forest Council","00MA","Central Support Services - COF","Personnel","Step Up Cohort 6","Other Fees for Bought-in Services",20/02/2020 00:00:00,"30371666",1322.2,"REDACT PERSONAL INFORMATION"
"Bracknell Forest Council","http://opendatacommunities.org/id/unitary-authority/bracknell-forest","Bracknell Forest Council","00MA","Central Support Services - COF","Personnel","Step Up Cohort 6","Other Fees for Bought-in Services",23/01/2020 00:00:00,"30370117",1322.2,"REDACT PERSONAL INFORMATION"
"Bracknell Forest Council","http://opendatacommunities.org/id/unitary-authority/bracknell-forest","Bracknell Forest Council","00MA","Central Support Services - COF","Personnel","Step Up Cohort 6","Other Fees for Bought-in Services",26/03/2020 00:00:00,"30373750",1322.2,"REDACT PERSONAL INFORMATION"
"Bracknell Forest Council","http://opendatacommunities.org/id/unitary-authority/bracknell-forest","Bracknell Forest Council","00MA","Adults (18-64)","Long term Support - Community:Direct Payments","LD Adults 18-64 Long Term Support - Community:Direct Payments","Direct Payments to Clients",12/03/2020 00:00:00,"30373160",624.15,"REDACT PERSONAL INFORMATION"
"Bracknell Forest Council","http://opendatacommunities.org/id/unitary-authority/bracknell-forest","Bracknell Forest Council","00MA","Adults (18-64)","Long term Support - Community:Direct Payments","LD Adults 18-64 Long Term Support - Community:Direct Payments","Direct Payments to Clients",12/03/2020 00:00:00,"30373160",1317.65,"REDACT PERSONAL INFORMATION"
"Bracknell Forest Council","http://opendatacommunities.org/id/unitary-authority/bracknell-forest","Bracknell Forest Council","00MA","Adults (18-64)","Long term Support - Community:Direct Payments","LD Adults 18-64 Long Term Support - Community:Direct Payments","Direct Payments to Clients",13/02/2020 00:00:00,"30371524",1941.8,"REDACT PERSONAL INFORMATION"
"Bracknell Forest Council","http://opendatacommunities.org/id/unitary-authority/bracknell-forest","Bracknell Forest Council","00MA","Adults (18-64)","Long term Support - Community:Direct Payments","LD Adults 18-64 Long Term Support - Community:Direct Payments","Direct Payments to Clients",19/12/2019 00:00:00,"30368471",1941.8,"REDACT PERSONAL INFORMATION"
"Bracknell Forest Council","http://opendatacommunities.org/id/unitary-authority/bracknell-forest","Bracknell Forest Council","00MA","Adults (18-64)","Long term Support - Community:Direct Payments","LD Adults 18-64 Long Term Support - Community:Direct Payments","Direct Payments to Clients",16/01/2020 00:00:00,"30369843",1941.8,"REDACT PERSONAL INFORMATION"
"Bracknell Forest Council","http://opendatacommunities.org/id/unitary-authority/bracknell-forest","Bracknell Forest Council","00MA","Housing Mangt & Support Services (HMSS)","Other Housing Support Costs","Training - Housing","Training Costs",27/12/2019 00:00:00,"6696751",4135.54,"ANDY GALE HOUSING CONSULTANCY"
"Bracknell Forest Council","http://opendatacommunities.org/id/unitary-authority/bracknell-forest","Bracknell Forest Council","00MA","Housing Benefits Administration","Housing Benefits Administration","Benefits Administration","Training Costs",28/02/2020 00:00:00,"6699952",2230,"ANDY THURMAN LTD"
"Bracknell Forest Council","http://opendatacommunities.org/id/unitary-authority/bracknell-forest","Bracknell Forest Council","00MA","Housing Benefits Administration","Housing Benefits Administration","Benefits Administration","Training Costs",28/02/2020 00:00:00,"6699953",1350,"ANDY THURMAN LTD"
"Bracknell Forest Council","http://opendatacommunities.org/id/unitary-authority/bracknell-forest","Bracknell Forest Council","00MA","Social Support - Support for Carer","Social Support - Support for Carer","Social Support - Support for Carer","Direct Payments to Clients",13/02/2020 00:00:00,"30371524",700,"REDACT PERSONAL INFORMATION"
"Bracknell Forest Council","http://opendatacommunities.org/id/unitary-authority/bracknell-forest","Bracknell Forest Council","00MA","Older People (65+)","Long term Support - Community:Direct Payments","MC Older People 65+ Long Term Support - Community:Direct Payments","Direct Payments to Clients",19/12/2019 00:00:00,"30368471",2981,"REDACT PERSONAL INFORMATION"
"Bracknell Forest Council","http://opendatacommunities.org/id/unitary-authority/bracknell-forest","Bracknell Forest Council","00MA","Older People (65+)","Long term Support - Community:Direct Payments","MC Older People 65+ Long Term Support - Community:Direct Payments","Direct Payments to Clients",16/01/2020 00:00:00,"30369843",2981,"REDACT PERSONAL INFORMATION"
"Bracknell Forest Council","http://opendatacommunities.org/id/unitary-authority/bracknell-forest","Bracknell Forest Council","00MA","Older People (65+)","Long term Support - Community:Direct Payments","MC Older People 65+ Long Term Support - Community:Direct Payments","Direct Payments to Clients",13/02/2020 00:00:00,"30371524",2981,"REDACT PERSONAL INFORMATION"
"Bracknell Forest Council","http://opendatacommunities.org/id/unitary-authority/bracknell-forest","Bracknell Forest Council","00MA","Older People (65+)","Long term Support - Community:Direct Payments","MC Older People 65+ Long Term Support - Community:Direct Payments","Direct Payments to Clients",12/03/2020 00:00:00,"30373160",2981,"REDACT PERSONAL INFORMATION"
"Bracknell Forest Council","http://opendatacommunities.org/id/unitary-authority/bracknell-forest","Bracknell Forest Council","00MA","Social Support - Support for Carer","Social Support - Support for Carer","Social Support - Support for Carer","Direct Payments to Clients",09/01/2020 00:00:00,"30369493",500,"REDACT PERSONAL INFORMATION"
"Bracknell Forest Council","http://opendatacommunities.org/id/unitary-authority/bracknell-forest","Bracknell Forest Council","00MA","Older People (65+)","Long term Support - Community:Direct Payments","PS Older People 65+ Long Term Support - Community:Direct Payments","Direct Payments to Clients",19/12/2019 00:00:00,"30368471",1809.08,"REDACT PERSONAL INFORMATION"
"Bracknell Forest Council","http://opendatacommunities.org/id/unitary-authority/bracknell-forest","Bracknell Forest Council","00MA","Older People (65+)","Long term Support - Community:Direct Payments","PS Older People 65+ Long Term Support - Community:Direct Payments","Direct Payments to Clients",13/02/2020 00:00:00,"30371524",1809.08,"REDACT PERSONAL INFORMATION"
"Bracknell Forest Council","http://opendatacommunities.org/id/unitary-authority/bracknell-forest","Bracknell Forest Council","00MA","Older People (65+)","Long term Support - Community:Direct Payments","PS Older People 65+ Long Term Support - Community:Direct Payments","Direct Payments to Clients",12/03/2020 00:00:00,"30373160",1809.08,"REDACT PERSONAL INFORMATION"
"Bracknell Forest Council","http://opendatacommunities.org/id/unitary-authority/bracknell-forest","Bracknell Forest Council","00MA","Older People (65+)","Long term Support - Community:Direct Payments","PS Older People 65+ Long Term Support - Community:Direct Payments","Direct Payments to Clients",16/01/2020 00:00:00,"30369843",1809.08,"REDACT PERSONAL INFORMATION"
"Bracknell Forest Council","http://opendatacommunities.org/id/unitary-authority/bracknell-forest","Bracknell Forest Council","00MA","Safeguarding Children and Young People's Services","Social Work","Family Group Conferences","Consultants Fees",20/01/2020 00:00:00,"6697084",511.6,"REDACT PERSONAL INFORMATION"
"Bracknell Forest Council","http://opendatacommunities.org/id/unitary-authority/bracknell-forest","Bracknell Forest Council","00MA","Safeguarding Children and Young People's Services","Social Work","Family Group Conferences","Consultants Fees",01/03/2020 00:00:00,"6699587",574.35,"REDACT PERSONAL INFORMATION"
"Bracknell Forest Council","http://opendatacommunities.org/id/unitary-authority/bracknell-forest","Bracknell Forest Council","00MA","Safeguarding Children and Young People's Services","Social Work","Family Group Conferences","Consultants Fees",03/11/2019 00:00:00,"6694599",539.75,"REDACT PERSONAL INFORMATION"
"Bracknell Forest Council","http://opendatacommunities.org/id/unitary-authority/bracknell-forest","Bracknell Forest Council","00MA","Family Support Services","Direct payments","Direct Payments for Children","Direct Payments to Clients",19/12/2019 00:00:00,"30368471",595.08,"REDACT PERSONAL INFORMATION"
"Bracknell Forest Council","http://opendatacommunities.org/id/unitary-authority/bracknell-forest","Bracknell Forest Council","00MA","Family Support Services","Direct payments","Direct Payments for Children","Direct Payments to Clients",16/01/2020 00:00:00,"30369843",595.08,"REDACT PERSONAL INFORMATION"
"Bracknell Forest Council","http://opendatacommunities.org/id/unitary-authority/bracknell-forest","Bracknell Forest Council","00MA","Family Support Services","Direct payments","Direct Payments for Children","Direct Payments to Clients",12/03/2020 00:00:00,"30373160",595.08,"REDACT PERSONAL INFORMATION"
"Bracknell Forest Council","http://opendatacommunities.org/id/unitary-authority/bracknell-forest","Bracknell Forest Council","00MA","Family Support Services","Direct payments","Direct Payments for Children","Direct Payments to Clients",13/02/2020 00:00:00,"30371524",595.08,"REDACT PERSONAL INFORMATION"
"Bracknell Forest Council","http://opendatacommunities.org/id/unitary-authority/bracknell-forest","Bracknell Forest Council","00MA","Miscellaneous Public Health Services","Public Health Teams","Public Health - Bracknell Team","Contracted Services",27/02/2020 00:00:00,"6699757",1523.4,"REDACT PERSONAL INFORMATION"
"Bracknell Forest Council","http://opendatacommunities.org/id/unitary-authority/bracknell-forest","Bracknell Forest Council","00MA","Commissioning & Service Delivery","Commissioning & Service Delivery","Direct Payments Personal Health Budgets","Direct Payments to Clients",16/01/2020 00:00:00,"30369843",12944.96,"REDACT PERSONAL INFORMATION"
"Bracknell Forest Council","http://opendatacommunities.org/id/unitary-authority/bracknell-forest","Bracknell Forest Council","00MA","Commissioning & Service Delivery","Commissioning & Service Delivery","Direct Payments Personal Health Budgets","Direct Payments to Clients",13/02/2020 00:00:00,"30371524",12944.96,"REDACT PERSONAL INFORMATION"
"Bracknell Forest Council","http://opendatacommunities.org/id/unitary-authority/bracknell-forest","Bracknell Forest Council","00MA","Commissioning & Service Delivery","Commissioning & Service Delivery","Direct Payments Personal Health Budgets","Direct Payments to Clients",12/03/2020 00:00:00,"30373160",12944.96,"REDACT PERSONAL INFORMATION"
"Bracknell Forest Council","http://opendatacommunities.org/id/unitary-authority/bracknell-forest","Bracknell Forest Council","00MA","Commissioning & Service Delivery","Commissioning & Service Delivery","Direct Payments Personal Health Budgets","Direct Payments to Clients",19/12/2019 00:00:00,"30368471",12944.96,"REDACT PERSONAL INFORMATION"
"Bracknell Forest Council","http://opendatacommunities.org/id/unitary-authority/bracknell-forest","Bracknell Forest Council","00MA","Older People (65+)","Long term Support - Community:Direct Payments","PS Older People 65+ Long Term Support - Community:Direct Payments","Direct Payments to Clients",13/02/2020 00:00:00,"30371524",1611.2,"REDACT PERSONAL INFORMATION"
"Bracknell Forest Council","http://opendatacommunities.org/id/unitary-authority/bracknell-forest","Bracknell Forest Council","00MA","Older People (65+)","Long term Support - Community:Direct Payments","PS Older People 65+ Long Term Support - Community:Direct Payments","Direct Payments to Clients",19/12/2019 00:00:00,"30368471",1611.2,"REDACT PERSONAL INFORMATION"
"Bracknell Forest Council","http://opendatacommunities.org/id/unitary-authority/bracknell-forest","Bracknell Forest Council","00MA","Older People (65+)","Long term Support - Community:Direct Payments","PS Older People 65+ Long Term Support - Community:Direct Payments","Direct Payments to Clients",16/01/2020 00:00:00,"30369843",1611.2,"REDACT PERSONAL INFORMATION"
"Bracknell Forest Council","http://opendatacommunities.org/id/unitary-authority/bracknell-forest","Bracknell Forest Council","00MA","Older People (65+)","Long term Support - Community:Direct Payments","PS Older People 65+ Long Term Support - Community:Direct Payments","Direct Payments to Clients",12/03/2020 00:00:00,"30373160",1611.2,"REDACT PERSONAL INFORMATION"
"Bracknell Forest Council","http://opendatacommunities.org/id/unitary-authority/bracknell-forest","Bracknell Forest Council","00MA","Substance Misuse","Drug misuse in adults","SM DAAT Administration Costs","Training Costs",21/02/2020 00:00:00,"6698996",659.15,"ANTONIO  D'AGOSTINO - TD CONSULTANCY"
"Bracknell Forest Council","http://opendatacommunities.org/id/unitary-authority/bracknell-forest","Bracknell Forest Council","00MA","Substance Misuse","Drug misuse in adults","SM DAAT Administration Costs","Training Costs",05/12/2019 00:00:00,"6697096",669.64,"ANTONIO  D'AGOSTINO - TD CONSULTANCY"
"Bracknell Forest Council","http://opendatacommunities.org/id/unitary-authority/bracknell-forest","Bracknell Forest Council","00MA","Substance Misuse","Drug misuse in adults","SM DAAT Administration Costs","Training Costs",29/11/2019 00:00:00,"6694122",626.35,"ANTONIO  D'AGOSTINO - TD CONSULTANCY"
"Bracknell Forest Council","http://opendatacommunities.org/id/unitary-authority/bracknell-forest","Bracknell Forest Council","00MA","Substance Misuse","Drug misuse in adults","SM DAAT Administration Costs","Training Costs",24/01/2020 00:00:00,"6697122",664.3,"ANTONIO  D'AGOSTINO - TD CONSULTANCY"
"Bracknell Forest Council","http://opendatacommunities.org/id/unitary-authority/bracknell-forest","Bracknell Forest Council","00MA","Other Welfare Services","Other Welfare Services","Forestcare - Lifeline (Running Costs)","Equipment - Purchase",09/02/2020 00:00:00,"6699785",1875,"ANYWHERE CARE LIMITED"
"Bracknell Forest Council","http://opendatacommunities.org/id/unitary-authority/bracknell-forest","Bracknell Forest Council","00MA","Other Welfare Services","Other Welfare Services","Forestcare - Lifeline (Running Costs)","Equipment - Rental",09/02/2020 00:00:00,"6699785",1500,"ANYWHERE CARE LIMITED"
"Bracknell Forest Council","http://opendatacommunities.org/id/unitary-authority/bracknell-forest","Bracknell Forest Council","00MA","Other Welfare Services","Other Welfare Services","Forestcare - Operational","Equipment - Purchase",18/12/2019 00:00:00,"6695196",750,"ANYWHERE CARE LIMITED"
"Bracknell Forest Council","http://opendatacommunities.org/id/unitary-authority/bracknell-forest","Bracknell Forest Council","00MA","Other Welfare Services","Other Welfare Services","Forestcare - Operational","Equipment - Rental",18/12/2019 00:00:00,"6695196",600,"ANYWHERE CARE LIMITED"
"Bracknell Forest Council","http://opendatacommunities.org/id/unitary-authority/bracknell-forest","Bracknell Forest Council","00MA","Other Welfare Services","Other Welfare Services","Forestcare - Lifeline (Community Alarms)","Equipment - Rental",11/10/2019 00:00:00,"6694628",1500,"ANYWHERE CARE LIMITED"
"Bracknell Forest Council","http://opendatacommunities.org/id/unitary-authority/bracknell-forest","Bracknell Forest Council","00MA","Other Welfare Services","Other Welfare Services","Forestcare - Lifeline (Community Alarms)","Equipment - Rental",03/02/2020 00:00:00,"6697559",2700,"ANYWHERE CARE LIMITED"
"Bracknell Forest Council","http://opendatacommunities.org/id/unitary-authority/bracknell-forest","Bracknell Forest Council","00MA","Other Welfare Services","Other Welfare Services","Forestcare - Lifeline (Running Costs)","Equipment - Rental",18/02/2020 00:00:00,"6700887",29400,"ANYWHERE CARE LIMITED"
"Bracknell Forest Council","http://opendatacommunities.org/id/unitary-authority/bracknell-forest","Bracknell Forest Council","00MA","Management and Support Services - CYPL","Unallocated High Needs Related Expenditure","Mainstream - Element 3 top up non BFC pre 16","Slough BC",08/01/2020 00:00:00,"6696207",5000,"ARBOUR VALE SCHOOL"
"Bracknell Forest Council","http://opendatacommunities.org/id/unitary-authority/bracknell-forest","Bracknell Forest Council","00MA","Management and Support Services - CYPL","Unallocated High Needs Related Expenditure","Mainstream - Element 3 top up non BFC pre 16","Slough BC",02/01/2020 00:00:00,"6695370",8333.33,"ARBOUR VALE SCHOOL"
"Bracknell Forest Council","http://opendatacommunities.org/id/unitary-authority/bracknell-forest","Bracknell Forest Council","00MA","Management and Support Services - CYPL","Unallocated High Needs Related Expenditure","Mainstream - Element 3 top up non BFC pre 16","Slough BC",02/01/2020 00:00:00,"6695371",3333.33,"ARBOUR VALE SCHOOL"
"Bracknell Forest Council","http://opendatacommunities.org/id/unitary-authority/bracknell-forest","Bracknell Forest Council","00MA","Children Looked After","Leaving care support services","Care Leavers Support","Other Support to Clients",01/12/2019 00:00:00,"6694268",669.07,"ARGOS BUSINESS"
"Bracknell Forest Council","http://opendatacommunities.org/id/unitary-authority/bracknell-forest","Bracknell Forest Council","00MA","Children Looked After","Short breaks for LAC","Larchwood Running Costs","R&M - Service Contracts",27/02/2020 00:00:00,"6700164",623,"ARJO UK LTD"
"Bracknell Forest Council","http://opendatacommunities.org/id/unitary-authority/bracknell-forest","Bracknell Forest Council","00MA","Open Spaces","Community Parks & Open Spaces","Tree Service","Contracted Services",31/01/2020 00:00:00,"6699643",2130,"ARTEMIS TREE SERVICES"
"Bracknell Forest Council","http://opendatacommunities.org/id/unitary-authority/bracknell-forest","Bracknell Forest Council","00MA","Open Spaces","Community Parks & Open Spaces","Tree Service","Contracted Services",30/01/2020 00:00:00,"6699636",640,"ARTEMIS TREE SERVICES"
"Bracknell Forest Council","http://opendatacommunities.org/id/unitary-authority/bracknell-forest","Bracknell Forest Council","00MA","Open Spaces","Community Parks & Open Spaces","Tree Service","Contracted Services",05/02/2020 00:00:00,"6700379",1280,"ARTEMIS TREE SERVICES"
"Bracknell Forest Council","http://opendatacommunities.org/id/unitary-authority/bracknell-forest","Bracknell Forest Council","00MA","Open Spaces","Community Parks & Open Spaces","Tree Service","Contracted Services",24/03/2020 00:00:00,"6701126",17520,"ARTEMIS TREE SERVICES"
"Bracknell Forest Council","http://opendatacommunities.org/id/unitary-authority/bracknell-forest","Bracknell Forest Council","00MA","Environment, Safety & Routine Maintenance","Environmental Maintenance (Principal Roads)","Tree Maintenance","Contracted Services",24/03/2020 00:00:00,"6701126",4270,"ARTEMIS TREE SERVICES"
"Bracknell Forest Council","http://opendatacommunities.org/id/unitary-authority/bracknell-forest","Bracknell Forest Council","00MA","","","Local Safety Schemes","Construction - Other Direct Expenses",17/02/2020 00:00:00,"6699417",640,"ARTEMIS TREE SERVICES"
"Bracknell Forest Council","http://opendatacommunities.org/id/unitary-authority/bracknell-forest","Bracknell Forest Council","00MA","Social Support - Support for Carer","Social Support - Support for Carer","Social Support - Support for Carer","Direct Payments to Clients",05/12/2019 00:00:00,"30367795",500,"REDACT PERSONAL INFORMATION"
"Bracknell Forest Council","http://opendatacommunities.org/id/unitary-authority/bracknell-forest","Bracknell Forest Council","00MA","Older People (65+)","Long Term Support - Community:Other Long Term Care","MC Older People 65+ Long Term Support - Community:Other Long Term Care","Contracted Services",12/03/2020 00:00:00,"30373162",1585.72,"ASCOT RESIDENTIAL HOMES LTD"
"Bracknell Forest Council","http://opendatacommunities.org/id/unitary-authority/bracknell-forest","Bracknell Forest Council","00MA","Older People (65+)","Long Term Support - Nursing","PS Older People 65+ Long Term Support - Nursing","Contracted Services",19/03/2020 00:00:00,"30373495",1662.06,"ASCOT RESIDENTIAL HOMES LTD"
"Bracknell Forest Council","http://opendatacommunities.org/id/unitary-authority/bracknell-forest","Bracknell Forest Council","00MA","Older People (65+)","Long Term Support - Nursing","MC Older People 65+ Long Term Support - Nursing","Contracted Services",19/03/2020 00:00:00,"30373495",3800,"ASCOT RESIDENTIAL HOMES LTD"
"Bracknell Forest Council","http://opendatacommunities.org/id/unitary-authority/bracknell-forest","Bracknell Forest Council","00MA","Older People (65+)","Long Term Support - Nursing","MC Older People 65+ Long Term Support - Nursing","Contracted Services",20/02/2020 00:00:00,"30371861",4543.88,"ASCOT RESIDENTIAL HOMES LTD"
"Bracknell Forest Council","http://opendatacommunities.org/id/unitary-authority/bracknell-forest","Bracknell Forest Council","00MA","Older People (65+)","Long Term Support - Nursing","MC Older People 65+ Long Term Support - Nursing","Contracted Services",23/01/2020 00:00:00,"30370176",4543.88,"ASCOT RESIDENTIAL HOMES LTD"
"Bracknell Forest Council","http://opendatacommunities.org/id/unitary-authority/bracknell-forest","Bracknell Forest Council","00MA","Older People (65+)","Long Term Support - Nursing","MC Older People 65+ Long Term Support - Nursing","Contracted Services",24/12/2019 00:00:00,"30368706",4543.88,"ASCOT RESIDENTIAL HOMES LTD"
"Bracknell Forest Council","http://opendatacommunities.org/id/unitary-authority/bracknell-forest","Bracknell Forest Council","00MA","Older People (65+)","Long Term Support - Nursing","MC Older People 65+ Long Term Support - Nursing","Contracted Services",19/03/2020 00:00:00,"30373495",4543.88,"ASCOT RESIDENTIAL HOMES LTD"
"Bracknell Forest Council","http://opendatacommunities.org/id/unitary-authority/bracknell-forest","Bracknell Forest Council","00MA","Older People (65+)","Long Term Support - Nursing","MC Older People 65+ Long Term Support - Nursing","Contracted Services",23/01/2020 00:00:00,"30370176",4800,"ASCOT RESIDENTIAL HOMES LTD"
"Bracknell Forest Council","http://opendatacommunities.org/id/unitary-authority/bracknell-forest","Bracknell Forest Council","00MA","Older People (65+)","Long Term Support - Nursing","MC Older People 65+ Long Term Support - Nursing","Contracted Services",24/12/2019 00:00:00,"30368706",4800,"ASCOT RESIDENTIAL HOMES LTD"
"Bracknell Forest Council","http://opendatacommunities.org/id/unitary-authority/bracknell-forest","Bracknell Forest Council","00MA","Older People (65+)","Long Term Support - Nursing","MC Older People 65+ Long Term Support - Nursing","Contracted Services",19/03/2020 00:00:00,"30373495",4800,"ASCOT RESIDENTIAL HOMES LTD"
"Bracknell Forest Council","http://opendatacommunities.org/id/unitary-authority/bracknell-forest","Bracknell Forest Council","00MA","Older People (65+)","Long Term Support - Nursing","MC Older People 65+ Long Term Support - Nursing","Contracted Services",20/02/2020 00:00:00,"30371861",4800,"ASCOT RESIDENTIAL HOMES LTD"
"Bracknell Forest Council","http://opendatacommunities.org/id/unitary-authority/bracknell-forest","Bracknell Forest Council","00MA","Older People (65+)","Long Term Support - Nursing","PS Older People 65+ Long Term Support - Nursing","Contracted Services",20/02/2020 00:00:00,"30371861",5170.84,"ASCOT RESIDENTIAL HOMES LTD"
"Bracknell Forest Council","http://opendatacommunities.org/id/unitary-authority/bracknell-forest","Bracknell Forest Council","00MA","Older People (65+)","Long Term Support - Nursing","PS Older People 65+ Long Term Support - Nursing","Contracted Services",24/12/2019 00:00:00,"30368706",5170.84,"ASCOT RESIDENTIAL HOMES LTD"
"Bracknell Forest Council","http://opendatacommunities.org/id/unitary-authority/bracknell-forest","Bracknell Forest Council","00MA","Older People (65+)","Long Term Support - Nursing","PS Older People 65+ Long Term Support - Nursing","Contracted Services",23/01/2020 00:00:00,"30370176",5170.84,"ASCOT RESIDENTIAL HOMES LTD"
"Bracknell Forest Council","http://opendatacommunities.org/id/unitary-authority/bracknell-forest","Bracknell Forest Council","00MA","Older People (65+)","Long Term Support - Nursing","MC Older People 65+ Long Term Support - Nursing","Contracted Services",19/03/2020 00:00:00,"30373495",5480,"ASCOT RESIDENTIAL HOMES LTD"
"Bracknell Forest Council","http://opendatacommunities.org/id/unitary-authority/bracknell-forest","Bracknell Forest Council","00MA","Older People (65+)","Long Term Support - Nursing","MC Older People 65+ Long Term Support - Nursing","Contracted Services",23/01/2020 00:00:00,"30370176",8371.44,"ASCOT RESIDENTIAL HOMES LTD"
"Bracknell Forest Council","http://opendatacommunities.org/id/unitary-authority/bracknell-forest","Bracknell Forest Council","00MA","Older People (65+)","Long term Support - Residential","PS Older People 65+ Long Term Support - Residential","Contracted Services",19/03/2020 00:00:00,"30373495",2579.64,"ASHGROVE CARE HOME"
"Bracknell Forest Council","http://opendatacommunities.org/id/unitary-authority/bracknell-forest","Bracknell Forest Council","00MA","Older People (65+)","Long term Support - Residential","PS Older People 65+ Long Term Support - Residential","Contracted Services",24/12/2019 00:00:00,"30368706",2579.64,"ASHGROVE CARE HOME"
"Bracknell Forest Council","http://opendatacommunities.org/id/unitary-authority/bracknell-forest","Bracknell Forest Council","00MA","Older People (65+)","Long term Support - Residential","PS Older People 65+ Long Term Support - Residential","Contracted Services",23/01/2020 00:00:00,"30370176",2579.64,"ASHGROVE CARE HOME"
"Bracknell Forest Council","http://opendatacommunities.org/id/unitary-authority/bracknell-forest","Bracknell Forest Council","00MA","Older People (65+)","Long term Support - Residential","PS Older People 65+ Long Term Support - Residential","Contracted Services",20/02/2020 00:00:00,"30371861",2579.64,"ASHGROVE CARE HOME"
"Bracknell Forest Council","http://opendatacommunities.org/id/unitary-authority/bracknell-forest","Bracknell Forest Council","00MA","Culture and Heritage","Heritage Museums & Galleries","The Look Out","Cost of Goods Sold",31/10/2019 00:00:00,"6692447",1233.49,"ASHWOOD"
"Bracknell Forest Council","http://opendatacommunities.org/id/unitary-authority/bracknell-forest","Bracknell Forest Council","00MA","Libraries","Stock Ordering, Cataloguing & Distribution","Library Book Fund","Audio/Visual materials",10/02/2020 00:00:00,"6700140",535.02,"ASKEWS & HOLTS LIBRARY SERVICE"
"Bracknell Forest Council","http://opendatacommunities.org/id/unitary-authority/bracknell-forest","Bracknell Forest Council","00MA","Libraries","Stock Ordering, Cataloguing & Distribution","Library Book Fund","Audio/Visual materials",05/08/2019 00:00:00,"6700144",970.8,"ASKEWS & HOLTS LIBRARY SERVICE"
"Bracknell Forest Council","http://opendatacommunities.org/id/unitary-authority/bracknell-forest","Bracknell Forest Council","00MA","Libraries","Stock Ordering, Cataloguing & Distribution","Library Book Fund","Audio/Visual materials",05/08/2019 00:00:00,"6700144",869.62,"ASKEWS & HOLTS LIBRARY SERVICE"
"Bracknell Forest Council","http://opendatacommunities.org/id/unitary-authority/bracknell-forest","Bracknell Forest Council","00MA","Libraries","Stock Ordering, Cataloguing & Distribution","Library Book Fund","Audio/Visual materials",05/08/2019 00:00:00,"6700144",518.97,"ASKEWS & HOLTS LIBRARY SERVICE"
"Bracknell Forest Council","http://opendatacommunities.org/id/unitary-authority/bracknell-forest","Bracknell Forest Council","00MA","Libraries","Stock Ordering, Cataloguing & Distribution","Library Book Fund","Audio/Visual materials",27/01/2020 00:00:00,"6697598",695.16,"ASKEWS & HOLTS LIBRARY SERVICE"
"Bracknell Forest Council","http://opendatacommunities.org/id/unitary-authority/bracknell-forest","Bracknell Forest Council","00MA","Libraries","Stock Ordering, Cataloguing & Distribution","Library Book Fund","Audio/Visual materials",13/01/2020 00:00:00,"6697021",602.52,"ASKEWS & HOLTS LIBRARY SERVICE"
"Bracknell Forest Council","http://opendatacommunities.org/id/unitary-authority/bracknell-forest","Bracknell Forest Council","00MA","Libraries","Stock Ordering, Cataloguing & Distribution","Library Book Fund","Audio/Visual materials",02/03/2020 00:00:00,"6700467",671.04,"ASKEWS & HOLTS LIBRARY SERVICE"
"Bracknell Forest Council","http://opendatacommunities.org/id/unitary-authority/bracknell-forest","Bracknell Forest Council","00MA","Libraries","Stock Ordering, Cataloguing & Distribution","Library Book Fund","Audio/Visual materials",16/12/2019 00:00:00,"6695266",719.82,"ASKEWS & HOLTS LIBRARY SERVICE"
"Bracknell Forest Council","http://opendatacommunities.org/id/unitary-authority/bracknell-forest","Bracknell Forest Council","00MA","Libraries","Stock Ordering, Cataloguing & Distribution","Library Book Fund","Audio/Visual materials",27/01/2020 00:00:00,"6697598",1374.6,"ASKEWS & HOLTS LIBRARY SERVICE"
"Bracknell Forest Council","http://opendatacommunities.org/id/unitary-authority/bracknell-forest","Bracknell Forest Council","00MA","Libraries","Stock Ordering, Cataloguing & Distribution","Library Book Fund","Audio/Visual materials",02/12/2019 00:00:00,"6694504",832.78,"ASKEWS & HOLTS LIBRARY SERVICE"
"Bracknell Forest Council","http://opendatacommunities.org/id/unitary-authority/bracknell-forest","Bracknell Forest Council","00MA","Libraries","Stock Ordering, Cataloguing & Distribution","Library Book Fund","Audio/Visual materials",20/01/2020 00:00:00,"6697599",1006.59,"ASKEWS & HOLTS LIBRARY SERVICE"
"Bracknell Forest Council","http://opendatacommunities.org/id/unitary-authority/bracknell-forest","Bracknell Forest Council","00MA","Libraries","Stock Ordering, Cataloguing & Distribution","Library Book Fund","Audio/Visual materials",20/01/2020 00:00:00,"6697599",766.61,"ASKEWS & HOLTS LIBRARY SERVICE"
"Bracknell Forest Council","http://opendatacommunities.org/id/unitary-authority/bracknell-forest","Bracknell Forest Council","00MA","Libraries","Stock Ordering, Cataloguing & Distribution","Library Book Fund","Audio/Visual materials",14/10/2019 00:00:00,"6694998",507,"ASKEWS & HOLTS LIBRARY SERVICE"
"Bracknell Forest Council","http://opendatacommunities.org/id/unitary-authority/bracknell-forest","Bracknell Forest Council","00MA","Libraries","Stock Ordering, Cataloguing & Distribution","Library Book Fund","Audio/Visual materials",14/10/2019 00:00:00,"6694998",828.18,"ASKEWS & HOLTS LIBRARY SERVICE"
"Bracknell Forest Council","http://opendatacommunities.org/id/unitary-authority/bracknell-forest","Bracknell Forest Council","00MA","Libraries","Stock Ordering, Cataloguing & Distribution","Library Book Fund","Audio/Visual materials",14/10/2019 00:00:00,"6694998",1057.13,"ASKEWS & HOLTS LIBRARY SERVICE"
"Bracknell Forest Council","http://opendatacommunities.org/id/unitary-authority/bracknell-forest","Bracknell Forest Council","00MA","Libraries","Stock Ordering, Cataloguing & Distribution","Library Book Fund","Audio/Visual materials",03/02/2020 00:00:00,"6698562",567.2,"ASKEWS & HOLTS LIBRARY SERVICE"
"Bracknell Forest Council","http://opendatacommunities.org/id/unitary-authority/bracknell-forest","Bracknell Forest Council","00MA","Libraries","Stock Ordering, Cataloguing & Distribution","Library Book Fund","Audio/Visual materials",17/02/2020 00:00:00,"6699117",1243.57,"ASKEWS & HOLTS LIBRARY SERVICE"
"Bracknell Forest Council","http://opendatacommunities.org/id/unitary-authority/bracknell-forest","Bracknell Forest Council","00MA","Libraries","Stock Ordering, Cataloguing & Distribution","Library Book Fund","Audio/Visual materials",17/02/2020 00:00:00,"6699117",870.48,"ASKEWS & HOLTS LIBRARY SERVICE"
"Bracknell Forest Council","http://opendatacommunities.org/id/unitary-authority/bracknell-forest","Bracknell Forest Council","00MA","Libraries","Stock Ordering, Cataloguing & Distribution","Library Book Fund","Audio/Visual materials",17/02/2020 00:00:00,"6699117",976.86,"ASKEWS & HOLTS LIBRARY SERVICE"
"Bracknell Forest Council","http://opendatacommunities.org/id/unitary-authority/bracknell-forest","Bracknell Forest Council","00MA","Libraries","Stock Ordering, Cataloguing & Distribution","Library Book Fund","Audio/Visual materials",16/03/2020 00:00:00,"6700954",799.53,"ASKEWS & HOLTS LIBRARY SERVICE"
"Bracknell Forest Council","http://opendatacommunities.org/id/unitary-authority/bracknell-forest","Bracknell Forest Council","00MA","Libraries","Stock Ordering, Cataloguing & Distribution","Library Book Fund","Audio/Visual materials",16/03/2020 00:00:00,"6700954",744.79,"ASKEWS & HOLTS LIBRARY SERVICE"
"Bracknell Forest Council","http://opendatacommunities.org/id/unitary-authority/bracknell-forest","Bracknell Forest Council","00MA","Culture and Heritage","Heritage Museums & Galleries","The Look Out","Other Fees for Bought-in Services",17/02/2020 00:00:00,"6698893",1012.5,"ASSESSMENT SERVICES"
"Bracknell Forest Council","http://opendatacommunities.org/id/unitary-authority/bracknell-forest","Bracknell Forest Council","00MA","Sexual Health Services","Contraception","GP LARC Payments","Contracted Services",20/01/2020 00:00:00,"6696818",4700,"ASSURA READING LLP"
"Bracknell Forest Council","http://opendatacommunities.org/id/unitary-authority/bracknell-forest","Bracknell Forest Council","00MA","Assistive Equipment & Technology","Assistive Equipment & Technology","Assistive Equipment and Technology","Equipment - Purchase",07/02/2020 00:00:00,"6698687",950,"AST SERVICES"
"Bracknell Forest Council","http://opendatacommunities.org/id/unitary-authority/bracknell-forest","Bracknell Forest Council","00MA","Older People (65+)","Long Term Support - Community:Other Long Term Care","PS Older People 65+ Long Term Support - Community:Other Long Term Care","Contracted Services",19/12/2019 00:00:00,"30368470",1162.81,"ASTBURY MANOR CARE HOME"
"Bracknell Forest Council","http://opendatacommunities.org/id/unitary-authority/bracknell-forest","Bracknell Forest Council","00MA","Older People (65+)","Long term Support - Residential","PS Older People 65+ Long Term Support - Residential","Contracted Services",24/12/2019 00:00:00,"30368706",1268.57,"ASTBURY MANOR CARE HOME"
"Bracknell Forest Council","http://opendatacommunities.org/id/unitary-authority/bracknell-forest","Bracknell Forest Council","00MA","Older People (65+)","Long term Support - Residential","PS Older People 65+ Long Term Support - Residential","Contracted Services",20/02/2020 00:00:00,"30371861",1374.29,"ASTBURY MANOR CARE HOME"
"Bracknell Forest Council","http://opendatacommunities.org/id/unitary-authority/bracknell-forest","Bracknell Forest Council","00MA","Older People (65+)","Short Term Support Other","MC Older People 65+ Other Short Term support","Contracted Services",24/12/2019 00:00:00,"30368706",1480,"ASTBURY MANOR CARE HOME"
"Bracknell Forest Council","http://opendatacommunities.org/id/unitary-authority/bracknell-forest","Bracknell Forest Council","00MA","Older People (65+)","Long term Support - Residential","MC Older People 65+ Long Term Support - Residential","Contracted Services",19/03/2020 00:00:00,"30373495",1480,"ASTBURY MANOR CARE HOME"
"Bracknell Forest Council","http://opendatacommunities.org/id/unitary-authority/bracknell-forest","Bracknell Forest Council","00MA","Older People (65+)","Long Term Support - Community:Other Long Term Care","MC Older People 65+ Long Term Support - Community:Other Long Term Care","Contracted Services",19/12/2019 00:00:00,"30368470",1480,"ASTBURY MANOR CARE HOME"
"Bracknell Forest Council","http://opendatacommunities.org/id/unitary-authority/bracknell-forest","Bracknell Forest Council","00MA","Older People (65+)","Long Term Support - Community:Other Long Term Care","PS Older People 65+ Long Term Support - Community:Other Long Term Care","Contracted Services",19/12/2019 00:00:00,"30368470",2220,"ASTBURY MANOR CARE HOME"
"Bracknell Forest Council","http://opendatacommunities.org/id/unitary-authority/bracknell-forest","Bracknell Forest Council","00MA","Older People (65+)","Long term Support - Residential","MC Older People 65+ Long Term Support - Residential","Contracted Services",19/03/2020 00:00:00,"30373495",2642.86,"ASTBURY MANOR CARE HOME"
"Bracknell Forest Council","http://opendatacommunities.org/id/unitary-authority/bracknell-forest","Bracknell Forest Council","00MA","Older People (65+)","Long term Support - Residential","PS Older People 65+ Long Term Support - Residential","Contracted Services",23/01/2020 00:00:00,"30370176",2960,"ASTBURY MANOR CARE HOME"
"Bracknell Forest Council","http://opendatacommunities.org/id/unitary-authority/bracknell-forest","Bracknell Forest Council","00MA","Adults (18-64)","Long term Support - Residential","MC Adults 18-64 Long Term Support - Residential","Contracted Services",23/01/2020 00:00:00,"30370176",2960,"ASTBURY MANOR CARE HOME"
"Bracknell Forest Council","http://opendatacommunities.org/id/unitary-authority/bracknell-forest","Bracknell Forest Council","00MA","Adults (18-64)","Long term Support - Residential","MC Adults 18-64 Long Term Support - Residential","Contracted Services",20/02/2020 00:00:00,"30371861",2960,"ASTBURY MANOR CARE HOME"
"Bracknell Forest Council","http://opendatacommunities.org/id/unitary-authority/bracknell-forest","Bracknell Forest Council","00MA","Older People (65+)","Long term Support - Residential","MC Older People 65+ Long Term Support - Residential","Contracted Services",23/01/2020 00:00:00,"30370176",2960,"ASTBURY MANOR CARE HOME"
"Bracknell Forest Council","http://opendatacommunities.org/id/unitary-authority/bracknell-forest","Bracknell Forest Council","00MA","Adults (18-64)","Long term Support - Residential","MC Adults 18-64 Long Term Support - Residential","Contracted Services",24/12/2019 00:00:00,"30368706",2960,"ASTBURY MANOR CARE HOME"
"Bracknell Forest Council","http://opendatacommunities.org/id/unitary-authority/bracknell-forest","Bracknell Forest Council","00MA","Adults (18-64)","Long term Support - Residential","MC Adults 18-64 Long Term Support - Residential","Contracted Services",19/03/2020 00:00:00,"30373495",2960,"ASTBURY MANOR CARE HOME"
"Bracknell Forest Council","http://opendatacommunities.org/id/unitary-authority/bracknell-forest","Bracknell Forest Council","00MA","Older People (65+)","Long term Support - Residential","PS Older People 65+ Long Term Support - Residential","Contracted Services",24/12/2019 00:00:00,"30368706",2960,"ASTBURY MANOR CARE HOME"
"Bracknell Forest Council","http://opendatacommunities.org/id/unitary-authority/bracknell-forest","Bracknell Forest Council","00MA","Older People (65+)","Long term Support - Residential","MC Older People 65+ Long Term Support - Residential","Contracted Services",24/12/2019 00:00:00,"30368706",2960,"ASTBURY MANOR CARE HOME"
"Bracknell Forest Council","http://opendatacommunities.org/id/unitary-authority/bracknell-forest","Bracknell Forest Council","00MA","Older People (65+)","Short Term Support Other","MC Older People 65+ Other Short Term support","Contracted Services",23/01/2020 00:00:00,"30370176",3171.43,"ASTBURY MANOR CARE HOME"
"Bracknell Forest Council","http://opendatacommunities.org/id/unitary-authority/bracknell-forest","Bracknell Forest Council","00MA","Older People (65+)","Long term Support - Residential","MC Older People 65+ Long Term Support - Residential","Contracted Services",23/01/2020 00:00:00,"30370176",4600,"ASTBURY MANOR CARE HOME"
"Bracknell Forest Council","http://opendatacommunities.org/id/unitary-authority/bracknell-forest","Bracknell Forest Council","00MA","Older People (65+)","Long term Support - Residential","MC Older People 65+ Long Term Support - Residential","Contracted Services",24/12/2019 00:00:00,"30368706",4600,"ASTBURY MANOR CARE HOME"
"Bracknell Forest Council","http://opendatacommunities.org/id/unitary-authority/bracknell-forest","Bracknell Forest Council","00MA","Older People (65+)","Long term Support - Residential","MC Older People 65+ Long Term Support - Residential","Contracted Services",19/03/2020 00:00:00,"30373495",4600,"ASTBURY MANOR CARE HOME"
"Bracknell Forest Council","http://opendatacommunities.org/id/unitary-authority/bracknell-forest","Bracknell Forest Council","00MA","Older People (65+)","Long term Support - Residential","MC Older People 65+ Long Term Support - Residential","Contracted Services",20/02/2020 00:00:00,"30371861",4600,"ASTBURY MANOR CARE HOME"
"Bracknell Forest Council","http://opendatacommunities.org/id/unitary-authority/bracknell-forest","Bracknell Forest Council","00MA","Short Term Support Maximise Independence","Short Term Support to Maximise Independence","Intermediate Care Beds (External)","Contracted Services",20/02/2020 00:00:00,"30371861",5180,"ASTBURY MANOR CARE HOME"
"Bracknell Forest Council","http://opendatacommunities.org/id/unitary-authority/bracknell-forest","Bracknell Forest Council","00MA","Older People (65+)","Long term Support - Residential","MC Older People 65+ Long Term Support - Residential","Contracted Services",02/04/2020 00:00:00,"30374573",5920,"ASTBURY MANOR CARE HOME"
"Bracknell Forest Council","http://opendatacommunities.org/id/unitary-authority/bracknell-forest","Bracknell Forest Council","00MA","Older People (65+)","Long term Support - Residential","PS Older People 65+ Long Term Support - Residential","Contracted Services",02/04/2020 00:00:00,"30374573",7188.57,"ASTBURY MANOR CARE HOME"
"Bracknell Forest Council","http://opendatacommunities.org/id/unitary-authority/bracknell-forest","Bracknell Forest Council","00MA","Older People (65+)","Long term Support - Residential","PS Older People 65+ Long Term Support - Residential","Contracted Services",26/03/2020 00:00:00,"30373876",8140,"ASTBURY MANOR CARE HOME"
"Bracknell Forest Council","http://opendatacommunities.org/id/unitary-authority/bracknell-forest","Bracknell Forest Council","00MA","Older People (65+)","Long term Support - Residential","MC Older People 65+ Long Term Support - Residential","Contracted Services",26/03/2020 00:00:00,"30373876",10180,"ASTBURY MANOR CARE HOME"
"Bracknell Forest Council","http://opendatacommunities.org/id/unitary-authority/bracknell-forest","Bracknell Forest Council","00MA","Older People (65+)","Long term Support - Residential","MC Older People 65+ Long Term Support - Residential","Contracted Services",20/02/2020 00:00:00,"30371861",10994.29,"ASTBURY MANOR CARE HOME"
"Bracknell Forest Council","http://opendatacommunities.org/id/unitary-authority/bracknell-forest","Bracknell Forest Council","00MA","Older People (65+)","Long term Support - Residential","PS Older People 65+ Long Term Support - Residential","Contracted Services",23/01/2020 00:00:00,"30370176",11840,"ASTBURY MANOR CARE HOME"
"Bracknell Forest Council","http://opendatacommunities.org/id/unitary-authority/bracknell-forest","Bracknell Forest Council","00MA","Older People (65+)","Long term Support - Residential","PS Older People 65+ Long Term Support - Residential","Contracted Services",24/12/2019 00:00:00,"30368706",12262.86,"ASTBURY MANOR CARE HOME"
"Bracknell Forest Council","http://opendatacommunities.org/id/unitary-authority/bracknell-forest","Bracknell Forest Council","00MA","Older People (65+)","Long term Support - Residential","MC Older People 65+ Long Term Support - Residential","Contracted Services",24/12/2019 00:00:00,"30368706",43977.14,"ASTBURY MANOR CARE HOME"
"Bracknell Forest Council","http://opendatacommunities.org/id/unitary-authority/bracknell-forest","Bracknell Forest Council","00MA","Older People (65+)","Long term Support - Residential","MC Older People 65+ Long Term Support - Residential","Contracted Services",23/01/2020 00:00:00,"30370176",44400,"ASTBURY MANOR CARE HOME"
"Bracknell Forest Council","http://opendatacommunities.org/id/unitary-authority/bracknell-forest","Bracknell Forest Council","00MA","Older People (65+)","Long term Support - Residential","PS Older People 65+ Long Term Support - Residential","Contracted Services",20/02/2020 00:00:00,"30371861",45245.71,"ASTBURY MANOR CARE HOME"
"Bracknell Forest Council","http://opendatacommunities.org/id/unitary-authority/bracknell-forest","Bracknell Forest Council","00MA","Older People (65+)","Long term Support - Residential","MC Older People 65+ Long Term Support - Residential","Contracted Services",19/03/2020 00:00:00,"30373495",89857.14,"ASTBURY MANOR CARE HOME"
"Bracknell Forest Council","http://opendatacommunities.org/id/unitary-authority/bracknell-forest","Bracknell Forest Council","00MA","Holding Accounts not in Budget Book - COF","General Holding Accounts","Repairs and Maintenance","R&M - Reactive",30/08/2019 00:00:00,"6695033",815.59,"ATKINS LTD"
"Bracknell Forest Council","http://opendatacommunities.org/id/unitary-authority/bracknell-forest","Bracknell Forest Council","00MA","Holding Accounts not in Budget Book - COF","General Holding Accounts","Repairs and Maintenance","R&M - Reactive",20/12/2019 00:00:00,"6695489",891.38,"ATKINS LTD"
"Bracknell Forest Council","http://opendatacommunities.org/id/unitary-authority/bracknell-forest","Bracknell Forest Council","00MA","Holding Accounts not in Budget Book - COF","General Holding Accounts","Repairs and Maintenance","Consultants Fees",31/01/2020 00:00:00,"6698341",7079.59,"ATKINS LTD"
"Bracknell Forest Council","http://opendatacommunities.org/id/unitary-authority/bracknell-forest","Bracknell Forest Council","00MA","Business Support","Premises Development","Commercial Properties","Consultants Fees",20/12/2019 00:00:00,"6695586",7485.9,"ATKINS LTD"
"Bracknell Forest Council","http://opendatacommunities.org/id/unitary-authority/bracknell-forest","Bracknell Forest Council","00MA","Structural Maintenance","Bridges","Bridges","Consultants Fees",18/02/2020 00:00:00,"6700594",4619.92,"ATKINS LTD"
"Bracknell Forest Council","http://opendatacommunities.org/id/unitary-authority/bracknell-forest","Bracknell Forest Council","00MA","Central Support Services - COF","Construction and Property","Construction & Maintenance","Agency",31/01/2020 00:00:00,"6697575",8800,"ATKINS LTD"
"Bracknell Forest Council","http://opendatacommunities.org/id/unitary-authority/bracknell-forest","Bracknell Forest Council","00MA","Central Support Services - COF","Construction and Property","Construction & Maintenance","Agency",27/03/2020 00:00:00,"6701176",9512.5,"ATKINS LTD"
"Bracknell Forest Council","http://opendatacommunities.org/id/unitary-authority/bracknell-forest","Bracknell Forest Council","00MA","Homelessness","Prevention","Housing Management Operational Costs","Agency",31/01/2020 00:00:00,"6697396",7562.5,"ATKINS LTD"
"Bracknell Forest Council","http://opendatacommunities.org/id/unitary-authority/bracknell-forest","Bracknell Forest Council","00MA","Homelessness","Prevention","Housing Management Operational Costs","Consultants Fees",20/12/2019 00:00:00,"6695493",7050,"ATKINS LTD"
"Bracknell Forest Council","http://opendatacommunities.org/id/unitary-authority/bracknell-forest","Bracknell Forest Council","00MA","Economic Development","Economic Development","Town Centre Redevelopment General Costs","Consultants Fees",23/12/2019 00:00:00,"6695649",5358.12,"ATKINS LTD"
"Bracknell Forest Council","http://opendatacommunities.org/id/unitary-authority/bracknell-forest","Bracknell Forest Council","00MA","Homelessness","Prevention","Housing Management Operational Costs","Consultants Fees",29/11/2019 00:00:00,"6695032",8200,"ATKINS LTD"
"Bracknell Forest Council","http://opendatacommunities.org/id/unitary-authority/bracknell-forest","Bracknell Forest Council","00MA","Homelessness","Prevention","Housing Management Operational Costs","Consultants Fees",25/10/2019 00:00:00,"6696049",8200,"ATKINS LTD"
"Bracknell Forest Council","http://opendatacommunities.org/id/unitary-authority/bracknell-forest","Bracknell Forest Council","00MA","Holding Accounts not in Budget Book - COF","General Holding Accounts","Certificated Contract Payments","Consultants Fees",29/11/2019 00:00:00,"6695094",7979.41,"ATKINS LTD"
"Bracknell Forest Council","http://opendatacommunities.org/id/unitary-authority/bracknell-forest","Bracknell Forest Council","00MA","Holding Accounts not in Budget Book - COF","General Holding Accounts","Certificated Contract Payments","Consultants Fees",29/11/2019 00:00:00,"6695096",6017.2,"ATKINS LTD"
"Bracknell Forest Council","http://opendatacommunities.org/id/unitary-authority/bracknell-forest","Bracknell Forest Council","00MA","Holding Accounts not in Budget Book - COF","General Holding Accounts","Certificated Contract Payments","R&M - Reactive",27/09/2019 00:00:00,"6695115",12171.72,"ATKINS LTD"
"Bracknell Forest Council","http://opendatacommunities.org/id/unitary-authority/bracknell-forest","Bracknell Forest Council","00MA","Holding Accounts not in Budget Book - COF","General Holding Accounts","Repairs and Maintenance","R&M - Reactive",25/10/2019 00:00:00,"6696254",2652.3,"ATKINS LTD"
"Bracknell Forest Council","http://opendatacommunities.org/id/unitary-authority/bracknell-forest","Bracknell Forest Council","00MA","Holding Accounts not in Budget Book - COF","General Holding Accounts","Repairs and Maintenance","R&M - Reactive",25/10/2019 00:00:00,"6696255",1615.54,"ATKINS LTD"
"Bracknell Forest Council","http://opendatacommunities.org/id/unitary-authority/bracknell-forest","Bracknell Forest Council","00MA","Structural Maintenance","Bridges","Bridges","Consultants Fees",16/03/2020 00:00:00,"6700750",4682.74,"ATKINS LTD"
"Bracknell Forest Council","http://opendatacommunities.org/id/unitary-authority/bracknell-forest","Bracknell Forest Council","00MA","Structural Maintenance","Bridges","Bridges - Other Roads","Consultants Fees",16/03/2020 00:00:00,"6700750",1213.28,"ATKINS LTD"
"Bracknell Forest Council","http://opendatacommunities.org/id/unitary-authority/bracknell-forest","Bracknell Forest Council","00MA","Central Support Services - COF","Construction and Property","Construction & Maintenance","Agency",28/02/2020 00:00:00,"6699424",8800,"ATKINS LTD"
"Bracknell Forest Council","http://opendatacommunities.org/id/unitary-authority/bracknell-forest","Bracknell Forest Council","00MA","Structural Maintenance","Bridges","Bridges","Consultants Fees",11/12/2019 00:00:00,"6697127",2802.66,"ATKINS LTD"
"Bracknell Forest Council","http://opendatacommunities.org/id/unitary-authority/bracknell-forest","Bracknell Forest Council","00MA","Structural Maintenance","Bridges","Bridges - Other Roads","Consultants Fees",11/12/2019 00:00:00,"6697127",11003.41,"ATKINS LTD"
"Bracknell Forest Council","http://opendatacommunities.org/id/unitary-authority/bracknell-forest","Bracknell Forest Council","00MA","Structural Maintenance","Bridges","Bridges","Consultants Fees",31/03/2020 00:00:00,"6701286",5535.35,"ATKINS LTD"
"Bracknell Forest Council","http://opendatacommunities.org/id/unitary-authority/bracknell-forest","Bracknell Forest Council","00MA","Central Support Services - COF","Construction and Property","Construction & Maintenance","Agency",20/12/2019 00:00:00,"6695466",6662.5,"ATKINS LTD"
"Bracknell Forest Council","http://opendatacommunities.org/id/unitary-authority/bracknell-forest","Bracknell Forest Council","00MA","Structural Maintenance","Bridges","Bridges","Consultants Fees",01/10/2019 00:00:00,"6695497",5894.62,"ATKINS LTD"
"Bracknell Forest Council","http://opendatacommunities.org/id/unitary-authority/bracknell-forest","Bracknell Forest Council","00MA","Structural Maintenance","Bridges","Bridges - Other Roads","Consultants Fees",01/10/2019 00:00:00,"6695497",8699.71,"ATKINS LTD"
"Bracknell Forest Council","http://opendatacommunities.org/id/unitary-authority/bracknell-forest","Bracknell Forest Council","00MA","Commissioning & Service Delivery","Commissioning & Service Delivery","Continuing Healthcare","Consultants Fees",25/10/2019 00:00:00,"6695117",805.7,"ATKINS LTD"
"Bracknell Forest Council","http://opendatacommunities.org/id/unitary-authority/bracknell-forest","Bracknell Forest Council","00MA","Homelessness","Prevention","Housing Management Operational Costs","Agency",27/03/2020 00:00:00,"6701089",5825,"ATKINS LTD"
"Bracknell Forest Council","http://opendatacommunities.org/id/unitary-authority/bracknell-forest","Bracknell Forest Council","00MA","Holding Accounts not in Budget Book - COF","General Holding Accounts","Repairs and Maintenance","Consultants Fees",20/12/2020 00:00:00,"6697438",1264.3,"ATKINS LTD"
"Bracknell Forest Council","http://opendatacommunities.org/id/unitary-authority/bracknell-forest","Bracknell Forest Council","00MA","Structural Maintenance","Bridges","Bridges - Other Roads","Contracted Services",07/11/2019 00:00:00,"6695498",8449.57,"ATKINS LTD"
"Bracknell Forest Council","http://opendatacommunities.org/id/unitary-authority/bracknell-forest","Bracknell Forest Council","00MA","Structural Maintenance","Bridges","Bridges","Contracted Services",07/11/2019 00:00:00,"6695498",4877.31,"ATKINS LTD"
"Bracknell Forest Council","http://opendatacommunities.org/id/unitary-authority/bracknell-forest","Bracknell Forest Council","00MA","Business Support","Premises Development","Commercial Properties","Consultants Fees",25/10/2019 00:00:00,"6696298",7485.9,"ATKINS LTD"
"Bracknell Forest Council","http://opendatacommunities.org/id/unitary-authority/bracknell-forest","Bracknell Forest Council","00MA","Environment, Safety & Routine Maintenance","Routine Repairs (Principal Roads)","Drainage","Contracted Services",13/01/2020 00:00:00,"6698872",4960.55,"ATKINS LTD"
"Bracknell Forest Council","http://opendatacommunities.org/id/unitary-authority/bracknell-forest","Bracknell Forest Council","00MA","Structural Maintenance","Bridges","Bridges - Other Roads","Contracted Services",13/01/2020 00:00:00,"6698872",5748.3,"ATKINS LTD"
"Bracknell Forest Council","http://opendatacommunities.org/id/unitary-authority/bracknell-forest","Bracknell Forest Council","00MA","Central Support Services - COF","Construction and Property","Construction & Maintenance","Agency",28/02/2020 00:00:00,"6699337",5825,"ATKINS LTD"
"Bracknell Forest Council","http://opendatacommunities.org/id/unitary-authority/bracknell-forest","Bracknell Forest Council","00MA","","","Improvements & Capitalised Repairs (Council Wide)","Consultant Fees",23/12/2019 00:00:00,"6695464",3655.96,"ATKINS LTD"
"Bracknell Forest Council","http://opendatacommunities.org/id/unitary-authority/bracknell-forest","Bracknell Forest Council","00MA","","","Improvements & Capitalised Repairs (Council Wide)","Consultant Fees",31/01/2020 00:00:00,"6698207",1397.59,"ATKINS LTD"
"Bracknell Forest Council","http://opendatacommunities.org/id/unitary-authority/bracknell-forest","Bracknell Forest Council","00MA","","","Improvements & Capitalised Repairs (Council Wide)","Consultant Fees",31/01/2020 00:00:00,"6698208",1467.73,"ATKINS LTD"
"Bracknell Forest Council","http://opendatacommunities.org/id/unitary-authority/bracknell-forest","Bracknell Forest Council","00MA","","","Improvements & Capitalised Repairs (Council Wide)","Consultant Fees",28/02/2020 00:00:00,"6699205",500.71,"ATKINS LTD"
"Bracknell Forest Council","http://opendatacommunities.org/id/unitary-authority/bracknell-forest","Bracknell Forest Council","00MA","","","Improvements & Capitalised Repairs (Council Wide)","Construction - Contract Payments",31/01/2020 00:00:00,"6698193",16793.94,"ATKINS LTD"
"Bracknell Forest Council","http://opendatacommunities.org/id/unitary-authority/bracknell-forest","Bracknell Forest Council","00MA","","","Civic Accomodation","Consultant Fees",31/01/2020 00:00:00,"6698194",2298.62,"ATKINS LTD"
"Bracknell Forest Council","http://opendatacommunities.org/id/unitary-authority/bracknell-forest","Bracknell Forest Council","00MA","","","Civic Accomodation","Consultant Fees",31/01/2020 00:00:00,"6698209",1225.76,"ATKINS LTD"
"Bracknell Forest Council","http://opendatacommunities.org/id/unitary-authority/bracknell-forest","Bracknell Forest Council","00MA","","","Property Review Feasibility","Consultant Fees",31/01/2020 00:00:00,"6697436",5753.74,"ATKINS LTD"
"Bracknell Forest Council","http://opendatacommunities.org/id/unitary-authority/bracknell-forest","Bracknell Forest Council","00MA","","","Property Review Feasibility","Consultant Fees",28/02/2020 00:00:00,"6699615",17261.21,"ATKINS LTD"
"Bracknell Forest Council","http://opendatacommunities.org/id/unitary-authority/bracknell-forest","Bracknell Forest Council","00MA","","","Meadow Vale Primary-MTC","Consultant Fees",23/12/2019 00:00:00,"6695458",4452.38,"ATKINS LTD"
"Bracknell Forest Council","http://opendatacommunities.org/id/unitary-authority/bracknell-forest","Bracknell Forest Council","00MA","","","St Mary's Primary-MTC","Consultant Fees",28/02/2020 00:00:00,"6699207",2091.67,"ATKINS LTD"
"Bracknell Forest Council","http://opendatacommunities.org/id/unitary-authority/bracknell-forest","Bracknell Forest Council","00MA","","","Uplands Primary-MTC","Consultant Fees",28/02/2020 00:00:00,"6699209",4020.96,"ATKINS LTD"
"Bracknell Forest Council","http://opendatacommunities.org/id/unitary-authority/bracknell-forest","Bracknell Forest Council","00MA","","","Wooden Hill Primary","Consultant Fees",27/09/2019 00:00:00,"6695037",3581.5,"ATKINS LTD"
"Bracknell Forest Council","http://opendatacommunities.org/id/unitary-authority/bracknell-forest","Bracknell Forest Council","00MA","","","Pines Primary MTC","Consultant Fees",23/12/2019 00:00:00,"6695465",2434.5,"ATKINS LTD"
"Bracknell Forest Council","http://opendatacommunities.org/id/unitary-authority/bracknell-forest","Bracknell Forest Council","00MA","","","Braccan Walk Youth Centre","Consultant Fees",28/02/2020 00:00:00,"6699201",7156.39,"ATKINS LTD"
"Bracknell Forest Council","http://opendatacommunities.org/id/unitary-authority/bracknell-forest","Bracknell Forest Council","00MA","Holding Accounts not in Budget Book - COF","General Holding Accounts","Repairs and Maintenance","Consultants Fees",16/03/2020 00:00:00,"6700464",-769.8,"ATKINS LTD"
"Bracknell Forest Council","http://opendatacommunities.org/id/unitary-authority/bracknell-forest","Bracknell Forest Council","00MA","Social Care Activities","Social Care Activities","Mental Health Support - Other Care & Support","Other Support to Clients",24/02/2020 00:00:00,"6700586",696,"ATR REMOVALS"
"Bracknell Forest Council","http://opendatacommunities.org/id/unitary-authority/bracknell-forest","Bracknell Forest Council","00MA","Culture and Heritage","Heritage Museums & Galleries","The Look Out","Cost of Goods Sold",19/02/2020 00:00:00,"6698755",587.4,"AURORA WORLD LIMITED"
"Bracknell Forest Council","http://opendatacommunities.org/id/unitary-authority/bracknell-forest","Bracknell Forest Council","00MA","Adults (18-64)","Long term Support - Residential","LD Adults 18-64 Long Term Support - Residential","Contracted Services",19/03/2020 00:00:00,"30373495",6335.92,"AUTISM AT KINGWOOD"
"Bracknell Forest Council","http://opendatacommunities.org/id/unitary-authority/bracknell-forest","Bracknell Forest Council","00MA","Adults (18-64)","Long term Support - Residential","LD Adults 18-64 Long Term Support - Residential","Contracted Services",23/01/2020 00:00:00,"30370176",6335.92,"AUTISM AT KINGWOOD"
"Bracknell Forest Council","http://opendatacommunities.org/id/unitary-authority/bracknell-forest","Bracknell Forest Council","00MA","Adults (18-64)","Long term Support - Residential","LD Adults 18-64 Long Term Support - Residential","Contracted Services",24/12/2019 00:00:00,"30368706",6335.92,"AUTISM AT KINGWOOD"
"Bracknell Forest Council","http://opendatacommunities.org/id/unitary-authority/bracknell-forest","Bracknell Forest Council","00MA","Adults (18-64)","Long term Support - Residential","LD Adults 18-64 Long Term Support - Residential","Contracted Services",20/02/2020 00:00:00,"30371861",6335.92,"AUTISM AT KINGWOOD"
"Bracknell Forest Council","http://opendatacommunities.org/id/unitary-authority/bracknell-forest","Bracknell Forest Council","00MA","Adults (18-64)","Long term Support - Residential","LD Adults 18-64 Long Term Support - Residential","Contracted Services",19/03/2020 00:00:00,"30373495",5355.2,"AUTISM SPECIALISED CARE HOMES LTD"
"Bracknell Forest Council","http://opendatacommunities.org/id/unitary-authority/bracknell-forest","Bracknell Forest Council","00MA","Adults (18-64)","Long term Support - Residential","LD Adults 18-64 Long Term Support - Residential","Contracted Services",24/12/2019 00:00:00,"30368706",5355.2,"AUTISM SPECIALISED CARE HOMES LTD"
"Bracknell Forest Council","http://opendatacommunities.org/id/unitary-authority/bracknell-forest","Bracknell Forest Council","00MA","Adults (18-64)","Long term Support - Residential","LD Adults 18-64 Long Term Support - Residential","Contracted Services",23/01/2020 00:00:00,"30370176",5355.2,"AUTISM SPECIALISED CARE HOMES LTD"
"Bracknell Forest Council","http://opendatacommunities.org/id/unitary-authority/bracknell-forest","Bracknell Forest Council","00MA","Adults (18-64)","Long term Support - Residential","LD Adults 18-64 Long Term Support - Residential","Contracted Services",20/02/2020 00:00:00,"30371861",5355.2,"AUTISM SPECIALISED CARE HOMES LTD"
"Bracknell Forest Council","http://opendatacommunities.org/id/unitary-authority/bracknell-forest","Bracknell Forest Council","00MA","Special Schools & Alternative Provision","Youth Services","Alternative Provision for Secondary Aged pupils without a statement","Voluntary Sector Service Providers",16/12/2019 00:00:00,"6697335",810,"AUTO SKILLS (READING) CIC"
"Bracknell Forest Council","http://opendatacommunities.org/id/unitary-authority/bracknell-forest","Bracknell Forest Council","00MA","Special Schools & Alternative Provision","Youth Services","Alternative Provision for Secondary Aged pupils without a statement","Voluntary Sector Service Providers",04/12/2019 00:00:00,"6697336",1080,"AUTO SKILLS (READING) CIC"
"Bracknell Forest Council","http://opendatacommunities.org/id/unitary-authority/bracknell-forest","Bracknell Forest Council","00MA","Special Schools & Alternative Provision","Youth Services","Alternative Provision for Secondary Aged pupils without a statement","Voluntary Sector Service Providers",20/10/2019 00:00:00,"6697337",810,"AUTO SKILLS (READING) CIC"
"Bracknell Forest Council","http://opendatacommunities.org/id/unitary-authority/bracknell-forest","Bracknell Forest Council","00MA","Special Schools & Alternative Provision","Youth Services","Alternative Provision for Secondary Aged pupils without a statement","Voluntary Sector Service Providers",15/01/2020 00:00:00,"6697338",1350,"AUTO SKILLS (READING) CIC"
"Bracknell Forest Council","http://opendatacommunities.org/id/unitary-authority/bracknell-forest","Bracknell Forest Council","00MA","Central Support Services - COF","Information Technology","Hosted Software","Computer Software",11/12/2019 00:00:00,"6694768",21240,"AUTOMATED INTELLIGENCE LTD"
"Bracknell Forest Council","http://opendatacommunities.org/id/unitary-authority/bracknell-forest","Bracknell Forest Council","00MA","","","ICT Digital Strategy","Other Direct Expenses",02/03/2020 00:00:00,"6699397",30000,"AUTOMATED INTELLIGENCE LTD"
"Bracknell Forest Council","http://opendatacommunities.org/id/unitary-authority/bracknell-forest","Bracknell Forest Council","00MA","","","ICT Transformation Bids","Other Direct Expenses",13/12/2019 00:00:00,"6696360",66000,"AUTOMATED INTELLIGENCE LTD"
"Bracknell Forest Council","http://opendatacommunities.org/id/unitary-authority/bracknell-forest","Bracknell Forest Council","00MA","","","ICT Transformation Bids","Other Direct Expenses",31/12/2019 00:00:00,"6695949",1200,"AUTOMATED INTELLIGENCE LTD"
"Bracknell Forest Council","http://opendatacommunities.org/id/unitary-authority/bracknell-forest","Bracknell Forest Council","00MA","","","ICT Transformation Bids","Other Direct Expenses",31/01/2020 00:00:00,"6697915",41600,"AUTOMATED INTELLIGENCE LTD"
"Bracknell Forest Council","http://opendatacommunities.org/id/unitary-authority/bracknell-forest","Bracknell Forest Council","00MA","","","ICT Transformation Bids","Other Direct Expenses",29/02/2020 00:00:00,"6699635",17400,"AUTOMATED INTELLIGENCE LTD"
"Bracknell Forest Council","http://opendatacommunities.org/id/unitary-authority/bracknell-forest","Bracknell Forest Council","00MA","","","ICT Transformation Bids","Other Direct Expenses",31/03/2020 00:00:00,"6701359",6800,"AUTOMATED INTELLIGENCE LTD"
"Bracknell Forest Council","http://opendatacommunities.org/id/unitary-authority/bracknell-forest","Bracknell Forest Council","00MA","Adults (18-64)","Long Term Support - Nursing","LD Adults 18-64 Long Term Support - Nursing","Contracted Services",19/03/2020 00:00:00,"30373495",3412.32,"AVALON NURSING HOME"
"Bracknell Forest Council","http://opendatacommunities.org/id/unitary-authority/bracknell-forest","Bracknell Forest Council","00MA","Adults (18-64)","Long Term Support - Nursing","LD Adults 18-64 Long Term Support - Nursing","Contracted Services",20/02/2020 00:00:00,"30371861",3412.32,"AVALON NURSING HOME"
"Bracknell Forest Council","http://opendatacommunities.org/id/unitary-authority/bracknell-forest","Bracknell Forest Council","00MA","Adults (18-64)","Long Term Support - Nursing","LD Adults 18-64 Long Term Support - Nursing","Contracted Services",23/01/2020 00:00:00,"30370176",3412.32,"AVALON NURSING HOME"
"Bracknell Forest Council","http://opendatacommunities.org/id/unitary-authority/bracknell-forest","Bracknell Forest Council","00MA","Adults (18-64)","Long Term Support - Nursing","LD Adults 18-64 Long Term Support - Nursing","Contracted Services",24/12/2019 00:00:00,"30368706",3412.32,"AVALON NURSING HOME"
"Bracknell Forest Council","http://opendatacommunities.org/id/unitary-authority/bracknell-forest","Bracknell Forest Council","00MA","Adults (18-64)","Long term Support - Residential","LD Adults 18-64 Long Term Support - Residential","Contracted Services",19/03/2020 00:00:00,"30373495",6134.32,"AVON AUTISTIC FOUNDATION"
"Bracknell Forest Council","http://opendatacommunities.org/id/unitary-authority/bracknell-forest","Bracknell Forest Council","00MA","Adults (18-64)","Long term Support - Residential","LD Adults 18-64 Long Term Support - Residential","Contracted Services",24/12/2019 00:00:00,"30368706",6134.32,"AVON AUTISTIC FOUNDATION"
"Bracknell Forest Council","http://opendatacommunities.org/id/unitary-authority/bracknell-forest","Bracknell Forest Council","00MA","Adults (18-64)","Long term Support - Residential","LD Adults 18-64 Long Term Support - Residential","Contracted Services",20/02/2020 00:00:00,"30371861",6134.32,"AVON AUTISTIC FOUNDATION"
"Bracknell Forest Council","http://opendatacommunities.org/id/unitary-authority/bracknell-forest","Bracknell Forest Council","00MA","Adults (18-64)","Long term Support - Residential","LD Adults 18-64 Long Term Support - Residential","Contracted Services",23/01/2020 00:00:00,"30370176",6134.32,"AVON AUTISTIC FOUNDATION"
"Bracknell Forest Council","http://opendatacommunities.org/id/unitary-authority/bracknell-forest","Bracknell Forest Council","00MA","Children Looked After","Education of LAC","Pupil Premium Educational Attainment for LAC","Contracted Services",28/03/2020 00:00:00,"6700849",600,"AVON PARK SCHOOL (A DIVISION OF WITHERSLACK GROUP LTD)"
"Bracknell Forest Council","http://opendatacommunities.org/id/unitary-authority/bracknell-forest","Bracknell Forest Council","00MA","Central Support Services - COF","Information Technology","Technical  Services","Computer Software Maintenance",13/11/2019 00:00:00,"6694401",11593.75,"AVR INTERNATIONAL LIMITED"
"Bracknell Forest Council","http://opendatacommunities.org/id/unitary-authority/bracknell-forest","Bracknell Forest Council","00MA","Central Support Services - COF","Information Technology","Technical  Services","Licences",30/03/2020 00:00:00,"6701113",10571.79,"AVR INTERNATIONAL LIMITED"
"Bracknell Forest Council","http://opendatacommunities.org/id/unitary-authority/bracknell-forest","Bracknell Forest Council","00MA","Secondary Schools","Delegated Primary School Budgets","Birch Hill - Primary","Premises Staff",17/12/2019 00:00:00,"6695107",2818,"B F B C"
"Bracknell Forest Council","http://opendatacommunities.org/id/unitary-authority/bracknell-forest","Bracknell Forest Council","00MA","Secondary Schools","Delegated Primary School Budgets","Birch Hill - Primary","Premises Staff",09/01/2020 00:00:00,"60016037",-2818,"B F B C"
"Bracknell Forest Council","http://opendatacommunities.org/id/unitary-authority/bracknell-forest","Bracknell Forest Council","00MA","Children Looked After","Other services for LAC","LAC - Semi Independent Living","Contracted Services",01/12/2019 00:00:00,"6696586",5282.02,"BACK TO BACK CARE"
"Bracknell Forest Council","http://opendatacommunities.org/id/unitary-authority/bracknell-forest","Bracknell Forest Council","00MA","Children Looked After","Other services for LAC","LAC - Semi Independent Living","Contracted Services",01/11/2019 00:00:00,"6695084",5137.6,"BACK TO BACK CARE"
"Bracknell Forest Council","http://opendatacommunities.org/id/unitary-authority/bracknell-forest","Bracknell Forest Council","00MA","Children Looked After","Residential care","Children's Home Placements","Contracted Services",01/12/2019 00:00:00,"6696587",850,"BACK TO BACK CARE"
"Bracknell Forest Council","http://opendatacommunities.org/id/unitary-authority/bracknell-forest","Bracknell Forest Council","00MA","Children Looked After","Other services for LAC","LAC - Semi Independent Living","Contracted Services",01/01/2020 00:00:00,"6697480",5282.02,"BACK TO BACK CARE"
"Bracknell Forest Council","http://opendatacommunities.org/id/unitary-authority/bracknell-forest","Bracknell Forest Council","00MA","Asylum Seekers","Asylum Seekers LAC","Asylum Seekers (UASC)","Contracted Services",01/12/2019 00:00:00,"6697995",1615,"BACK TO BACK CARE"
"Bracknell Forest Council","http://opendatacommunities.org/id/unitary-authority/bracknell-forest","Bracknell Forest Council","00MA","Sexual Health Services","Contraception","GP LARC Payments","Contracted Services",14/01/2020 00:00:00,"6696540",2147.5,"BALMORE PARK SURGERY"
"Bracknell Forest Council","http://opendatacommunities.org/id/unitary-authority/bracknell-forest","Bracknell Forest Council","00MA","NHS Health Check Programme","NHS Health Check Programme","GP Health Checks","Contracted Services",14/01/2020 00:00:00,"6696540",580,"BALMORE PARK SURGERY"
"Bracknell Forest Council","http://opendatacommunities.org/id/unitary-authority/bracknell-forest","Bracknell Forest Council","00MA","Older People (65+)","Long term Support - Community:Direct Payments","PS Older People 65+ Long Term Support - Community:Direct Payments","Direct Payments to Clients",16/01/2020 00:00:00,"30369843",858.44,"REDACT PERSONAL INFORMATION"
"Bracknell Forest Council","http://opendatacommunities.org/id/unitary-authority/bracknell-forest","Bracknell Forest Council","00MA","Older People (65+)","Long term Support - Community:Direct Payments","PS Older People 65+ Long Term Support - Community:Direct Payments","Direct Payments to Clients",13/02/2020 00:00:00,"30371524",858.44,"REDACT PERSONAL INFORMATION"
"Bracknell Forest Council","http://opendatacommunities.org/id/unitary-authority/bracknell-forest","Bracknell Forest Council","00MA","Older People (65+)","Long term Support - Community:Direct Payments","PS Older People 65+ Long Term Support - Community:Direct Payments","Direct Payments to Clients",19/12/2019 00:00:00,"30368471",858.44,"REDACT PERSONAL INFORMATION"
"Bracknell Forest Council","http://opendatacommunities.org/id/unitary-authority/bracknell-forest","Bracknell Forest Council","00MA","Older People (65+)","Long term Support - Community:Direct Payments","PS Older People 65+ Long Term Support - Community:Direct Payments","Direct Payments to Clients",12/03/2020 00:00:00,"30373160",858.44,"REDACT PERSONAL INFORMATION"
"Bracknell Forest Council","http://opendatacommunities.org/id/unitary-authority/bracknell-forest","Bracknell Forest Council","00MA","Older People (65+)","Long term Support - Community:Direct Payments","PS Older People 65+ Long Term Support - Community:Direct Payments","Direct Payments to Clients",19/12/2019 00:00:00,"30368471",1397,"REDACT PERSONAL INFORMATION"
"Bracknell Forest Council","http://opendatacommunities.org/id/unitary-authority/bracknell-forest","Bracknell Forest Council","00MA","Older People (65+)","Long term Support - Community:Direct Payments","PS Older People 65+ Long Term Support - Community:Direct Payments","Direct Payments to Clients",16/01/2020 00:00:00,"30369843",1397,"REDACT PERSONAL INFORMATION"
"Bracknell Forest Council","http://opendatacommunities.org/id/unitary-authority/bracknell-forest","Bracknell Forest Council","00MA","Older People (65+)","Long Term Support - Nursing","PS Older People 65+ Long Term Support - Nursing","Contracted Services",24/12/2019 00:00:00,"30368706",1217.86,"BARCHESTER HEALTHCARE LTD"
"Bracknell Forest Council","http://opendatacommunities.org/id/unitary-authority/bracknell-forest","Bracknell Forest Council","00MA","Older People (65+)","Long Term Support - Nursing","MC Older People 65+ Long Term Support - Nursing","Contracted Services",20/02/2020 00:00:00,"30371861",1221.43,"BARCHESTER HEALTHCARE LTD"
"Bracknell Forest Council","http://opendatacommunities.org/id/unitary-authority/bracknell-forest","Bracknell Forest Council","00MA","Older People (65+)","Long Term Support - Nursing","PS Older People 65+ Long Term Support - Nursing","Contracted Services",23/01/2020 00:00:00,"30370176",2768.56,"BARCHESTER HEALTHCARE LTD"
"Bracknell Forest Council","http://opendatacommunities.org/id/unitary-authority/bracknell-forest","Bracknell Forest Council","00MA","Older People (65+)","Long Term Support - Nursing","PS Older People 65+ Long Term Support - Nursing","Contracted Services",24/12/2019 00:00:00,"30368706",2768.56,"BARCHESTER HEALTHCARE LTD"
"Bracknell Forest Council","http://opendatacommunities.org/id/unitary-authority/bracknell-forest","Bracknell Forest Council","00MA","Older People (65+)","Long Term Support - Nursing","PS Older People 65+ Long Term Support - Nursing","Contracted Services",20/02/2020 00:00:00,"30371861",2768.56,"BARCHESTER HEALTHCARE LTD"
"Bracknell Forest Council","http://opendatacommunities.org/id/unitary-authority/bracknell-forest","Bracknell Forest Council","00MA","Older People (65+)","Long Term Support - Nursing","PS Older People 65+ Long Term Support - Nursing","Contracted Services",19/03/2020 00:00:00,"30373495",2768.56,"BARCHESTER HEALTHCARE LTD"
"Bracknell Forest Council","http://opendatacommunities.org/id/unitary-authority/bracknell-forest","Bracknell Forest Council","00MA","Older People (65+)","Long Term Support - Nursing","MC Older People 65+ Long Term Support - Nursing","Contracted Services",24/12/2019 00:00:00,"30368706",3448.48,"BARCHESTER HEALTHCARE LTD"
"Bracknell Forest Council","http://opendatacommunities.org/id/unitary-authority/bracknell-forest","Bracknell Forest Council","00MA","Older People (65+)","Long Term Support - Nursing","MC Older People 65+ Long Term Support - Nursing","Contracted Services",20/02/2020 00:00:00,"30371861",3448.48,"BARCHESTER HEALTHCARE LTD"
"Bracknell Forest Council","http://opendatacommunities.org/id/unitary-authority/bracknell-forest","Bracknell Forest Council","00MA","Older People (65+)","Long Term Support - Nursing","PS Older People 65+ Long Term Support - Nursing","Contracted Services",19/03/2020 00:00:00,"30373495",3530.44,"BRIGHTERKIND/THE BERKSHIRE CARE HOME"
"Bracknell Forest Council","http://opendatacommunities.org/id/unitary-authority/bracknell-forest","Bracknell Forest Council","00MA","Older People (65+)","Long Term Support - Nursing","MC Older People 65+ Long Term Support - Nursing","Contracted Services",24/12/2019 00:00:00,"30368706",3530.44,"BRIGHTERKIND/THE BERKSHIRE CARE HOME"
"Bracknell Forest Council","http://opendatacommunities.org/id/unitary-authority/bracknell-forest","Bracknell Forest Council","00MA","Older People (65+)","Long Term Support - Nursing","PS Older People 65+ Long Term Support - Nursing","Contracted Services",24/12/2019 00:00:00,"30368706",3530.44,"BRIGHTERKIND/THE BERKSHIRE CARE HOME"
"Bracknell Forest Council","http://opendatacommunities.org/id/unitary-authority/bracknell-forest","Bracknell Forest Council","00MA","Older People (65+)","Long Term Support - Nursing","PS Older People 65+ Long Term Support - Nursing","Contracted Services",20/02/2020 00:00:00,"30371861",3530.44,"BRIGHTERKIND/THE BERKSHIRE CARE HOME"
"Bracknell Forest Council","http://opendatacommunities.org/id/unitary-authority/bracknell-forest","Bracknell Forest Council","00MA","Older People (65+)","Long Term Support - Nursing","MC Older People 65+ Long Term Support - Nursing","Contracted Services",23/01/2020 00:00:00,"30370176",3530.44,"BRIGHTERKIND/THE BERKSHIRE CARE HOME"
"Bracknell Forest Council","http://opendatacommunities.org/id/unitary-authority/bracknell-forest","Bracknell Forest Council","00MA","Older People (65+)","Long Term Support - Nursing","MC Older People 65+ Long Term Support - Nursing","Contracted Services",19/03/2020 00:00:00,"30373495",3530.44,"BRIGHTERKIND/THE BERKSHIRE CARE HOME"
"Bracknell Forest Council","http://opendatacommunities.org/id/unitary-authority/bracknell-forest","Bracknell Forest Council","00MA","Older People (65+)","Long Term Support - Nursing","MC Older People 65+ Long Term Support - Nursing","Contracted Services",20/02/2020 00:00:00,"30371861",3530.44,"BRIGHTERKIND/THE BERKSHIRE CARE HOME"
"Bracknell Forest Council","http://opendatacommunities.org/id/unitary-authority/bracknell-forest","Bracknell Forest Council","00MA","Older People (65+)","Long Term Support - Nursing","PS Older People 65+ Long Term Support - Nursing","Contracted Services",23/01/2020 00:00:00,"30370176",3530.44,"BRIGHTERKIND/THE BERKSHIRE CARE HOME"
"Bracknell Forest Council","http://opendatacommunities.org/id/unitary-authority/bracknell-forest","Bracknell Forest Council","00MA","Older People (65+)","Long Term Support - Nursing","PS Older People 65+ Long Term Support - Nursing","Contracted Services",23/01/2020 00:00:00,"30370176",3530.44,"BRIGHTERKIND/THE BERKSHIRE CARE HOME"
"Bracknell Forest Council","http://opendatacommunities.org/id/unitary-authority/bracknell-forest","Bracknell Forest Council","00MA","Older People (65+)","Long Term Support - Nursing","PS Older People 65+ Long Term Support - Nursing","Contracted Services",20/02/2020 00:00:00,"30371861",4007.14,"BRIGHTERKIND/THE BERKSHIRE CARE HOME"
"Bracknell Forest Council","http://opendatacommunities.org/id/unitary-authority/bracknell-forest","Bracknell Forest Council","00MA","Older People (65+)","Long Term Support - Nursing","PS Older People 65+ Long Term Support - Nursing","Contracted Services",23/01/2020 00:00:00,"30370176",4128.57,"BRIGHTERKIND/THE BERKSHIRE CARE HOME"
"Bracknell Forest Council","http://opendatacommunities.org/id/unitary-authority/bracknell-forest","Bracknell Forest Council","00MA","Social Care Activities","Social Care Activities","Mental Capacity Act & IMCA Service","Other Support to Clients",30/11/2019 00:00:00,"6699438",704.96,"BRISTOL MIND"
"Bracknell Forest Council","http://opendatacommunities.org/id/unitary-authority/bracknell-forest","Bracknell Forest Council","00MA","Older People (65+)","Long Term Support - Nursing","MC Older People 65+ Long Term Support - Nursing","Contracted Services",19/03/2020 00:00:00,"30373495",3448.48,"BARCHESTER HEALTHCARE LTD"
"Bracknell Forest Council","http://opendatacommunities.org/id/unitary-authority/bracknell-forest","Bracknell Forest Council","00MA","Older People (65+)","Long Term Support - Nursing","MC Older People 65+ Long Term Support - Nursing","Contracted Services",23/01/2020 00:00:00,"30370176",3448.48,"BARCHESTER HEALTHCARE LTD"
"Bracknell Forest Council","http://opendatacommunities.org/id/unitary-authority/bracknell-forest","Bracknell Forest Council","00MA","Older People (65+)","Short Term Support Other","MC Older People 65+ Other Short Term support","Contracted Services",24/12/2019 00:00:00,"30368706",3528.57,"BARCHESTER HEALTHCARE LTD"
"Bracknell Forest Council","http://opendatacommunities.org/id/unitary-authority/bracknell-forest","Bracknell Forest Council","00MA","Older People (65+)","Long Term Support - Nursing","MC Older People 65+ Long Term Support - Nursing","Contracted Services",24/12/2019 00:00:00,"30368706",3530.44,"BARCHESTER HEALTHCARE LTD"
"Bracknell Forest Council","http://opendatacommunities.org/id/unitary-authority/bracknell-forest","Bracknell Forest Council","00MA","Older People (65+)","Long Term Support - Nursing","MC Older People 65+ Long Term Support - Nursing","Contracted Services",23/01/2020 00:00:00,"30370176",3530.44,"BARCHESTER HEALTHCARE LTD"
"Bracknell Forest Council","http://opendatacommunities.org/id/unitary-authority/bracknell-forest","Bracknell Forest Council","00MA","Older People (65+)","Long Term Support - Nursing","MC Older People 65+ Long Term Support - Nursing","Contracted Services",20/02/2020 00:00:00,"30371861",3530.44,"BARCHESTER HEALTHCARE LTD"
"Bracknell Forest Council","http://opendatacommunities.org/id/unitary-authority/bracknell-forest","Bracknell Forest Council","00MA","Older People (65+)","Long Term Support - Nursing","MC Older People 65+ Long Term Support - Nursing","Contracted Services",19/03/2020 00:00:00,"30373495",3530.44,"BARCHESTER HEALTHCARE LTD"
"Bracknell Forest Council","http://opendatacommunities.org/id/unitary-authority/bracknell-forest","Bracknell Forest Council","00MA","Older People (65+)","Long Term Support - Nursing","MC Older People 65+ Long Term Support - Nursing","Contracted Services",19/03/2020 00:00:00,"30373495",3664.8,"BARCHESTER HEALTHCARE LTD"
"Bracknell Forest Council","http://opendatacommunities.org/id/unitary-authority/bracknell-forest","Bracknell Forest Council","00MA","Older People (65+)","Long Term Support - Nursing","MC Older People 65+ Long Term Support - Nursing","Contracted Services",24/12/2019 00:00:00,"30368706",3664.8,"BARCHESTER HEALTHCARE LTD"
"Bracknell Forest Council","http://opendatacommunities.org/id/unitary-authority/bracknell-forest","Bracknell Forest Council","00MA","Older People (65+)","Long Term Support - Nursing","MC Older People 65+ Long Term Support - Nursing","Contracted Services",23/01/2020 00:00:00,"30370176",3664.8,"BARCHESTER HEALTHCARE LTD"
"Bracknell Forest Council","http://opendatacommunities.org/id/unitary-authority/bracknell-forest","Bracknell Forest Council","00MA","Older People (65+)","Long Term Support - Nursing","MC Older People 65+ Long Term Support - Nursing","Contracted Services",20/02/2020 00:00:00,"30371861",3664.8,"BARCHESTER HEALTHCARE LTD"
"Bracknell Forest Council","http://opendatacommunities.org/id/unitary-authority/bracknell-forest","Bracknell Forest Council","00MA","Older People (65+)","Long Term Support - Nursing","MC Older People 65+ Long Term Support - Nursing","Contracted Services",23/01/2020 00:00:00,"30370176",3774.76,"BARCHESTER HEALTHCARE LTD"
"Bracknell Forest Council","http://opendatacommunities.org/id/unitary-authority/bracknell-forest","Bracknell Forest Council","00MA","Culture and Heritage","Heritage Museums & Galleries","The Look Out","Cost of Goods Sold",11/02/2020 00:00:00,"6698442",1500.15,"BRITISH FOSSILS"
"Bracknell Forest Council","http://opendatacommunities.org/id/unitary-authority/bracknell-forest","Bracknell Forest Council","00MA","Homelessness","Directly with a Private Sector Landlord","Yorktown Road","Electricity",12/12/2019 00:00:00,"60015971",-869.48,"BRITISH GAS"
"Bracknell Forest Council","http://opendatacommunities.org/id/unitary-authority/bracknell-forest","Bracknell Forest Council","00MA","Homelessness","Directly with a Private Sector Landlord","Yorktown Road","Gas",20/02/2020 00:00:00,"60016137",-868.44,"BRITISH GAS"
"Bracknell Forest Council","http://opendatacommunities.org/id/unitary-authority/bracknell-forest","Bracknell Forest Council","00MA","Substance Misuse","Drug misuse in adults","SM New Hope Running Costs","Electricity",14/11/2019 00:00:00,"6694184",1251.81,"BRITISH GAS BUSINESS"
"Bracknell Forest Council","http://opendatacommunities.org/id/unitary-authority/bracknell-forest","Bracknell Forest Council","00MA","Homelessness","Directly with a Private Sector Landlord","Yorktown Road","Electricity",04/02/2020 00:00:00,"6697889",1537.71,"BRITISH GAS BUSINESS"
"Bracknell Forest Council","http://opendatacommunities.org/id/unitary-authority/bracknell-forest","Bracknell Forest Council","00MA","Homelessness","Directly with a Private Sector Landlord","Yorktown Road","Gas",18/11/2019 00:00:00,"6698142",872.38,"BRITISH GAS BUSINESS"
"Bracknell Forest Council","http://opendatacommunities.org/id/unitary-authority/bracknell-forest","Bracknell Forest Council","00MA","Management and Support Services - CYPL","Strategy, Resources and Early Interventions","EY Provision - Priestwood (Guide Centre)","Gas",28/01/2020 00:00:00,"6698423",1536.93,"BRITISH GAS BUSINESS"
"Bracknell Forest Council","http://opendatacommunities.org/id/unitary-authority/bracknell-forest","Bracknell Forest Council","00MA","Management and Support Services - CYPL","Strategy, Resources and Early Interventions","EY Provision - Priestwood (Guide Centre)","Electricity",28/01/2020 00:00:00,"6698424",664.62,"BRITISH GAS BUSINESS"
"Bracknell Forest Council","http://opendatacommunities.org/id/unitary-authority/bracknell-forest","Bracknell Forest Council","00MA","","","SANGS Facilitation","Construction - Other Direct Expenses",26/11/2019 00:00:00,"6698607",1574.66,"BRITISH HARDWOOD TREE NURSERY LTD"
"Bracknell Forest Council","http://opendatacommunities.org/id/unitary-authority/bracknell-forest","Bracknell Forest Council","00MA","","","A322 Downshire Way Greening Works Programme","Other Direct Expenses",12/12/2019 00:00:00,"6695155",2038.2,"BRITISH HARDWOOD TREE NURSERY LTD"
"Bracknell Forest Council","http://opendatacommunities.org/id/unitary-authority/bracknell-forest","Bracknell Forest Council","00MA","","","A322 Downshire Way Greening Works Programme","Other Direct Expenses",22/11/2019 00:00:00,"6694930",767.06,"BRITISH HARDWOOD TREE NURSERY LTD"
"Bracknell Forest Council","http://opendatacommunities.org/id/unitary-authority/bracknell-forest","Bracknell Forest Council","00MA","","","A322 Downshire Way Greening Works Programme","Other Direct Expenses",22/11/2019 00:00:00,"6694930",959.85,"BRITISH HARDWOOD TREE NURSERY LTD"
"Bracknell Forest Council","http://opendatacommunities.org/id/unitary-authority/bracknell-forest","Bracknell Forest Council","00MA","Central Support Services - COF","Information Technology","ICT Telephony","Telephones - Rental & Call Charges",12/12/2019 00:00:00,"6696023",7550.2,"BRITISH TELECOM"
"Bracknell Forest Council","http://opendatacommunities.org/id/unitary-authority/bracknell-forest","Bracknell Forest Council","00MA","Central Support Services - COF","Information Technology","Communications","Equipment - Rental",20/02/2020 00:00:00,"6698678",3900.07,"BRITISH TELECOM"
"Bracknell Forest Council","http://opendatacommunities.org/id/unitary-authority/bracknell-forest","Bracknell Forest Council","00MA","Central Support Services - COF","Information Technology","ICT Telephony","Telephones - Rental & Call Charges",21/02/2020 00:00:00,"6698679",7610.98,"BRITISH TELECOM"
"Bracknell Forest Council","http://opendatacommunities.org/id/unitary-authority/bracknell-forest","Bracknell Forest Council","00MA","Older People (65+)","Long Term Support - Nursing","MC Older People 65+ Long Term Support - Nursing","Contracted Services",24/12/2019 00:00:00,"30368706",3774.76,"BARCHESTER HEALTHCARE LTD"
"Bracknell Forest Council","http://opendatacommunities.org/id/unitary-authority/bracknell-forest","Bracknell Forest Council","00MA","Older People (65+)","Long Term Support - Nursing","MC Older People 65+ Long Term Support - Nursing","Contracted Services",19/03/2020 00:00:00,"30373495",3774.76,"BARCHESTER HEALTHCARE LTD"
"Bracknell Forest Council","http://opendatacommunities.org/id/unitary-authority/bracknell-forest","Bracknell Forest Council","00MA","Older People (65+)","Long Term Support - Nursing","MC Older People 65+ Long Term Support - Nursing","Contracted Services",20/02/2020 00:00:00,"30371861",3774.76,"BARCHESTER HEALTHCARE LTD"
"Bracknell Forest Council","http://opendatacommunities.org/id/unitary-authority/bracknell-forest","Bracknell Forest Council","00MA","Older People (65+)","Long Term Support - Nursing","MC Older People 65+ Long Term Support - Nursing","Contracted Services",23/01/2020 00:00:00,"30370176",3800,"BARCHESTER HEALTHCARE LTD"
"Bracknell Forest Council","http://opendatacommunities.org/id/unitary-authority/bracknell-forest","Bracknell Forest Council","00MA","Older People (65+)","Long Term Support - Nursing","MC Older People 65+ Long Term Support - Nursing","Contracted Services",19/03/2020 00:00:00,"30373495",3800,"BARCHESTER HEALTHCARE LTD"
"Bracknell Forest Council","http://opendatacommunities.org/id/unitary-authority/bracknell-forest","Bracknell Forest Council","00MA","Older People (65+)","Long Term Support - Nursing","MC Older People 65+ Long Term Support - Nursing","Contracted Services",23/01/2020 00:00:00,"30370176",3800,"BARCHESTER HEALTHCARE LTD"
